Department Family,Entity,Date,Expense Type,Expense Area,Supplier,Transaction Number,Total
Ministry of Defence,Ministry of Defence,22/12/2010,Design services and minor equipment purchases,Defence Equipment & Support,CAPGEMINI UK PLC,735925,15732.00
Ministry of Defence,Ministry of Defence,16/12/2010,Fees for professional services,Defence Equipment & Support,CAPGEMINI UK PLC,733389,28100.00
Ministry of Defence,United Kingdom Hydrographic Office,06/12/2010,Agency staff costs,Commercial & Finance Division,Capita Resourcing Limited,2000051985,33600.00
Ministry of Defence,United Kingdom Hydrographic Office,02/12/2010,Agency staff costs,IMT Business Group,Capita Resourcing Limited,2000051949,24257.46
Ministry of Defence,Met Office,23/12/2010,Services,Government Business,Defra,301970,160000.00
Ministry of Defence,Ministry of Defence,09/12/2010,Fees for professional services,Defence Equipment & Support,DELOITTE LLP,730419,87535.00
Ministry of Defence,Ministry of Defence,17/12/2010,Fees for professional services,Central TLB,DEPARTMENT FOR WORK AND PENSIONS,734093,145774.00
Ministry of Defence,Ministry of Defence,21/12/2010,"Purchase of munitions, other inventory or fuel",Defence Equipment & Support,H M REVENUE & CUSTOMS,735543,32990.20
Ministry of Defence,Defence Science and Technology Laboratory,17/12/2010,Sub Contracted Work,Operations,MORF PRODUCTS LIMITED,V - 9000128569 - 00096412,23422.00
Ministry of Defence,Defence Science and Technology Laboratory,13/12/2010,Sub Contracted Work,Operations,OXFORD RISK RESEARCH AND ANALYSIS LIMITED,V - 9000128454 - 00094959,23500.00
Ministry of Defence,Met Office,23/12/2010,Services,Operations,P A Consulting Group,301846,36277.50
Ministry of Defence,Defence Science and Technology Laboratory,24/12/2010,Sub Contracted Work,Operations,QINETIQ LIMITED,V - 9000128824 - 00097775,24509.45
Ministry of Defence,Ministry of Defence,22/12/2010,Rent and rates,Navy Command,SIR RICHARD CAREW POLE  1992 SETTLEMENT,736325,27354.84
Ministry of Defence,Ministry of Defence,15/12/2010,Estate management,Defence Estates,A T G AIRPORTS LTD,732616,27688.00
Ministry of Defence,Ministry of Defence,09/12/2010,Fees for professional services,Land Forces,A.A. SECURITIES LIMITED,730268,28362.88
Ministry of Defence,Ministry of Defence,20/12/2010,Purchase of inventory and services ,Defence Equipment & Support,AAH PHARMACEUTICALS LTD,734640,103933.65
Ministry of Defence,Ministry of Defence,24/12/2010,Purchase of inventory and services ,Land Forces,AAH PHARMACEUTICALS LTD,737009,93702.49
Ministry of Defence,Ministry of Defence,07/12/2010,Purchase of inventory and services ,Defence Equipment & Support,AAH PHARMACEUTICALS LTD,729146,76970.93
Ministry of Defence,Ministry of Defence,13/12/2010,Purchase of inventory and services ,Defence Equipment & Support,AAH PHARMACEUTICALS LTD,731415,67427.64
Ministry of Defence,Ministry of Defence,09/12/2010,Purchase of inventory and services ,Land Forces,AAH PHARMACEUTICALS LTD,730269,43807.68
Ministry of Defence,Ministry of Defence,16/12/2010,Purchase of inventory and services ,Air Command,AAH PHARMACEUTICALS LTD,733283,39327.90
Ministry of Defence,Ministry of Defence,16/12/2010,Purchase of inventory and services ,Land Forces,AAH PHARMACEUTICALS LTD,733283,36004.69
Ministry of Defence,Ministry of Defence,08/12/2010,Purchase of inventory and services ,Land Forces,AAH PHARMACEUTICALS LTD,729731,34588.72
Ministry of Defence,Ministry of Defence,31/12/2010,Purchase of inventory and services ,Land Forces,AAH PHARMACEUTICALS LTD,737666,33048.46
Ministry of Defence,Ministry of Defence,07/12/2010,Purchase of inventory and services ,Land Forces,AAH PHARMACEUTICALS LTD,729146,30877.62
Ministry of Defence,Ministry of Defence,20/12/2010,Purchase of inventory and services ,Land Forces,AAH PHARMACEUTICALS LTD,734640,27029.46
Ministry of Defence,Ministry of Defence,17/12/2010,Purchase of inventory and services ,Land Forces,AAH PHARMACEUTICALS LTD,733915,26358.45
Ministry of Defence,Ministry of Defence,13/12/2010,Purchase of inventory and services ,Land Forces,AAH PHARMACEUTICALS LTD,731415,25785.21
Ministry of Defence,Ministry of Defence,01/12/2010,Purchase of inventory and services ,Land Forces,AAH PHARMACEUTICALS LTD,726844,25761.77
Ministry of Defence,Ministry of Defence,06/12/2010,Purchase of inventory and services ,Land Forces,AAH PHARMACEUTICALS LTD,728570,25332.40
Ministry of Defence,Ministry of Defence,03/12/2010,Purchase of inventory and services ,Land Forces,AAH PHARMACEUTICALS LTD,728105,24758.00
Ministry of Defence,Ministry of Defence,14/12/2010,Purchase of inventory and services ,Land Forces,AAH PHARMACEUTICALS LTD,732044,24391.59
Ministry of Defence,Ministry of Defence,14/12/2010,Purchase of inventory and services ,Air Command,AAH PHARMACEUTICALS LTD,732044,20185.48
Ministry of Defence,Ministry of Defence,24/12/2010,Purchase of inventory and services ,Defence Equipment & Support,AAH PHARMACEUTICALS LTD,737009,19681.67
Ministry of Defence,Ministry of Defence,08/12/2010,Purchase of inventory and services ,Defence Equipment & Support,AAH PHARMACEUTICALS LTD,729731,19417.91
Ministry of Defence,Ministry of Defence,02/12/2010,Purchase of inventory and services ,Defence Equipment & Support,AAH PHARMACEUTICALS LTD,727502,18767.99
Ministry of Defence,Ministry of Defence,20/12/2010,Purchase of inventory and services ,Air Command,AAH PHARMACEUTICALS LTD,734640,18667.03
Ministry of Defence,Ministry of Defence,17/12/2010,Purchase of inventory and services ,Air Command,AAH PHARMACEUTICALS LTD,733915,17648.73
Ministry of Defence,Ministry of Defence,31/12/2010,Purchase of inventory and services ,Defence Equipment & Support,AAH PHARMACEUTICALS LTD,737666,17389.69
Ministry of Defence,Ministry of Defence,21/12/2010,Purchase of inventory and services ,Air Command,AAH PHARMACEUTICALS LTD,735371,17371.01
Ministry of Defence,Ministry of Defence,13/12/2010,Purchase of inventory and services ,Air Command,AAH PHARMACEUTICALS LTD,731415,16527.68
Ministry of Defence,Ministry of Defence,23/12/2010,Purchase of inventory and services ,Defence Equipment & Support,AAH PHARMACEUTICALS LTD,736436,16389.13
Ministry of Defence,Ministry of Defence,10/12/2010,Purchase of inventory and services ,Land Forces,AAH PHARMACEUTICALS LTD,730839,14991.54
Ministry of Defence,Ministry of Defence,08/12/2010,Purchase of inventory and services ,Air Command,AAH PHARMACEUTICALS LTD,729731,14471.16
Ministry of Defence,Ministry of Defence,10/12/2010,Purchase of inventory and services ,Air Command,AAH PHARMACEUTICALS LTD,730839,13936.06
Ministry of Defence,Ministry of Defence,23/12/2010,Purchase of inventory and services ,Land Forces,AAH PHARMACEUTICALS LTD,736436,13778.53
Ministry of Defence,Ministry of Defence,21/12/2010,Purchase of inventory and services ,Land Forces,AAH PHARMACEUTICALS LTD,735371,12689.64
Ministry of Defence,Ministry of Defence,06/12/2010,Purchase of inventory and services ,Defence Equipment & Support,AAH PHARMACEUTICALS LTD,728570,12518.52
Ministry of Defence,Ministry of Defence,22/12/2010,Purchase of inventory and services ,Land Forces,AAH PHARMACEUTICALS LTD,735816,12342.89
Ministry of Defence,Ministry of Defence,01/12/2010,Purchase of inventory and services ,Navy Command,AAH PHARMACEUTICALS LTD,726844,10949.98
Ministry of Defence,Ministry of Defence,17/12/2010,Purchase of inventory and services ,Navy Command,AAH PHARMACEUTICALS LTD,733915,10466.45
Ministry of Defence,Ministry of Defence,15/12/2010,Purchase of inventory and services ,Air Command,AAH PHARMACEUTICALS LTD,732617,9565.87
Ministry of Defence,Ministry of Defence,03/12/2010,Purchase of inventory and services ,Air Command,AAH PHARMACEUTICALS LTD,728105,9243.42
Ministry of Defence,Ministry of Defence,16/12/2010,Purchase of inventory and services ,Defence Equipment & Support,AAH PHARMACEUTICALS LTD,733283,9229.89
Ministry of Defence,Ministry of Defence,06/12/2010,Purchase of inventory and services ,Command Joint Operations,AAH PHARMACEUTICALS LTD,728570,9184.72
Ministry of Defence,Ministry of Defence,02/12/2010,Purchase of inventory and services ,Air Command,AAH PHARMACEUTICALS LTD,727502,8967.33
Ministry of Defence,Ministry of Defence,07/12/2010,Purchase of inventory and services ,Air Command,AAH PHARMACEUTICALS LTD,729146,8428.19
Ministry of Defence,Ministry of Defence,17/12/2010,Purchase of inventory and services ,Defence Equipment & Support,AAH PHARMACEUTICALS LTD,733915,8237.78
Ministry of Defence,Ministry of Defence,22/12/2010,Purchase of inventory and services ,Air Command,AAH PHARMACEUTICALS LTD,735816,8062.49
Ministry of Defence,Ministry of Defence,01/12/2010,Purchase of inventory and services ,Defence Equipment & Support,AAH PHARMACEUTICALS LTD,726844,7887.55
Ministry of Defence,Ministry of Defence,22/12/2010,Purchase of inventory and services ,Defence Equipment & Support,AAH PHARMACEUTICALS LTD,735816,7860.00
Ministry of Defence,Ministry of Defence,01/12/2010,Purchase of inventory and services ,Air Command,AAH PHARMACEUTICALS LTD,726844,7577.94
Ministry of Defence,Ministry of Defence,14/12/2010,Purchase of inventory and services ,Command Joint Operations,AAH PHARMACEUTICALS LTD,732044,7575.45
Ministry of Defence,Ministry of Defence,03/12/2010,Purchase of inventory and services ,Defence Equipment & Support,AAH PHARMACEUTICALS LTD,728105,7434.71
Ministry of Defence,Ministry of Defence,17/12/2010,Purchase of inventory and services ,Command Joint Operations,AAH PHARMACEUTICALS LTD,733915,7427.06
Ministry of Defence,Ministry of Defence,09/12/2010,Purchase of inventory and services ,Defence Equipment & Support,AAH PHARMACEUTICALS LTD,730269,7389.89
Ministry of Defence,Ministry of Defence,09/12/2010,Purchase of inventory and services ,Air Command,AAH PHARMACEUTICALS LTD,730269,7155.35
Ministry of Defence,Ministry of Defence,02/12/2010,Purchase of inventory and services ,Land Forces,AAH PHARMACEUTICALS LTD,727502,7054.36
Ministry of Defence,Ministry of Defence,24/12/2010,Purchase of inventory and services ,Air Command,AAH PHARMACEUTICALS LTD,737009,7048.11
Ministry of Defence,Ministry of Defence,13/12/2010,Purchase of inventory and services ,Command Joint Operations,AAH PHARMACEUTICALS LTD,731415,6798.34
Ministry of Defence,Ministry of Defence,15/12/2010,Purchase of inventory and services ,Land Forces,AAH PHARMACEUTICALS LTD,732617,6794.65
Ministry of Defence,Ministry of Defence,14/12/2010,Purchase of inventory and services ,Defence Equipment & Support,AAH PHARMACEUTICALS LTD,732044,6354.27
Ministry of Defence,Ministry of Defence,06/12/2010,Purchase of inventory and services ,Air Command,AAH PHARMACEUTICALS LTD,728570,6051.41
Ministry of Defence,Ministry of Defence,20/12/2010,Purchase of inventory and services ,Navy Command,AAH PHARMACEUTICALS LTD,734640,5027.17
Ministry of Defence,Ministry of Defence,10/12/2010,Purchase of inventory and services ,Defence Equipment & Support,AAH PHARMACEUTICALS LTD,730839,4635.27
Ministry of Defence,Ministry of Defence,16/12/2010,Purchase of inventory and services ,Command Joint Operations,AAH PHARMACEUTICALS LTD,733283,4600.71
Ministry of Defence,Ministry of Defence,15/12/2010,Purchase of inventory and services ,Defence Equipment & Support,AAH PHARMACEUTICALS LTD,732617,3966.31
Ministry of Defence,Ministry of Defence,23/12/2010,Purchase of inventory and services ,Air Command,AAH PHARMACEUTICALS LTD,736436,3768.69
Ministry of Defence,Ministry of Defence,31/12/2010,Purchase of inventory and services ,Air Command,AAH PHARMACEUTICALS LTD,737666,3267.62
Ministry of Defence,Ministry of Defence,23/12/2010,Purchase of inventory and services ,Navy Command,AAH PHARMACEUTICALS LTD,736436,3149.17
Ministry of Defence,Ministry of Defence,24/12/2010,Purchase of inventory and services ,Central TLB,AAH PHARMACEUTICALS LTD,737009,3101.15
Ministry of Defence,Ministry of Defence,10/12/2010,Purchase of inventory and services ,Navy Command,AAH PHARMACEUTICALS LTD,730839,2986.11
Ministry of Defence,Ministry of Defence,07/12/2010,Purchase of inventory and services ,Command Joint Operations,AAH PHARMACEUTICALS LTD,729146,2943.37
Ministry of Defence,Ministry of Defence,02/12/2010,Purchase of inventory and services ,Navy Command,AAH PHARMACEUTICALS LTD,727502,2573.89
Ministry of Defence,Ministry of Defence,31/12/2010,Purchase of inventory and services ,Command Joint Operations,AAH PHARMACEUTICALS LTD,737666,2540.61
Ministry of Defence,Ministry of Defence,09/12/2010,Purchase of inventory and services ,Navy Command,AAH PHARMACEUTICALS LTD,730269,2485.85
Ministry of Defence,Ministry of Defence,16/12/2010,Purchase of inventory and services ,Navy Command,AAH PHARMACEUTICALS LTD,733283,2152.68
Ministry of Defence,Ministry of Defence,09/12/2010,Purchase of inventory and services ,Central TLB,AAH PHARMACEUTICALS LTD,730269,1997.51
Ministry of Defence,Ministry of Defence,02/12/2010,Purchase of inventory and services ,Central TLB,AAH PHARMACEUTICALS LTD,727502,1902.92
Ministry of Defence,Ministry of Defence,14/12/2010,Purchase of inventory and services ,Central TLB,AAH PHARMACEUTICALS LTD,732044,1836.78
Ministry of Defence,Ministry of Defence,06/12/2010,Purchase of inventory and services ,Navy Command,AAH PHARMACEUTICALS LTD,728570,1831.61
Ministry of Defence,Ministry of Defence,10/12/2010,Purchase of inventory and services ,Command Joint Operations,AAH PHARMACEUTICALS LTD,730839,1831.45
Ministry of Defence,Ministry of Defence,22/12/2010,Purchase of inventory and services ,Navy Command,AAH PHARMACEUTICALS LTD,735816,1783.35
Ministry of Defence,Ministry of Defence,24/12/2010,Purchase of inventory and services ,Command Joint Operations,AAH PHARMACEUTICALS LTD,737009,1636.95
Ministry of Defence,Ministry of Defence,15/12/2010,Purchase of inventory and services ,Command Joint Operations,AAH PHARMACEUTICALS LTD,732617,1356.24
Ministry of Defence,Ministry of Defence,20/12/2010,Purchase of inventory and services ,Central TLB,AAH PHARMACEUTICALS LTD,734640,1280.51
Ministry of Defence,Ministry of Defence,22/12/2010,Purchase of inventory and services ,Central TLB,AAH PHARMACEUTICALS LTD,735816,1211.60
Ministry of Defence,Ministry of Defence,08/12/2010,Purchase of inventory and services ,Navy Command,AAH PHARMACEUTICALS LTD,729731,1205.21
Ministry of Defence,Ministry of Defence,08/12/2010,Purchase of inventory and services ,Central TLB,AAH PHARMACEUTICALS LTD,729731,1080.85
Ministry of Defence,Ministry of Defence,08/12/2010,Purchase of inventory and services ,Command Joint Operations,AAH PHARMACEUTICALS LTD,729731,1077.51
Ministry of Defence,Ministry of Defence,21/12/2010,Purchase of inventory and services ,Command Joint Operations,AAH PHARMACEUTICALS LTD,735371,1063.28
Ministry of Defence,Ministry of Defence,24/12/2010,Purchase of inventory and services ,Navy Command,AAH PHARMACEUTICALS LTD,737009,1045.59
Ministry of Defence,Ministry of Defence,03/12/2010,Purchase of inventory and services ,Command Joint Operations,AAH PHARMACEUTICALS LTD,728105,1034.07
Ministry of Defence,Ministry of Defence,15/12/2010,Purchase of inventory and services ,Navy Command,AAH PHARMACEUTICALS LTD,732617,906.57
Ministry of Defence,Ministry of Defence,22/12/2010,Purchase of inventory and services ,Command Joint Operations,AAH PHARMACEUTICALS LTD,735816,869.53
Ministry of Defence,Ministry of Defence,20/12/2010,Purchase of inventory and services ,Command Joint Operations,AAH PHARMACEUTICALS LTD,734640,827.59
Ministry of Defence,Ministry of Defence,07/12/2010,Purchase of inventory and services ,Navy Command,AAH PHARMACEUTICALS LTD,729146,806.62
Ministry of Defence,Ministry of Defence,13/12/2010,Purchase of inventory and services ,Navy Command,AAH PHARMACEUTICALS LTD,731415,725.23
Ministry of Defence,Ministry of Defence,09/12/2010,Purchase of inventory and services ,Command Joint Operations,AAH PHARMACEUTICALS LTD,730269,680.27
Ministry of Defence,Ministry of Defence,23/12/2010,Purchase of inventory and services ,Command Joint Operations,AAH PHARMACEUTICALS LTD,736436,591.32
Ministry of Defence,Ministry of Defence,01/12/2010,Purchase of inventory and services ,Command Joint Operations,AAH PHARMACEUTICALS LTD,726844,578.87
Ministry of Defence,Ministry of Defence,10/12/2010,Purchase of inventory and services ,Central TLB,AAH PHARMACEUTICALS LTD,730839,475.83
Ministry of Defence,Ministry of Defence,03/12/2010,Purchase of inventory and services ,Navy Command,AAH PHARMACEUTICALS LTD,728105,417.68
Ministry of Defence,Ministry of Defence,02/12/2010,Purchase of inventory and services ,Command Joint Operations,AAH PHARMACEUTICALS LTD,727502,360.76
Ministry of Defence,Ministry of Defence,14/12/2010,Purchase of inventory and services ,Navy Command,AAH PHARMACEUTICALS LTD,732044,322.38
Ministry of Defence,Ministry of Defence,17/12/2010,Purchase of inventory and services ,Central TLB,AAH PHARMACEUTICALS LTD,733915,252.86
Ministry of Defence,Ministry of Defence,13/12/2010,Purchase of inventory and services ,Central TLB,AAH PHARMACEUTICALS LTD,731415,77.39
Ministry of Defence,Ministry of Defence,07/12/2010,Purchase of inventory and services ,Central TLB,AAH PHARMACEUTICALS LTD,729146,30.41
Ministry of Defence,Ministry of Defence,21/12/2010,Purchase of inventory and services ,Defence Equipment & Support,AAH PHARMACEUTICALS LTD,735371,11.75
Ministry of Defence,Ministry of Defence,16/12/2010,Purchase of inventory and services ,Central TLB,AAH PHARMACEUTICALS LTD,733283,4.68
Ministry of Defence,Ministry of Defence,06/12/2010,Purchase of inventory and services ,Central TLB,AAH PHARMACEUTICALS LTD,728570,-61.63
Ministry of Defence,Ministry of Defence,09/12/2010,"Purchase of munitions, other inventory or fuel",Land Forces,AAH PHARMACEUTICALS LTD,730269,313.77
Ministry of Defence,Met Office,10/12/2010,Fixture & Fittings,Chief Financial Officer,Abb Ltd - Oracle Section,300901,124636.00
Ministry of Defence,Reserve Forces and Cadets Associations,13/12/2010,IT and communication services,IT & Comms,ABS Ltd,11744,49116.30
Ministry of Defence,Reserve Forces and Cadets Associations,08/12/2010,IT and communication services,IT & Comms,ABS Ltd,11585,25927.55
Ministry of Defence,Ministry of Defence,08/12/2010,Purchase of inventory and services ,Defence Equipment & Support,ACCLIMATISE LIMITED,729733,39098.04
Ministry of Defence,Ministry of Defence,07/12/2010,Rent and rates,Defence Estates,ACIS GROUP LIMITED,729149,28440.00
Ministry of Defence,Ministry of Defence,10/12/2010,Design services and minor equipment purchases,Defence Equipment & Support,AEBI SCHMIDT UK LIMITED,730845,2990.00
Ministry of Defence,Ministry of Defence,08/12/2010,Design services and minor equipment purchases,Defence Equipment & Support,AEBI SCHMIDT UK LIMITED,729738,2900.00
Ministry of Defence,Ministry of Defence,08/12/2010,Purchase of general transport equipment,Defence Equipment & Support,AEBI SCHMIDT UK LIMITED,729738,1711132.53
Ministry of Defence,Ministry of Defence,10/12/2010,Purchase of general transport equipment,Defence Equipment & Support,AEBI SCHMIDT UK LIMITED,730845,726530.70
Ministry of Defence,Ministry of Defence,16/12/2010,Purchase of inventory and services ,Defence Equipment & Support,AEROFLEX HOSE AND ENGINEERING  LIMITED,733295,27030.89
Ministry of Defence,Ministry of Defence,13/12/2010,Design services and minor equipment purchases,Air Command,AERONAUTICAL & GENERAL INSTRUMENTS LIMITED,731419,1253.57
Ministry of Defence,Ministry of Defence,13/12/2010,Purchase of inventory and services ,Defence Equipment & Support,AERONAUTICAL & GENERAL INSTRUMENTS LIMITED,731419,51455.42
Ministry of Defence,Defence Science and Technology Laboratory,13/12/2010,Sub Contracted Research,Programme Office,AEROSYSTEMS INTERNATIONAL LIMITED,V - 9000128459 - 00096524,69526.28
Ministry of Defence,Defence Science and Technology Laboratory,14/12/2010,Sub Contracted Research,Programme Office,AEROSYSTEMS INTERNATIONAL LIMITED,V - 9000128468 - 00096461,41183.11
Ministry of Defence,Ministry of Defence,07/12/2010,Purchase of buildings and military equipment ,Defence Equipment & Support,AEROSYSTEMS INTERNATIONAL LTD,729154,8330.00
Ministry of Defence,Ministry of Defence,07/12/2010,Purchase of inventory and services ,Defence Equipment & Support,AEROTRIM (WESTBURY) LIMITED,729155,46890.50
Ministry of Defence,Ministry of Defence,22/12/2010,Development costs for military equipment.,Defence Equipment & Support,AGILE IDEAS LIMITED,735833,20394.52
Ministry of Defence,Ministry of Defence,22/12/2010,IT and communication services,Defence Equipment & Support,AGILE IDEAS LIMITED,735833,115126.86
Ministry of Defence,Ministry of Defence,24/12/2010,"Transportation of personnel, freight and travel expenses",Land Forces,AGILITY LOGISTICS LIMITED,737014,208540.78
Ministry of Defence,Ministry of Defence,24/12/2010,"Transportation of personnel, freight and travel expenses",Air Command,AGILITY LOGISTICS LIMITED,737014,97757.01
Ministry of Defence,Ministry of Defence,24/12/2010,"Transportation of personnel, freight and travel expenses",Navy Command,AGILITY LOGISTICS LIMITED,737014,16461.10
Ministry of Defence,Ministry of Defence,24/12/2010,"Transportation of personnel, freight and travel expenses",Central TLB,AGILITY LOGISTICS LIMITED,737014,4654.27
Ministry of Defence,Ministry of Defence,06/12/2010,Purchase of inventory and services ,Defence Equipment & Support,AGROPHARM LTD,728574,49620.25
Ministry of Defence,Ministry of Defence,31/12/2010,Purchase of inventory and services ,Defence Equipment & Support,AGROPHARM LTD,737669,35626.00
Ministry of Defence,Ministry of Defence,17/12/2010,Purchase of inventory and services ,Defence Equipment & Support,AIM AVIATION (JECCO) LTD,733922,31401.60
Ministry of Defence,Ministry of Defence,02/12/2010,Purchase of inventory and services ,Defence Equipment & Support,AIM AVIATION (JECCO) LTD,727516,30358.71
Ministry of Defence,Ministry of Defence,16/12/2010,Purchase of inventory and services ,Defence Equipment & Support,AIR AND GROUND AVIATION LIMITED,733299,52245.67
Ministry of Defence,Ministry of Defence,08/12/2010,Purchase of inventory and services ,Defence Equipment & Support,AIR AND GROUND AVIATION LIMITED,729740,43768.75
Ministry of Defence,Ministry of Defence,20/12/2010,Purchase of inventory and services ,Defence Equipment & Support,AIR AND GROUND AVIATION LIMITED,734652,32707.48
Ministry of Defence,Ministry of Defence,13/12/2010,Purchase of inventory and services ,Defence Equipment & Support,AIRBORNE SYSTEMS LTD,731423,18041.22
Ministry of Defence,Ministry of Defence,06/12/2010,Purchase of inventory and services ,Defence Equipment & Support,AIRBORNE SYSTEMS LTD,728575,1874.97
Ministry of Defence,Ministry of Defence,09/12/2010,Design services and minor equipment purchases,Defence Equipment & Support,AIRCRAFT MAINTENANCE SUPPORT SERVICES LTD,730278,51042.90
Ministry of Defence,Ministry of Defence,09/12/2010,Purchase of inventory and services ,Defence Equipment & Support,AIRCRAFT MAINTENANCE SUPPORT SERVICES LTD,730278,36250.99
Ministry of Defence,Ministry of Defence,07/12/2010,Estate management,Air Command,AIRFIELD WILDLIFE MANAGEMENT  LIMITED,729159,21980.29
Ministry of Defence,Ministry of Defence,30/12/2010,Estate management,Air Command,AIRFIELD WILDLIFE MANAGEMENT  LIMITED,737459,21980.29
Ministry of Defence,Ministry of Defence,07/12/2010,Estate management,Land Forces,ALDERSHOT HEALTHCARE INVESTMENTS LIMITED,729162,230986.71
Ministry of Defence,Ministry of Defence,01/12/2010,Purchase of inventory and services ,Defence Equipment & Support,ALLAERO LIMITED,726856,427453.25
Ministry of Defence,Ministry of Defence,06/12/2010,"Purchase of munitions, other inventory or fuel",Defence Equipment & Support,ALSTOM POWER LTD,728584,25967.50
Ministry of Defence,Ministry of Defence,17/12/2010,Purchase of inventory and services ,Central TLB,ALTERED IMAGES LTD,AP09 GPC 13,31334.90
Ministry of Defence,Ministry of Defence,02/12/2010,IT and communication services,Defence Equipment & Support,AMADEUS IT GROUP SA,3000004925,88496.79
Ministry of Defence,Ministry of Defence,13/12/2010,Medical treatment & stores and welfare services.,Land Forces,AMD TUEV ARBEITSMED,5000046969,39617.03
Ministry of Defence,Ministry of Defence,14/12/2010,Purchase of buildings and military equipment ,Defence Equipment & Support,AMDAC - CARMICHAEL LTD,732056,167554.73
Ministry of Defence,Ministry of Defence,31/12/2010,Design services and minor equipment purchases,Defence Equipment & Support,AMETEK AIRTECHNOLOGY GROUP LIMITED,737674,15556.60
Ministry of Defence,Ministry of Defence,31/12/2010,Purchase of inventory and services ,Defence Equipment & Support,AMETEK AIRTECHNOLOGY GROUP LIMITED,737674,761.40
Ministry of Defence,Ministry of Defence,10/12/2010,Purchase of inventory and services ,Defence Equipment & Support,AMSAFE BRIDPORT LTD,730856,111357.68
Ministry of Defence,Ministry of Defence,31/12/2010,Purchase of inventory and services ,Defence Equipment & Support,AMSAFE BRIDPORT LTD,737675,56332.44
Ministry of Defence,Ministry of Defence,02/12/2010,Design services and minor equipment purchases,Defence Equipment & Support,ANGLOCO LTD,727532,30889.17
Ministry of Defence,Ministry of Defence,06/12/2010,Design services and minor equipment purchases,Defence Equipment & Support,ANGLOCO LTD,728589,29919.23
Ministry of Defence,Ministry of Defence,07/12/2010,Purchase of inventory and services ,Defence Equipment & Support,ANIXTER LIMITED,729167,114586.00
Ministry of Defence,Ministry of Defence,02/12/2010,Purchase of inventory and services ,Defence Equipment & Support,ANIXTER LIMITED,727533,43851.37
Ministry of Defence,Ministry of Defence,17/12/2010,Purchase of inventory and services ,Defence Equipment & Support,ANIXTER LIMITED,733939,29472.96
Ministry of Defence,Ministry of Defence,22/12/2010,Rent and rates,Defence Estates,ANNINGTON PROPERTY LTD,735852,39152289.63
Ministry of Defence,United Kingdom Hydrographic Office,20/12/2010,Raw Material/ Finished Goods,Print & Supply,Antalis McNaughton,2000052172,35511.00
Ministry of Defence,Ministry of Defence,10/12/2010,Design services and minor equipment purchases,Defence Equipment & Support,ANTEON LIMITED,730861,16060.48
Ministry of Defence,Ministry of Defence,24/12/2010,Purchase of inventory and services ,Defence Equipment & Support,ANTEON LIMITED,737022,396274.86
Ministry of Defence,Defence Science and Technology Laboratory,22/12/2010,Capital Asset expenditure,Infrastructure,AP REFUNDS VENDOR,V - BGC071010 - 00098286,-36485.81
Ministry of Defence,Ministry of Defence,10/12/2010,Fuel for military use,Land Forces,ARAL DIREKT GMBH,5000046844,146755.74
Ministry of Defence,Ministry of Defence,22/12/2010,Estate management,Central TLB,ARAMARK LTD,735859,96164.29
Ministry of Defence,Ministry of Defence,15/12/2010,Estate management,Land Forces,ARAMARK LTD,732646,69622.82
Ministry of Defence,Ministry of Defence,23/12/2010,Estate management,Air Command,ARAMARK LTD,736461,42963.52
Ministry of Defence,Ministry of Defence,31/12/2010,Estate management,Defence Equipment & Support,ARAMARK LTD,737679,38259.28
Ministry of Defence,Ministry of Defence,09/12/2010,Estate management,Land Forces,ARAMARK LTD,730295,33594.61
Ministry of Defence,Ministry of Defence,02/12/2010,Estate management,Air Command,ARAMARK LTD,727537,26860.08
Ministry of Defence,Ministry of Defence,31/12/2010,Estate management,Air Command,ARAMARK LTD,737679,26860.08
Ministry of Defence,Ministry of Defence,03/12/2010,Estate management,Land Forces,ARAMARK LTD,728132,18176.98
Ministry of Defence,Ministry of Defence,22/12/2010,Estate management,Air Command,ARAMARK LTD,735859,18032.68
Ministry of Defence,Ministry of Defence,16/12/2010,Estate management,Land Forces,ARAMARK LTD,733318,4693.05
Ministry of Defence,Ministry of Defence,22/12/2010,Estate management,Navy Command,ARAMARK LTD,735859,2970.01
Ministry of Defence,Ministry of Defence,07/12/2010,Estate management,Land Forces,ARAMARK LTD,729174,721.47
Ministry of Defence,Ministry of Defence,23/12/2010,Estate management,Defence Estates,ARAMARK LTD,736461,496.80
Ministry of Defence,Ministry of Defence,02/12/2010,Estate management,Land Forces,ARAMARK LTD,727537,120.00
Ministry of Defence,Ministry of Defence,02/12/2010,Food and clothing,Air Command,ARAMARK LTD,727537,108496.56
Ministry of Defence,Ministry of Defence,09/12/2010,Food and clothing,Land Forces,ARAMARK LTD,730295,103332.69
Ministry of Defence,Ministry of Defence,15/12/2010,Food and clothing,Land Forces,ARAMARK LTD,732646,83852.41
Ministry of Defence,Ministry of Defence,03/12/2010,Food and clothing,Land Forces,ARAMARK LTD,728132,64709.69
Ministry of Defence,Ministry of Defence,09/12/2010,Food and clothing,Defence Equipment & Support,ARAMARK LTD,730295,51875.62
Ministry of Defence,Ministry of Defence,07/12/2010,Food and clothing,Land Forces,ARAMARK LTD,729174,51458.36
Ministry of Defence,Ministry of Defence,16/12/2010,Food and clothing,Land Forces,ARAMARK LTD,733318,33603.23
Ministry of Defence,Ministry of Defence,20/12/2010,Food and clothing,Defence Equipment & Support,ARAMARK LTD,734668,14516.52
Ministry of Defence,Ministry of Defence,02/12/2010,Food and clothing,Defence Equipment & Support,ARAMARK LTD,727537,409.40
Ministry of Defence,Ministry of Defence,23/12/2010,Payments on behalf of Defence Support Group,Central TLB,ARAMARK LTD,736461,843.17
Ministry of Defence,Ministry of Defence,15/12/2010,Purchase of inventory and services ,Air Command,ARAMARK LTD,732646,180.39
Ministry of Defence,Ministry of Defence,22/12/2010,"Transportation of personnel, freight and travel expenses",Navy Command,ARAMARK LTD,735859,311.99
Ministry of Defence,Ministry of Defence,15/12/2010,"Transportation of personnel, freight and travel expenses",Air Command,ARAMARK LTD,732646,203.75
Ministry of Defence,Ministry of Defence,23/12/2010,"Transportation of personnel, freight and travel expenses",Air Command,ARAMARK LTD,736461,202.32
Ministry of Defence,Ministry of Defence,20/12/2010,"Transportation of personnel, freight and travel expenses",Land Forces,ARAMARK LTD,734668,96.42
Ministry of Defence,Ministry of Defence,23/12/2010,Purchase of inventory and services ,Defence Equipment & Support,ARGUS FLUIDHANDLING LIMITED,736463,42799.60
Ministry of Defence,Ministry of Defence,14/12/2010,Rent and rates,Defence Estates,ARGYLL & BUTE COUNCIL,732069,69411.12
Ministry of Defence,Ministry of Defence,15/12/2010,Externally delivered education and training.,Land Forces,ARMY CATERING TRAINING TRUST,732647,36378.60
Ministry of Defence,Ministry of Defence,14/12/2010,Design services and minor equipment purchases,Land Forces,ARMY PARACHUTE AIRCRAFT COMPANY LIMITED,732070,22652.44
Ministry of Defence,Ministry of Defence,07/12/2010,Fuel for military use,Land Forces,ARVAL UK LTD,729177,430128.81
Ministry of Defence,Ministry of Defence,21/12/2010,Fuel for military use,Land Forces,ARVAL UK LTD,735391,363870.75
Ministry of Defence,Ministry of Defence,07/12/2010,Fuel for military use,Air Command,ARVAL UK LTD,729177,90126.33
Ministry of Defence,Ministry of Defence,21/12/2010,Fuel for military use,Air Command,ARVAL UK LTD,735391,78073.04
Ministry of Defence,Ministry of Defence,21/12/2010,Fuel for military use,Defence Equipment & Support,ARVAL UK LTD,735391,69770.13
Ministry of Defence,Ministry of Defence,07/12/2010,Fuel for military use,Defence Equipment & Support,ARVAL UK LTD,729177,65099.81
Ministry of Defence,Ministry of Defence,07/12/2010,Fuel for military use,Navy Command,ARVAL UK LTD,729177,56053.68
Ministry of Defence,Ministry of Defence,07/12/2010,Fuel for military use,Central TLB,ARVAL UK LTD,729177,51169.61
Ministry of Defence,Ministry of Defence,21/12/2010,Fuel for military use,Central TLB,ARVAL UK LTD,735391,51159.41
Ministry of Defence,Ministry of Defence,21/12/2010,Fuel for military use,Navy Command,ARVAL UK LTD,735391,43964.65
Ministry of Defence,Ministry of Defence,07/12/2010,Fuel for military use,Defence Estates,ARVAL UK LTD,729177,38801.77
Ministry of Defence,Ministry of Defence,21/12/2010,Fuel for military use,Defence Estates,ARVAL UK LTD,735391,33675.06
Ministry of Defence,Ministry of Defence,21/12/2010,Fuel for military use,Command Joint Operations,ARVAL UK LTD,735391,7182.97
Ministry of Defence,Ministry of Defence,07/12/2010,Fuel for military use,Command Joint Operations,ARVAL UK LTD,729177,6883.75
Ministry of Defence,Ministry of Defence,08/12/2010,Building maintenance and accommodation stores,Land Forces,ASPIRE DEFENCE LIMITED,729757,5439.83
Ministry of Defence,Ministry of Defence,01/12/2010,Design services and minor equipment purchases,Defence Equipment & Support,ASPIRE DEFENCE LIMITED,726878,1592.90
Ministry of Defence,Ministry of Defence,01/12/2010,Design services and minor equipment purchases,Air Command,ASPIRE DEFENCE LIMITED,726878,214.29
Ministry of Defence,Ministry of Defence,22/12/2010,Design services and minor equipment purchases,Air Command,ASPIRE DEFENCE LIMITED,735863,214.29
Ministry of Defence,Ministry of Defence,22/12/2010,Design services and minor equipment purchases,Defence Equipment & Support,ASPIRE DEFENCE LIMITED,735863,172.72
Ministry of Defence,Ministry of Defence,22/12/2010,Estate management,Land Forces,ASPIRE DEFENCE LIMITED,735863,67662.76
Ministry of Defence,Ministry of Defence,30/12/2010,Estate management,Land Forces,ASPIRE DEFENCE LIMITED,737464,58727.10
Ministry of Defence,Ministry of Defence,08/12/2010,Estate management,Land Forces,ASPIRE DEFENCE LIMITED,729757,16918.11
Ministry of Defence,Ministry of Defence,14/12/2010,Estate management,Land Forces,ASPIRE DEFENCE LIMITED,732074,13487.93
Ministry of Defence,Ministry of Defence,01/12/2010,Estate management,Land Forces,ASPIRE DEFENCE LIMITED,726878,13465.52
Ministry of Defence,Ministry of Defence,06/12/2010,Estate management,Land Forces,ASPIRE DEFENCE LIMITED,728596,1566.36
Ministry of Defence,Ministry of Defence,22/12/2010,Estate management,Defence Estates,ASPIRE DEFENCE LIMITED,735863,927.07
Ministry of Defence,Ministry of Defence,17/12/2010,Estate management,Land Forces,ASPIRE DEFENCE LIMITED,733948,918.50
Ministry of Defence,Ministry of Defence,01/12/2010,Estate management,Defence Estates,ASPIRE DEFENCE LIMITED,726878,69.64
Ministry of Defence,Ministry of Defence,01/12/2010,IT and communication services,Land Forces,ASPIRE DEFENCE LIMITED,726878,252.67
Ministry of Defence,Ministry of Defence,22/12/2010,IT and communication services,Land Forces,ASPIRE DEFENCE LIMITED,735863,252.67
Ministry of Defence,Ministry of Defence,06/12/2010,Miscellaneous Administration Costs,Land Forces,ASPIRE DEFENCE LIMITED,728596,5791.40
Ministry of Defence,Ministry of Defence,17/12/2010,Miscellaneous Administration Costs,Land Forces,ASPIRE DEFENCE LIMITED,733948,2487.88
Ministry of Defence,Ministry of Defence,17/12/2010,Miscellaneous Administration Costs,Defence Estates,ASPIRE DEFENCE LIMITED,733948,646.33
Ministry of Defence,Ministry of Defence,17/12/2010,Property leases,Land Forces,ASPIRE DEFENCE LIMITED,733948,16926189.57
Ministry of Defence,Ministry of Defence,08/12/2010,Property leases,Land Forces,ASPIRE DEFENCE LIMITED,729757,439239.80
Ministry of Defence,Ministry of Defence,22/12/2010,Property leases,Land Forces,ASPIRE DEFENCE LIMITED,735863,317917.22
Ministry of Defence,Ministry of Defence,30/12/2010,Property leases,Land Forces,ASPIRE DEFENCE LIMITED,737464,242893.90
Ministry of Defence,Ministry of Defence,01/12/2010,Property leases,Land Forces,ASPIRE DEFENCE LIMITED,726878,177699.77
Ministry of Defence,Ministry of Defence,06/12/2010,Property leases,Land Forces,ASPIRE DEFENCE LIMITED,728596,109459.50
Ministry of Defence,Ministry of Defence,14/12/2010,Property leases,Land Forces,ASPIRE DEFENCE LIMITED,732074,95864.62
Ministry of Defence,Ministry of Defence,15/12/2010,Property leases,Land Forces,ASPIRE DEFENCE LIMITED,732651,62532.54
Ministry of Defence,Ministry of Defence,10/12/2010,Property leases,Land Forces,ASPIRE DEFENCE LIMITED,730867,32190.81
Ministry of Defence,Ministry of Defence,02/12/2010,Property leases,Land Forces,ASPIRE DEFENCE LIMITED,727539,26002.67
Ministry of Defence,Ministry of Defence,30/12/2010,Purchase of buildings and military equipment ,Defence Equipment & Support,ASPIRE DEFENCE LIMITED,737464,174973.96
Ministry of Defence,Ministry of Defence,01/12/2010,Purchase of buildings and military equipment ,Defence Equipment & Support,ASPIRE DEFENCE LIMITED,726878,4766.86
Ministry of Defence,Ministry of Defence,22/12/2010,Purchase of buildings and military equipment ,Defence Equipment & Support,ASPIRE DEFENCE LIMITED,735863,4766.66
Ministry of Defence,Ministry of Defence,14/12/2010,Purchase of information and communications technology,Defence Equipment & Support,ASPIRE DEFENCE LIMITED,732074,59405.84
Ministry of Defence,Ministry of Defence,08/12/2010,Purchase of information and communications technology,Land Forces,ASPIRE DEFENCE LIMITED,729757,10883.91
Ministry of Defence,Ministry of Defence,01/12/2010,Purchase of information and communications technology,Defence Equipment & Support,ASPIRE DEFENCE LIMITED,726878,3352.66
Ministry of Defence,Ministry of Defence,22/12/2010,Purchase of information and communications technology,Defence Equipment & Support,ASPIRE DEFENCE LIMITED,735863,3352.66
Ministry of Defence,Ministry of Defence,21/12/2010,Design services and minor equipment purchases,Defence Equipment & Support,ATKINS LIMITED,735397,39700.00
Ministry of Defence,Defence Science and Technology Laboratory,22/12/2010,Other Services & Office costs,Corporate,ATKINSADVANTAGE TECHNICAL CONSULTING LIMITED,V - BGC141210 - 00098313,-28441.40
Ministry of Defence,Defence Science and Technology Laboratory,24/12/2010,Sub Contracted Research,Programme Office,ATLAS ELEKTRONIK UK LIMITED,V - 9000128831 - 00097841,162719.75
Ministry of Defence,Defence Science and Technology Laboratory,24/12/2010,Sub Contracted Research,Programme Office,ATLAS ELEKTRONIK UK LIMITED,V - 9000128831 - 00097843,65000.00
Ministry of Defence,Defence Science and Technology Laboratory,24/12/2010,Sub Contracted Research,Programme Office,ATLAS ELEKTRONIK UK LIMITED,V - 9000128831 - 00097840,40000.00
Ministry of Defence,Defence Science and Technology Laboratory,24/12/2010,Sub Contracted Research,Programme Office,ATLAS ELEKTRONIK UK LIMITED,V - 9000128831 - 00097842,32502.50
Ministry of Defence,Defence Science and Technology Laboratory,10/12/2010,Sub Contracted Work,Operations,ATLAS ELEKTRONIK UK LIMITED,V - 9000128401 - 00095272,55744.91
Ministry of Defence,Ministry of Defence,03/12/2010,IT and communication services,Defence Equipment & Support,ATOS ORIGIN UK LIMITED,155117,52640.50
Ministry of Defence,Defence Science and Technology Laboratory,17/12/2010,Sub Contracted Work,Operations,AUBURN UNIVERSITY,V - 0000000504 - 00097746,32173.39
Ministry of Defence,Ministry of Defence,07/12/2010,"Adminstration, claims, compensation and awards",Defence Equipment & Support,AVENANCE PLC,729182,1138.89
Ministry of Defence,Ministry of Defence,14/12/2010,Estate management,Land Forces,AVENANCE PLC,732079,278198.05
Ministry of Defence,Ministry of Defence,15/12/2010,Estate management,Land Forces,AVENANCE PLC,732656,87691.97
Ministry of Defence,Ministry of Defence,14/12/2010,Estate management,Air Command,AVENANCE PLC,732079,87625.22
Ministry of Defence,Ministry of Defence,07/12/2010,Estate management,Land Forces,AVENANCE PLC,729182,35303.43
Ministry of Defence,Ministry of Defence,08/12/2010,Estate management,Land Forces,AVENANCE PLC,729761,18357.60
Ministry of Defence,Ministry of Defence,14/12/2010,Estate management,Defence Equipment & Support,AVENANCE PLC,732079,16192.23
Ministry of Defence,Ministry of Defence,08/12/2010,Estate management,Defence Estates,AVENANCE PLC,729761,750.43
Ministry of Defence,Ministry of Defence,15/12/2010,Estate management,Defence Equipment & Support,AVENANCE PLC,732656,480.32
Ministry of Defence,Ministry of Defence,15/12/2010,Estate management,Air Command,AVENANCE PLC,732656,230.79
Ministry of Defence,Ministry of Defence,14/12/2010,Estate management,Defence Estates,AVENANCE PLC,732079,208.12
Ministry of Defence,Ministry of Defence,08/12/2010,Estate management,Air Command,AVENANCE PLC,729761,71.09
Ministry of Defence,Ministry of Defence,15/12/2010,Estate management,Defence Estates,AVENANCE PLC,732656,24.02
Ministry of Defence,Ministry of Defence,14/12/2010,Food and clothing,Land Forces,AVENANCE PLC,732079,445566.81
Ministry of Defence,Ministry of Defence,15/12/2010,Food and clothing,Land Forces,AVENANCE PLC,732656,302084.50
Ministry of Defence,Ministry of Defence,14/12/2010,Food and clothing,Air Command,AVENANCE PLC,732079,202559.34
Ministry of Defence,Ministry of Defence,07/12/2010,Food and clothing,Land Forces,AVENANCE PLC,729182,112496.70
Ministry of Defence,Ministry of Defence,08/12/2010,Food and clothing,Land Forces,AVENANCE PLC,729761,56364.22
Ministry of Defence,Ministry of Defence,14/12/2010,Food and clothing,Defence Equipment & Support,AVENANCE PLC,732079,34488.92
Ministry of Defence,Ministry of Defence,14/12/2010,Food and clothing,Navy Command,AVENANCE PLC,732079,11.52
Ministry of Defence,Ministry of Defence,01/12/2010,Design services and minor equipment purchases,Defence Equipment & Support,AVIATION REQUIREMENTS LTD,726884,7960.00
Ministry of Defence,Ministry of Defence,24/12/2010,Purchase of inventory and services ,Defence Equipment & Support,AVON POLYMER PRODUCTS LTD,737028,441832.20
Ministry of Defence,Ministry of Defence,14/12/2010,Purchase of inventory and services ,Defence Equipment & Support,AVON POLYMER PRODUCTS LTD,732081,339229.55
Ministry of Defence,Defence Science and Technology Laboratory,10/12/2010,Sub Contracted Work,Programme Office,AWE,V - 9000128323 - 00095311,54801.80
Ministry of Defence,Ministry of Defence,20/12/2010,Insurance,Central TLB,AXA CORPORATE SOLUTIONS SERVICES UK LTD,734680,76577.70
Ministry of Defence,Ministry of Defence,14/12/2010,Rent and rates,Defence Estates,AYLESBURY VALE DISTRICT COUNCIL,732084,64054.90
Ministry of Defence,Ministry of Defence,31/12/2010,"Transportation of personnel, freight and travel expenses",Defence Equipment & Support,AZCOM BUSINESS SOLUTIONS LIMITED,737685,32045.00
Ministry of Defence,Ministry of Defence,02/12/2010,Design services and minor equipment purchases,Defence Equipment & Support,B M T DEFENCE SERVICES LTD,727552,3843.60
Ministry of Defence,Ministry of Defence,22/12/2010,Rent and rates,Air Command,BAA BUSINESS SUPPORT CENTRE  LIMITED,735867,33781.25
Ministry of Defence,Ministry of Defence,14/12/2010,Transport hire charges,Air Command,BABCOCK AEROSPACE LIMITED,732088,1523011.00
Ministry of Defence,Ministry of Defence,02/12/2010,Transport hire charges,Defence Equipment & Support,BABCOCK AEROSPACE LIMITED,727554,-294.57
Ministry of Defence,Ministry of Defence,09/12/2010,Estate management,Defence Estates,BABCOCK DYNCORP LIMITED,730308,5256672.85
Ministry of Defence,Ministry of Defence,06/12/2010,Estate management,Defence Estates,BABCOCK DYNCORP LIMITED,728607,2164449.00
Ministry of Defence,Ministry of Defence,30/12/2010,Purchase of inventory and services ,Defence Equipment & Support,BABCOCK INTERNATIONAL GROUP PLC,737472,237151.06
Ministry of Defence,Ministry of Defence,14/12/2010,Purchase of inventory and services ,Defence Equipment & Support,BABCOCK INTERNATIONAL GROUP PLC,732090,175715.15
Ministry of Defence,Ministry of Defence,21/12/2010,Purchase of inventory and services ,Defence Equipment & Support,BABCOCK INTERNATIONAL GROUP PLC,735405,170651.95
Ministry of Defence,Ministry of Defence,07/12/2010,Purchase of inventory and services ,Defence Equipment & Support,BABCOCK INTERNATIONAL GROUP PLC,729188,168917.98
Ministry of Defence,Ministry of Defence,24/12/2010,Purchase of inventory and services ,Defence Equipment & Support,BABCOCK INTERNATIONAL GROUP PLC,737034,133626.60
Ministry of Defence,Ministry of Defence,06/12/2010,Purchase of inventory and services ,Defence Equipment & Support,BABCOCK INTERNATIONAL GROUP PLC,728610,58969.88
Ministry of Defence,Ministry of Defence,22/12/2010,Purchase of inventory and services ,Defence Equipment & Support,BABCOCK INTERNATIONAL GROUP PLC,735869,58745.47
Ministry of Defence,Ministry of Defence,08/12/2010,Purchase of inventory and services ,Defence Equipment & Support,BABCOCK INTERNATIONAL GROUP PLC,729764,52081.54
Ministry of Defence,Ministry of Defence,16/12/2010,Purchase of inventory and services ,Defence Equipment & Support,BABCOCK INTERNATIONAL GROUP PLC,733336,33896.15
Ministry of Defence,Ministry of Defence,09/12/2010,Purchase of inventory and services ,Defence Equipment & Support,BABCOCK INTERNATIONAL GROUP PLC,730309,31959.77
Ministry of Defence,Ministry of Defence,02/12/2010,Purchase of inventory and services ,Defence Equipment & Support,BABCOCK INTERNATIONAL GROUP PLC,727555,31078.26
Ministry of Defence,Ministry of Defence,17/12/2010,Purchase of inventory and services ,Defence Equipment & Support,BABCOCK INTERNATIONAL GROUP PLC,733958,26400.49
Ministry of Defence,Ministry of Defence,08/12/2010,Design services and minor equipment purchases,Land Forces,BABCOCK LAND (WHITEFLEET MANAGEMENT) LIMITED,729765,50286.02
Ministry of Defence,Ministry of Defence,30/12/2010,Design services and minor equipment purchases,Air Command,BABCOCK LAND (WHITEFLEET MANAGEMENT) LIMITED,737473,37247.16
Ministry of Defence,Ministry of Defence,30/12/2010,Design services and minor equipment purchases,Land Forces,BABCOCK LAND (WHITEFLEET MANAGEMENT) LIMITED,737473,36722.00
Ministry of Defence,Ministry of Defence,02/12/2010,Design services and minor equipment purchases,Land Forces,BABCOCK LAND (WHITEFLEET MANAGEMENT) LIMITED,727556,26285.65
Ministry of Defence,Ministry of Defence,14/12/2010,Design services and minor equipment purchases,Land Forces,BABCOCK LAND (WHITEFLEET MANAGEMENT) LIMITED,732091,23620.58
Ministry of Defence,Ministry of Defence,02/12/2010,Design services and minor equipment purchases,Air Command,BABCOCK LAND (WHITEFLEET MANAGEMENT) LIMITED,727556,16409.51
Ministry of Defence,Ministry of Defence,08/12/2010,Design services and minor equipment purchases,Air Command,BABCOCK LAND (WHITEFLEET MANAGEMENT) LIMITED,729765,13154.92
Ministry of Defence,Ministry of Defence,02/12/2010,Design services and minor equipment purchases,Navy Command,BABCOCK LAND (WHITEFLEET MANAGEMENT) LIMITED,727556,11922.05
Ministry of Defence,Ministry of Defence,14/12/2010,Design services and minor equipment purchases,Air Command,BABCOCK LAND (WHITEFLEET MANAGEMENT) LIMITED,732091,9000.53
Ministry of Defence,Ministry of Defence,17/12/2010,Design services and minor equipment purchases,Land Forces,BABCOCK LAND (WHITEFLEET MANAGEMENT) LIMITED,733959,8946.54
Ministry of Defence,Ministry of Defence,02/12/2010,Design services and minor equipment purchases,Defence Equipment & Support,BABCOCK LAND (WHITEFLEET MANAGEMENT) LIMITED,727556,7491.06
Ministry of Defence,Ministry of Defence,17/12/2010,Design services and minor equipment purchases,Defence Equipment & Support,BABCOCK LAND (WHITEFLEET MANAGEMENT) LIMITED,733959,7235.84
Ministry of Defence,Ministry of Defence,14/12/2010,Design services and minor equipment purchases,Defence Equipment & Support,BABCOCK LAND (WHITEFLEET MANAGEMENT) LIMITED,732091,6884.06
Ministry of Defence,Ministry of Defence,17/12/2010,Design services and minor equipment purchases,Central TLB,BABCOCK LAND (WHITEFLEET MANAGEMENT) LIMITED,733959,6597.78
Ministry of Defence,Ministry of Defence,08/12/2010,Design services and minor equipment purchases,Navy Command,BABCOCK LAND (WHITEFLEET MANAGEMENT) LIMITED,729765,4526.36
Ministry of Defence,Ministry of Defence,17/12/2010,Design services and minor equipment purchases,Air Command,BABCOCK LAND (WHITEFLEET MANAGEMENT) LIMITED,733959,4031.16
Ministry of Defence,Ministry of Defence,30/12/2010,Design services and minor equipment purchases,Defence Equipment & Support,BABCOCK LAND (WHITEFLEET MANAGEMENT) LIMITED,737473,3738.96
Ministry of Defence,Ministry of Defence,08/12/2010,Design services and minor equipment purchases,Defence Equipment & Support,BABCOCK LAND (WHITEFLEET MANAGEMENT) LIMITED,729765,3668.11
Ministry of Defence,Ministry of Defence,17/12/2010,Design services and minor equipment purchases,Navy Command,BABCOCK LAND (WHITEFLEET MANAGEMENT) LIMITED,733959,3491.95
Ministry of Defence,Ministry of Defence,08/12/2010,Design services and minor equipment purchases,Defence Estates,BABCOCK LAND (WHITEFLEET MANAGEMENT) LIMITED,729765,3422.96
Ministry of Defence,Ministry of Defence,17/12/2010,Design services and minor equipment purchases,Command Joint Operations,BABCOCK LAND (WHITEFLEET MANAGEMENT) LIMITED,733959,2848.61
Ministry of Defence,Ministry of Defence,14/12/2010,Design services and minor equipment purchases,Navy Command,BABCOCK LAND (WHITEFLEET MANAGEMENT) LIMITED,732091,2492.84
Ministry of Defence,Ministry of Defence,24/12/2010,Design services and minor equipment purchases,Land Forces,BABCOCK LAND (WHITEFLEET MANAGEMENT) LIMITED,737035,2151.23
Ministry of Defence,Ministry of Defence,24/12/2010,Design services and minor equipment purchases,Defence Equipment & Support,BABCOCK LAND (WHITEFLEET MANAGEMENT) LIMITED,737035,1514.31
Ministry of Defence,Ministry of Defence,30/12/2010,Design services and minor equipment purchases,Central TLB,BABCOCK LAND (WHITEFLEET MANAGEMENT) LIMITED,737473,946.44
Ministry of Defence,Ministry of Defence,30/12/2010,Design services and minor equipment purchases,Defence Estates,BABCOCK LAND (WHITEFLEET MANAGEMENT) LIMITED,737473,627.06
Ministry of Defence,Ministry of Defence,02/12/2010,Design services and minor equipment purchases,Central TLB,BABCOCK LAND (WHITEFLEET MANAGEMENT) LIMITED,727556,421.45
Ministry of Defence,Ministry of Defence,02/12/2010,Design services and minor equipment purchases,Defence Estates,BABCOCK LAND (WHITEFLEET MANAGEMENT) LIMITED,727556,360.14
Ministry of Defence,Ministry of Defence,30/12/2010,Design services and minor equipment purchases,Navy Command,BABCOCK LAND (WHITEFLEET MANAGEMENT) LIMITED,737473,242.73
Ministry of Defence,Ministry of Defence,24/12/2010,Design services and minor equipment purchases,Air Command,BABCOCK LAND (WHITEFLEET MANAGEMENT) LIMITED,737035,207.51
Ministry of Defence,Ministry of Defence,08/12/2010,Design services and minor equipment purchases,Central TLB,BABCOCK LAND (WHITEFLEET MANAGEMENT) LIMITED,729765,206.59
Ministry of Defence,Ministry of Defence,24/12/2010,Design services and minor equipment purchases,Central TLB,BABCOCK LAND (WHITEFLEET MANAGEMENT) LIMITED,737035,189.44
Ministry of Defence,Ministry of Defence,17/12/2010,Design services and minor equipment purchases,Defence Estates,BABCOCK LAND (WHITEFLEET MANAGEMENT) LIMITED,733959,94.25
Ministry of Defence,Ministry of Defence,14/12/2010,Design services and minor equipment purchases,Central TLB,BABCOCK LAND (WHITEFLEET MANAGEMENT) LIMITED,732091,70.01
Ministry of Defence,Ministry of Defence,13/12/2010,Design services and minor equipment purchases,Defence Estates,BABCOCK LAND (WHITEFLEET MANAGEMENT) LIMITED,731453,-56.60
Ministry of Defence,Ministry of Defence,13/12/2010,Design services and minor equipment purchases,Land Forces,BABCOCK LAND (WHITEFLEET MANAGEMENT) LIMITED,731453,-816.78
Ministry of Defence,Ministry of Defence,01/12/2010,Design services and minor equipment purchases,Land Forces,BABCOCK LAND (WHITEFLEET MANAGEMENT) LIMITED,726889,-3497.88
Ministry of Defence,Ministry of Defence,16/12/2010,Payments on behalf of Defence Support Group,Central TLB,BABCOCK LAND (WHITEFLEET MANAGEMENT) LIMITED,733337,9171.30
Ministry of Defence,Ministry of Defence,30/12/2010,Payments on behalf of Defence Support Group,Central TLB,BABCOCK LAND (WHITEFLEET MANAGEMENT) LIMITED,737473,3863.82
Ministry of Defence,Ministry of Defence,01/12/2010,Payments on behalf of Defence Support Group,Central TLB,BABCOCK LAND (WHITEFLEET MANAGEMENT) LIMITED,726889,2501.71
Ministry of Defence,Ministry of Defence,02/12/2010,Payments on behalf of Defence Support Group,Central TLB,BABCOCK LAND (WHITEFLEET MANAGEMENT) LIMITED,727556,260.97
Ministry of Defence,Ministry of Defence,16/12/2010,Transport hire charges,Land Forces,BABCOCK LAND (WHITEFLEET MANAGEMENT) LIMITED,733337,2445555.00
Ministry of Defence,Ministry of Defence,16/12/2010,Transport hire charges,Air Command,BABCOCK LAND (WHITEFLEET MANAGEMENT) LIMITED,733337,1840535.27
Ministry of Defence,Ministry of Defence,16/12/2010,Transport hire charges,Defence Equipment & Support,BABCOCK LAND (WHITEFLEET MANAGEMENT) LIMITED,733337,663433.46
Ministry of Defence,Ministry of Defence,16/12/2010,Transport hire charges,Navy Command,BABCOCK LAND (WHITEFLEET MANAGEMENT) LIMITED,733337,319533.71
Ministry of Defence,Ministry of Defence,13/12/2010,Transport hire charges,Land Forces,BABCOCK LAND (WHITEFLEET MANAGEMENT) LIMITED,731453,248953.42
Ministry of Defence,Ministry of Defence,24/12/2010,Transport hire charges,Land Forces,BABCOCK LAND (WHITEFLEET MANAGEMENT) LIMITED,737035,217758.38
Ministry of Defence,Ministry of Defence,17/12/2010,Transport hire charges,Land Forces,BABCOCK LAND (WHITEFLEET MANAGEMENT) LIMITED,733959,202359.72
Ministry of Defence,Ministry of Defence,01/12/2010,Transport hire charges,Land Forces,BABCOCK LAND (WHITEFLEET MANAGEMENT) LIMITED,726889,197712.67
Ministry of Defence,Ministry of Defence,02/12/2010,Transport hire charges,Land Forces,BABCOCK LAND (WHITEFLEET MANAGEMENT) LIMITED,727556,165618.41
Ministry of Defence,Ministry of Defence,16/12/2010,Transport hire charges,Defence Estates,BABCOCK LAND (WHITEFLEET MANAGEMENT) LIMITED,733337,110874.33
Ministry of Defence,Ministry of Defence,13/12/2010,Transport hire charges,Defence Equipment & Support,BABCOCK LAND (WHITEFLEET MANAGEMENT) LIMITED,731453,88833.99
Ministry of Defence,Ministry of Defence,30/12/2010,Transport hire charges,Land Forces,BABCOCK LAND (WHITEFLEET MANAGEMENT) LIMITED,737473,88440.32
Ministry of Defence,Ministry of Defence,01/12/2010,Transport hire charges,Defence Equipment & Support,BABCOCK LAND (WHITEFLEET MANAGEMENT) LIMITED,726889,81889.38
Ministry of Defence,Ministry of Defence,14/12/2010,Transport hire charges,Land Forces,BABCOCK LAND (WHITEFLEET MANAGEMENT) LIMITED,732091,81640.80
Ministry of Defence,Ministry of Defence,08/12/2010,Transport hire charges,Land Forces,BABCOCK LAND (WHITEFLEET MANAGEMENT) LIMITED,729765,76423.05
Ministry of Defence,Ministry of Defence,17/12/2010,Transport hire charges,Defence Equipment & Support,BABCOCK LAND (WHITEFLEET MANAGEMENT) LIMITED,733959,69625.88
Ministry of Defence,Ministry of Defence,24/12/2010,Transport hire charges,Defence Equipment & Support,BABCOCK LAND (WHITEFLEET MANAGEMENT) LIMITED,737035,59168.88
Ministry of Defence,Ministry of Defence,13/12/2010,Transport hire charges,Air Command,BABCOCK LAND (WHITEFLEET MANAGEMENT) LIMITED,731453,53409.98
Ministry of Defence,Ministry of Defence,16/12/2010,Transport hire charges,Central TLB,BABCOCK LAND (WHITEFLEET MANAGEMENT) LIMITED,733337,49351.01
Ministry of Defence,Ministry of Defence,01/12/2010,Transport hire charges,Air Command,BABCOCK LAND (WHITEFLEET MANAGEMENT) LIMITED,726889,34272.23
Ministry of Defence,Ministry of Defence,13/12/2010,Transport hire charges,Navy Command,BABCOCK LAND (WHITEFLEET MANAGEMENT) LIMITED,731453,32670.66
Ministry of Defence,Ministry of Defence,17/12/2010,Transport hire charges,Central TLB,BABCOCK LAND (WHITEFLEET MANAGEMENT) LIMITED,733959,31471.56
Ministry of Defence,Ministry of Defence,24/12/2010,Transport hire charges,Air Command,BABCOCK LAND (WHITEFLEET MANAGEMENT) LIMITED,737035,31346.89
Ministry of Defence,Ministry of Defence,17/12/2010,Transport hire charges,Air Command,BABCOCK LAND (WHITEFLEET MANAGEMENT) LIMITED,733959,29622.98
Ministry of Defence,Ministry of Defence,01/12/2010,Transport hire charges,Navy Command,BABCOCK LAND (WHITEFLEET MANAGEMENT) LIMITED,726889,26970.41
Ministry of Defence,Ministry of Defence,13/12/2010,Transport hire charges,Central TLB,BABCOCK LAND (WHITEFLEET MANAGEMENT) LIMITED,731453,25734.75
Ministry of Defence,Ministry of Defence,24/12/2010,Transport hire charges,Central TLB,BABCOCK LAND (WHITEFLEET MANAGEMENT) LIMITED,737035,22302.15
Ministry of Defence,Ministry of Defence,01/12/2010,Transport hire charges,Central TLB,BABCOCK LAND (WHITEFLEET MANAGEMENT) LIMITED,726889,21313.53
Ministry of Defence,Ministry of Defence,24/12/2010,Transport hire charges,Navy Command,BABCOCK LAND (WHITEFLEET MANAGEMENT) LIMITED,737035,20799.59
Ministry of Defence,Ministry of Defence,16/12/2010,Transport hire charges,Command Joint Operations,BABCOCK LAND (WHITEFLEET MANAGEMENT) LIMITED,733337,18893.25
Ministry of Defence,Ministry of Defence,17/12/2010,Transport hire charges,Navy Command,BABCOCK LAND (WHITEFLEET MANAGEMENT) LIMITED,733959,17828.74
Ministry of Defence,Ministry of Defence,13/12/2010,Transport hire charges,Defence Estates,BABCOCK LAND (WHITEFLEET MANAGEMENT) LIMITED,731453,12978.09
Ministry of Defence,Ministry of Defence,17/12/2010,Transport hire charges,Defence Estates,BABCOCK LAND (WHITEFLEET MANAGEMENT) LIMITED,733959,11372.61
Ministry of Defence,Ministry of Defence,30/12/2010,Transport hire charges,Central TLB,BABCOCK LAND (WHITEFLEET MANAGEMENT) LIMITED,737473,8867.07
Ministry of Defence,Ministry of Defence,08/12/2010,Transport hire charges,Air Command,BABCOCK LAND (WHITEFLEET MANAGEMENT) LIMITED,729765,7468.65
Ministry of Defence,Ministry of Defence,24/12/2010,Transport hire charges,Command Joint Operations,BABCOCK LAND (WHITEFLEET MANAGEMENT) LIMITED,737035,7280.78
Ministry of Defence,Ministry of Defence,24/12/2010,Transport hire charges,Defence Estates,BABCOCK LAND (WHITEFLEET MANAGEMENT) LIMITED,737035,7089.14
Ministry of Defence,Ministry of Defence,17/12/2010,Transport hire charges,Command Joint Operations,BABCOCK LAND (WHITEFLEET MANAGEMENT) LIMITED,733959,6880.15
Ministry of Defence,Ministry of Defence,01/12/2010,Transport hire charges,Defence Estates,BABCOCK LAND (WHITEFLEET MANAGEMENT) LIMITED,726889,6600.89
Ministry of Defence,Ministry of Defence,13/12/2010,Transport hire charges,Command Joint Operations,BABCOCK LAND (WHITEFLEET MANAGEMENT) LIMITED,731453,6449.34
Ministry of Defence,Ministry of Defence,01/12/2010,Transport hire charges,Command Joint Operations,BABCOCK LAND (WHITEFLEET MANAGEMENT) LIMITED,726889,4427.32
Ministry of Defence,Ministry of Defence,30/12/2010,Transport hire charges,Air Command,BABCOCK LAND (WHITEFLEET MANAGEMENT) LIMITED,737473,4399.29
Ministry of Defence,Ministry of Defence,08/12/2010,Transport hire charges,Navy Command,BABCOCK LAND (WHITEFLEET MANAGEMENT) LIMITED,729765,4177.52
Ministry of Defence,Ministry of Defence,30/12/2010,Transport hire charges,Navy Command,BABCOCK LAND (WHITEFLEET MANAGEMENT) LIMITED,737473,3540.60
Ministry of Defence,Ministry of Defence,02/12/2010,Transport hire charges,Defence Equipment & Support,BABCOCK LAND (WHITEFLEET MANAGEMENT) LIMITED,727556,2882.56
Ministry of Defence,Ministry of Defence,14/12/2010,Transport hire charges,Air Command,BABCOCK LAND (WHITEFLEET MANAGEMENT) LIMITED,732091,2402.40
Ministry of Defence,Ministry of Defence,08/12/2010,Transport hire charges,Defence Equipment & Support,BABCOCK LAND (WHITEFLEET MANAGEMENT) LIMITED,729765,2338.87
Ministry of Defence,Ministry of Defence,02/12/2010,Transport hire charges,Central TLB,BABCOCK LAND (WHITEFLEET MANAGEMENT) LIMITED,727556,2253.25
Ministry of Defence,Ministry of Defence,14/12/2010,Transport hire charges,Navy Command,BABCOCK LAND (WHITEFLEET MANAGEMENT) LIMITED,732091,2052.75
Ministry of Defence,Ministry of Defence,02/12/2010,Transport hire charges,Navy Command,BABCOCK LAND (WHITEFLEET MANAGEMENT) LIMITED,727556,1958.25
Ministry of Defence,Ministry of Defence,14/12/2010,Transport hire charges,Defence Equipment & Support,BABCOCK LAND (WHITEFLEET MANAGEMENT) LIMITED,732091,1771.35
Ministry of Defence,Ministry of Defence,02/12/2010,Transport hire charges,Air Command,BABCOCK LAND (WHITEFLEET MANAGEMENT) LIMITED,727556,1302.00
Ministry of Defence,Ministry of Defence,08/12/2010,Transport hire charges,Central TLB,BABCOCK LAND (WHITEFLEET MANAGEMENT) LIMITED,729765,1186.50
Ministry of Defence,Ministry of Defence,14/12/2010,Transport hire charges,Central TLB,BABCOCK LAND (WHITEFLEET MANAGEMENT) LIMITED,732091,1116.15
Ministry of Defence,Ministry of Defence,30/12/2010,Transport hire charges,Defence Equipment & Support,BABCOCK LAND (WHITEFLEET MANAGEMENT) LIMITED,737473,593.25
Ministry of Defence,Ministry of Defence,03/12/2010,Design services and minor equipment purchases,Navy Command,BABCOCK LAND LIMITED,728146,-3938.10
Ministry of Defence,Ministry of Defence,03/12/2010,Externally delivered education and training.,Air Command,BABCOCK LAND LIMITED,728146,1012227.34
Ministry of Defence,Ministry of Defence,23/12/2010,Externally delivered education and training.,Air Command,BABCOCK LAND LIMITED,736480,991165.42
Ministry of Defence,Ministry of Defence,06/12/2010,Externally delivered education and training.,Air Command,BABCOCK LAND LIMITED,728611,983346.84
Ministry of Defence,Ministry of Defence,14/12/2010,Externally delivered education and training.,Air Command,BABCOCK LAND LIMITED,732092,865151.59
Ministry of Defence,Ministry of Defence,01/12/2010,Externally delivered education and training.,Defence Equipment & Support,BABCOCK LAND LIMITED,155022,29474.85
Ministry of Defence,Ministry of Defence,14/12/2010,Externally delivered education and training.,Defence Equipment & Support,BABCOCK LAND LIMITED,732092,6066.72
Ministry of Defence,Ministry of Defence,14/12/2010,Externally delivered education and training.,Land Forces,BABCOCK LAND LIMITED,732092,3465.39
Ministry of Defence,Ministry of Defence,15/12/2010,Fees for professional services,Land Forces,BABCOCK LAND LIMITED,732660,568807.76
Ministry of Defence,Ministry of Defence,03/12/2010,Transport hire charges,Central TLB,BABCOCK LAND LIMITED,728146,-44.83
Ministry of Defence,Ministry of Defence,14/12/2010,Design services and minor equipment purchases,Defence Equipment & Support,BABCOCK MARINE (ROSYTH) LTD,732093,138392.52
Ministry of Defence,Ministry of Defence,22/12/2010,Nuclear decommissioning and restoration,Defence Equipment & Support,BABCOCK MARINE (ROSYTH) LTD,735871,148365.09
Ministry of Defence,Ministry of Defence,30/12/2010,Purchase of inventory and services ,Defence Equipment & Support,BABCOCK MARINE (ROSYTH) LTD,737475,208913.70
Ministry of Defence,Ministry of Defence,09/12/2010,Purchase of inventory and services ,Defence Equipment & Support,BABCOCK MARINE (ROSYTH) LTD,730312,132571.19
Ministry of Defence,Ministry of Defence,30/12/2010,Purchase of inventory and services ,Defence Equipment & Support,BABCOCK MARINE (ROSYTH) LTD,737476,102859.92
Ministry of Defence,Ministry of Defence,20/12/2010,Purchase of inventory and services ,Defence Equipment & Support,BABCOCK MARINE (ROSYTH) LTD,734685,87220.49
Ministry of Defence,Ministry of Defence,06/12/2010,Purchase of inventory and services ,Defence Equipment & Support,BABCOCK MARINE (ROSYTH) LTD,728612,48742.30
Ministry of Defence,Ministry of Defence,09/12/2010,Purchase of inventory and services ,Defence Equipment & Support,BABCOCK MARINE (ROSYTH) LTD,730313,26539.99
Ministry of Defence,Ministry of Defence,14/12/2010,Purchase of inventory and services ,Defence Equipment & Support,BABCOCK MARINE (ROSYTH) LTD,732093,16467.92
Ministry of Defence,Ministry of Defence,13/12/2010,Purchase of inventory and services ,Defence Equipment & Support,BABCOCK MARINE (ROSYTH) LTD,731456,958.21
Ministry of Defence,Defence Support Group,02/12/2010,Facilities Management,Business Stream 2,BABCOCK SUPPORT SERV,000000452435,10000.00
Ministry of Defence,Defence Support Group,02/12/2010,Facilities Management,Business Stream 2,BABCOCK SUPPORT SERV,000000452435,10000.00
Ministry of Defence,Defence Support Group,02/12/2010,Facilities Management,Business Stream 2,BABCOCK SUPPORT SERV,000000452435,8092.13
Ministry of Defence,Defence Support Group,02/12/2010,Facilities Management,Business Stream 2,BABCOCK SUPPORT SERV,000000452527,7701.77
Ministry of Defence,Defence Support Group,02/12/2010,Facilities Management,Business Stream 2,BABCOCK SUPPORT SERV,000000452527,3571.41
Ministry of Defence,Defence Support Group,02/12/2010,Facilities Management,Business Stream 2,BABCOCK SUPPORT SERV,000000452527,2624.92
Ministry of Defence,Defence Support Group,02/12/2010,Facilities Management,Business Stream 2,BABCOCK SUPPORT SERV,000000452527,1155.58
Ministry of Defence,Defence Support Group,02/12/2010,Facilities Management,Business Stream 2,BABCOCK SUPPORT SERV,000000452527,753.99
Ministry of Defence,Defence Support Group,02/12/2010,Facilities Management,Business Stream 2,BABCOCK SUPPORT SERV,000000452527,587.91
Ministry of Defence,Defence Support Group,02/12/2010,Facilities Management,Business Stream 2,BABCOCK SUPPORT SERV,000000452527,587.82
Ministry of Defence,Defence Support Group,02/12/2010,Facilities Management,Business Stream 2,BABCOCK SUPPORT SERV,000000452527,442.91
Ministry of Defence,Defence Support Group,02/12/2010,Facilities Management,Business Stream 2,BABCOCK SUPPORT SERV,000000452527,390.56
Ministry of Defence,Defence Support Group,02/12/2010,Facilities Management,Business Stream 2,BABCOCK SUPPORT SERV,000000452527,246.53
Ministry of Defence,Defence Support Group,02/12/2010,Facilities Management,Business Stream 2,BABCOCK SUPPORT SERV,000000452527,210.23
Ministry of Defence,Defence Support Group,02/12/2010,Facilities Management,Business Stream 2,BABCOCK SUPPORT SERV,000000452527,160.39
Ministry of Defence,Defence Support Group,02/12/2010,Facilities Management,Business Stream 2,BABCOCK SUPPORT SERV,000000452527,127.55
Ministry of Defence,Defence Support Group,02/12/2010,Facilities Management,Business Stream 2,BABCOCK SUPPORT SERV,000000452527,61.24
Ministry of Defence,Defence Support Group,02/12/2010,Facilities Management,Business Stream 2,BABCOCK SUPPORT SERV,000000452527,46.19
Ministry of Defence,Defence Support Group,02/12/2010,Facilities Management,Business Stream 2,BABCOCK SUPPORT SERV,000000452527,29.74
Ministry of Defence,Defence Support Group,16/12/2010,Oth facilities costs,Business Stream 2,BABCOCK SUPPORT SERV,000000454016,71125.59
Ministry of Defence,Defence Support Group,16/12/2010,Oth facilities costs,Business Stream 2,BABCOCK SUPPORT SERV,000000454015,32522.71
Ministry of Defence,Defence Support Group,16/12/2010,Oth facilities costs,Business Stream 2,BABCOCK SUPPORT SERV,000000454017,25436.16
Ministry of Defence,Defence Support Group,02/12/2010,Oth facilities costs,Business Stream 2,BABCOCK SUPPORT SERV,000000452276,22222.26
Ministry of Defence,Ministry of Defence,16/12/2010,Design services and minor equipment purchases,Air Command,BABCOCK SUPPORT SERVICES LIMITED,733341,425611.17
Ministry of Defence,Ministry of Defence,09/12/2010,Design services and minor equipment purchases,Air Command,BABCOCK SUPPORT SERVICES LIMITED,730314,153115.03
Ministry of Defence,Ministry of Defence,01/12/2010,Fees for professional services,Land Forces,BABCOCK SUPPORT SERVICES LIMITED,726894,32083.33
Ministry of Defence,Ministry of Defence,14/12/2010,Rent and rates,Defence Estates,BABERGH DISTRICT COUNCIL,732095,33501.71
Ministry of Defence,United Kingdom Hydrographic Office,17/12/2010,Computer maintenance & hire,ICT Delivery Business Group,BAE Systems,2000052143,106810.90
Ministry of Defence,Ministry of Defence,13/12/2010,Design services and minor equipment purchases,Defence Equipment & Support,BAE SYSTEMS (OPERATIONS) LIMITED,155322,263798.75
Ministry of Defence,Ministry of Defence,01/12/2010,Design services and minor equipment purchases,Defence Equipment & Support,BAE SYSTEMS (OPERATIONS) LIMITED,155023,232594.76
Ministry of Defence,Ministry of Defence,15/12/2010,Design services and minor equipment purchases,Defence Equipment & Support,BAE SYSTEMS (OPERATIONS) LIMITED,155389,192017.90
Ministry of Defence,Ministry of Defence,13/12/2010,Design services and minor equipment purchases,Defence Equipment & Support,BAE SYSTEMS (OPERATIONS) LIMITED,731463,9578.00
Ministry of Defence,Ministry of Defence,23/12/2010,Design services and minor equipment purchases,Defence Equipment & Support,BAE SYSTEMS (OPERATIONS) LIMITED,736489,6189.00
Ministry of Defence,Ministry of Defence,17/12/2010,Fuel for military use,Land Forces,BAE SYSTEMS (OPERATIONS) LIMITED,733966,667.03
Ministry of Defence,Ministry of Defence,30/12/2010,Purchase of inventory and services ,Defence Equipment & Support,BAE SYSTEMS (OPERATIONS) LIMITED,737477,54390.78
Ministry of Defence,Defence Science and Technology Laboratory,10/12/2010,Sub Contracted Research,Programme Office,BAE SYSTEMS (OPERATIONS) LIMITED,V - 9000128291 - 00094825,1250000.00
Ministry of Defence,Defence Science and Technology Laboratory,13/12/2010,Sub Contracted Research,Programme Office,BAE SYSTEMS (OPERATIONS) LIMITED,V - 9000128422 - 00097188,280414.42
Ministry of Defence,Defence Science and Technology Laboratory,13/12/2010,Sub Contracted Research,Programme Office,BAE SYSTEMS (OPERATIONS) LIMITED,V - 9000128422 - 00097181,212391.50
Ministry of Defence,Defence Science and Technology Laboratory,24/12/2010,Sub Contracted Research,Programme Office,BAE SYSTEMS (OPERATIONS) LIMITED,V - 9000128683 - 00095418,206885.00
Ministry of Defence,Defence Science and Technology Laboratory,10/12/2010,Sub Contracted Research,Programme Office,BAE SYSTEMS (OPERATIONS) LIMITED,V - 9000128291 - 00095406,50000.00
Ministry of Defence,Defence Science and Technology Laboratory,24/12/2010,Sub Contracted Research,Programme Office,BAE SYSTEMS (OPERATIONS) LIMITED,V - 9000128683 - 00097976,42705.50
Ministry of Defence,Defence Science and Technology Laboratory,24/12/2010,Sub Contracted Research,Programme Office,BAE SYSTEMS (OPERATIONS) LIMITED,V - 9000128683 - 00097975,25000.00
Ministry of Defence,Defence Science and Technology Laboratory,17/12/2010,Sub Contracted Research,Programme Office,BAE SYSTEMS (OPERATIONS) LIMITED,V - 9000128493 - 00097458,23892.34
Ministry of Defence,Defence Science and Technology Laboratory,10/12/2010,Sub Contracted Work,Operations,BAE SYSTEMS (OPERATIONS) LIMITED,V - 9000128290 - 00094178,264221.02
Ministry of Defence,Defence Science and Technology Laboratory,17/12/2010,Sub Contracted Work,Operations,BAE SYSTEMS (OPERATIONS) LIMITED,V - 9000128492 - 00097407,179774.03
Ministry of Defence,Defence Science and Technology Laboratory,10/12/2010,Sub Contracted Work,Operations,BAE SYSTEMS (OPERATIONS) LIMITED,V - 9000128289 - 00095142,57000.00
Ministry of Defence,Defence Science and Technology Laboratory,24/12/2010,Sub Contracted Work,Operations,BAE SYSTEMS (OPERATIONS) LIMITED,V - 9000128682 - 00097515,46339.00
Ministry of Defence,Defence Science and Technology Laboratory,10/12/2010,Sub Contracted Work,Operations,BAE SYSTEMS (OPERATIONS) LIMITED,V - 9000128289 - 00095915,34325.00
Ministry of Defence,Ministry of Defence,22/12/2010,Fuel for military use,Land Forces,BAE SYSTEMS ELECTRONICS LIMITED,735881,-667.03
Ministry of Defence,Ministry of Defence,30/12/2010,Design services and minor equipment purchases,Defence Equipment & Support,BAE SYSTEMS GLOBAL COMBAT SYSTEMS LIMITED,737479,8675.95
Ministry of Defence,Defence Science and Technology Laboratory,13/12/2010,Sub Contracted Research,Programme Office,BAE SYSTEMS INTEGRATED SYSTEM TECH. LIMITED.,V - 9000128426 - 00096510,38000.00
Ministry of Defence,Ministry of Defence,07/12/2010,Design services and minor equipment purchases,Defence Equipment & Support,BAE SYSTEMS INTEGRATED SYSTEM TECHNOLOGIES LIMITED,729194,300424.00
Ministry of Defence,Ministry of Defence,17/12/2010,Development costs for military equipment.,Defence Equipment & Support,BAE SYSTEMS INTEGRATED SYSTEM TECHNOLOGIES LIMITED,733973,2612260.00
Ministry of Defence,Ministry of Defence,07/12/2010,Purchase of buildings and military equipment ,Defence Equipment & Support,BAE SYSTEMS INTEGRATED SYSTEM TECHNOLOGIES LIMITED,729194,352500.00
Ministry of Defence,Ministry of Defence,07/12/2010,"Purchase of munitions, other inventory or fuel",Defence Equipment & Support,BAE SYSTEMS INTEGRATED SYSTEM TECHNOLOGIES LIMITED,729194,38354.35
Ministry of Defence,Ministry of Defence,20/12/2010,Service and civilian recruitment,Air Command,BAE SYSTEMS PLC,734697,45000.00
Ministry of Defence,Ministry of Defence,23/12/2010,Development costs for military equipment.,Defence Equipment & Support,BAE SYSTEMS SURFACE SHIPS PORTSMOUTH LIMITED,736498,25724.09
Ministry of Defence,Ministry of Defence,23/12/2010,Purchase of buildings and military equipment ,Defence Equipment & Support,BAE SYSTEMS SURFACE SHIPS PORTSMOUTH LIMITED,736498,137792.70
Ministry of Defence,Ministry of Defence,31/12/2010,Purchase of buildings and military equipment ,Defence Equipment & Support,BAE SYSTEMS SURFACE SHIPS PORTSMOUTH LIMITED,737691,7586.00
Ministry of Defence,Ministry of Defence,21/12/2010,Purchase of buildings and military equipment ,Defence Equipment & Support,BALTIC WHARF LIMITED,735419,35250.00
Ministry of Defence,Defence Science and Technology Laboratory,17/12/2010,Conferences & Catering,Programme Office,BARCLAYCARD,G - 9000128646 - 00097926,363.22
Ministry of Defence,Defence Science and Technology Laboratory,17/12/2010,Consumable Materials,Operations,BARCLAYCARD,G - 9000128646 - 00097926,28372.33
Ministry of Defence,Defence Science and Technology Laboratory,17/12/2010,Consumable Materials,Infrastructure,BARCLAYCARD,G - 9000128646 - 00097925,6032.42
Ministry of Defence,Defence Science and Technology Laboratory,17/12/2010,Consumable Materials,Corporate,BARCLAYCARD,G - 9000128646 - 00097925,1371.23
Ministry of Defence,Defence Science and Technology Laboratory,17/12/2010,Consumable Materials,Infrastructure,BARCLAYCARD,G - 9000128646 - 00097926,1198.66
Ministry of Defence,Defence Science and Technology Laboratory,17/12/2010,Contracted out Office Services,Operations,BARCLAYCARD,G - 9000128646 - 00097926,2605.00
Ministry of Defence,Defence Science and Technology Laboratory,17/12/2010,Contracted out Office Services,Infrastructure,BARCLAYCARD,G - 9000128646 - 00097926,73.49
Ministry of Defence,Defence Science and Technology Laboratory,17/12/2010,Energy & Utility,Operations,BARCLAYCARD,G - 9000128646 - 00097926,413.12
Ministry of Defence,Defence Science and Technology Laboratory,17/12/2010,Fees & Subscriptions,Infrastructure,BARCLAYCARD,G - 9000128646 - 00097926,308.00
Ministry of Defence,Defence Support Group,22/12/2010,GPC Control,Corporate,BARCLAYCARD,000000454858,204880.97
Ministry of Defence,Defence Science and Technology Laboratory,17/12/2010,IT Software,Operations,BARCLAYCARD,G - 9000128646 - 00097926,393.88
Ministry of Defence,Defence Science and Technology Laboratory,17/12/2010,Lease & Rental Payments,Operations,BARCLAYCARD,G - 9000128646 - 00097926,1885.09
Ministry of Defence,Defence Science and Technology Laboratory,17/12/2010,Materials & Equipment,Operations,BARCLAYCARD,G - 9000128646 - 00097926,111512.67
Ministry of Defence,Defence Science and Technology Laboratory,17/12/2010,Materials & Equipment,Infrastructure,BARCLAYCARD,G - 9000128646 - 00097926,471.91
Ministry of Defence,Defence Science and Technology Laboratory,17/12/2010,Materials & Equipment,Operations,BARCLAYCARD,G - 9000128646 - 00097927,13.23
Ministry of Defence,Defence Science and Technology Laboratory,17/12/2010,Other Services & Office costs,Operations,BARCLAYCARD,G - 9000128646 - 00097925,7605.04
Ministry of Defence,Defence Science and Technology Laboratory,17/12/2010,Other Services & Office costs,Operations,BARCLAYCARD,G - 9000128646 - 00097926,6100.47
Ministry of Defence,Defence Science and Technology Laboratory,17/12/2010,Other Services & Office costs,Programme Office,BARCLAYCARD,G - 9000128646 - 00097926,5211.78
Ministry of Defence,Defence Science and Technology Laboratory,17/12/2010,Professional Services,Operations,BARCLAYCARD,G - 9000128646 - 00097926,1687.70
Ministry of Defence,Defence Science and Technology Laboratory,17/12/2010,Publications/Subscriptions,Infrastructure,BARCLAYCARD,G - 9000128646 - 00097926,6294.91
Ministry of Defence,Defence Science and Technology Laboratory,17/12/2010,Publications/Subscriptions,Corporate,BARCLAYCARD,G - 9000128646 - 00097926,3688.00
Ministry of Defence,Defence Science and Technology Laboratory,17/12/2010,Publications/Subscriptions,Programme Office,BARCLAYCARD,G - 9000128646 - 00097926,1200.00
Ministry of Defence,Defence Science and Technology Laboratory,17/12/2010,Publications/Subscriptions,Operations,BARCLAYCARD,G - 9000128646 - 00097926,644.11
Ministry of Defence,Defence Science and Technology Laboratory,17/12/2010,Repairs & Maintenance,Operations,BARCLAYCARD,G - 9000128646 - 00097926,70.00
Ministry of Defence,Defence Science and Technology Laboratory,17/12/2010,Staff Expenditure,Operations,BARCLAYCARD,G - 9000128646 - 00097926,534.59
Ministry of Defence,Defence Science and Technology Laboratory,17/12/2010,Staff Training,Operations,BARCLAYCARD,G - 9000128646 - 00097926,38502.86
Ministry of Defence,Defence Science and Technology Laboratory,17/12/2010,Staff Training,Corporate,BARCLAYCARD,G - 9000128646 - 00097926,3892.07
Ministry of Defence,Defence Science and Technology Laboratory,17/12/2010,Staff Training,Infrastructure,BARCLAYCARD,G - 9000128646 - 00097926,3292.00
Ministry of Defence,Defence Science and Technology Laboratory,17/12/2010,Staff Training,Programme Office,BARCLAYCARD,G - 9000128646 - 00097926,242.25
Ministry of Defence,Defence Science and Technology Laboratory,17/12/2010,Stationery & Imagery,Operations,BARCLAYCARD,G - 9000128646 - 00097926,43.81
Ministry of Defence,Defence Science and Technology Laboratory,17/12/2010,Sub Contracted Work,Operations,BARCLAYCARD,G - 9000128646 - 00097926,421.77
Ministry of Defence,Defence Science and Technology Laboratory,17/12/2010,Travel and Subsistence,Operations,BARCLAYCARD,G - 9000128646 - 00097926,27474.95
Ministry of Defence,Defence Science and Technology Laboratory,17/12/2010,Travel and Subsistence,Operations,BARCLAYCARD,G - 9000128646 - 00097925,1637.02
Ministry of Defence,Defence Science and Technology Laboratory,17/12/2010,Travel and Subsistence,Infrastructure,BARCLAYCARD,G - 9000128647 - 00097928,650.85
Ministry of Defence,Defence Science and Technology Laboratory,17/12/2010,Travel and Subsistence,Corporate,BARCLAYCARD,G - 9000128646 - 00097926,136.04
Ministry of Defence,Defence Science and Technology Laboratory,17/12/2010,Travel and Subsistence,Infrastructure,BARCLAYCARD,G - 9000128646 - 00097926,67.91
Ministry of Defence,Defence Science and Technology Laboratory,17/12/2010,Travel and Subsistence,Programme Office,BARCLAYCARD,G - 9000128646 - 00097926,42.06
Ministry of Defence,Met Office,10/12/2010,Procurement Card,Other,Barclaycard Commercial,301310,130401.99
Ministry of Defence,Ministry of Defence,17/12/2010,Government Procurement Card,Ministry of Defence,BARCLAYS BANK PLC,10742/43,12121465.98
Ministry of Defence,Ministry of Defence,15/12/2010,Government Procurement Card,Ministry of Defence,BARCLAYS BANK PLC,10740,7144710.36
Ministry of Defence,Ministry of Defence,13/12/2010,Rental of plant and machinery,Defence Equipment & Support,BARLOWORLD HANDLING LTD,731474,804625.85
Ministry of Defence,Ministry of Defence,20/12/2010,Rental of plant and machinery,Defence Equipment & Support,BARLOWORLD HANDLING LTD,734701,456092.19
Ministry of Defence,Ministry of Defence,03/12/2010,Rental of plant and machinery,Defence Equipment & Support,BARLOWORLD HANDLING LTD,728158,54990.00
Ministry of Defence,Ministry of Defence,01/12/2010,Rental of plant and machinery,Defence Equipment & Support,BARLOWORLD HANDLING LTD,726906,24048.08
Ministry of Defence,Met Office,17/12/2010,Services,Government Business,Bbc,301355,237500.01
Ministry of Defence,Ministry of Defence,20/12/2010,Purchase of inventory and services ,Defence Equipment & Support,BEACON PRODUCTS LIMITED,734705,33636.96
Ministry of Defence,Ministry of Defence,24/12/2010,IT and communication services,Defence Equipment & Support,BEARINGPOINT LIMITED,737045,190072.26
Ministry of Defence,Ministry of Defence,13/12/2010,IT and communication services,Defence Equipment & Support,BEARINGPOINT LIMITED,731479,118763.20
Ministry of Defence,Ministry of Defence,14/12/2010,Payment of utilities,Land Forces,Belize Electricity Ltd,93,26115.32
Ministry of Defence,Ministry of Defence,17/12/2010,Externally delivered education and training.,Land Forces,BIG WHEELERS (SOUTH WALES)  LIMITED,733984,28605.00
Ministry of Defence,Ministry of Defence,06/12/2010,Rent and rates,Defence Estates,Bima,Cash Office 10,656703.54
Ministry of Defence,Ministry of Defence,06/12/2010,Rent and rates,Defence Estates,Bima,Cash Office 7,538413.90
Ministry of Defence,Ministry of Defence,06/12/2010,Rent and rates,Defence Estates,Bima,Cash Office 6,486088.69
Ministry of Defence,Ministry of Defence,06/12/2010,Rent and rates,Defence Estates,Bima,Cash Office 5,453956.95
Ministry of Defence,Ministry of Defence,06/12/2010,Rent and rates,Defence Estates,Bima,Cash Office 8,137080.18
Ministry of Defence,Ministry of Defence,06/12/2010,Rent and rates,Defence Estates,Bima,Cash Office 9,35198.10
Ministry of Defence,Ministry of Defence,06/12/2010,Rent and rates,Defence Estates,Bima,Cash Office 11,33039.27
Ministry of Defence,Ministry of Defence,06/12/2010,Rent and rates,Defence Estates,Bima,Cash Office 4,30087.70
Ministry of Defence,Defence Science and Technology Laboratory,24/12/2010,Materials & Equipment,Operations,BIRAL,V - 9000128715 - 00098016,57565.00
Ministry of Defence,Ministry of Defence,30/12/2010,Externally delivered education and training.,Land Forces,BLADERUNNER LTD,737484,31851.42
Ministry of Defence,Defence Science and Technology Laboratory,13/12/2010,Sub Contracted Work,Operations,BLASTECH LIMITED,V - 9000128447 - 00094267,50167.14
Ministry of Defence,Ministry of Defence,16/12/2010,Property leases,Land Forces,BLENCOWE SCAFFOLDING LTD,733362,29571.81
Ministry of Defence,Ministry of Defence,17/12/2010,Design services and minor equipment purchases,Land Forces,BLUE HELIX LTD,AP09 GPC 07,34509.59
Ministry of Defence,Ministry of Defence,17/12/2010,Design services and minor equipment purchases,Land Forces,BLUE HELIX LTD,AP09 GPC 09,33179.68
Ministry of Defence,Ministry of Defence,17/12/2010,Design services and minor equipment purchases,Land Forces,BLUE HELIX LTD,AP09 GPC 14,29519.31
Ministry of Defence,Ministry of Defence,17/12/2010,Design services and minor equipment purchases,Land Forces,BLUE HELIX LTD,AP09 GPC 17,25802.06
Ministry of Defence,Ministry of Defence,16/12/2010,Miscellaneous Administration Costs,Air Command,BOC LIMITED,733366,190.97
Ministry of Defence,Ministry of Defence,16/12/2010,Purchase of inventory and services ,Defence Equipment & Support,BOC LIMITED,733366,135808.62
Ministry of Defence,Ministry of Defence,07/12/2010,Purchase of inventory and services ,Air Command,BOC LIMITED,729207,62013.60
Ministry of Defence,Ministry of Defence,07/12/2010,Purchase of inventory and services ,Defence Equipment & Support,BOC LIMITED,729207,47449.50
Ministry of Defence,Ministry of Defence,07/12/2010,Purchase of inventory and services ,Land Forces,BOC LIMITED,729207,29771.38
Ministry of Defence,Ministry of Defence,07/12/2010,Purchase of inventory and services ,Command Joint Operations,BOC LIMITED,729207,21934.78
Ministry of Defence,Ministry of Defence,07/12/2010,Purchase of inventory and services ,Navy Command,BOC LIMITED,729207,11670.59
Ministry of Defence,Ministry of Defence,17/12/2010,Purchase of inventory and services ,Command Joint Operations,BOC LIMITED,733989,4379.13
Ministry of Defence,Ministry of Defence,17/12/2010,Purchase of inventory and services ,Land Forces,BOC LIMITED,733989,2496.48
Ministry of Defence,Ministry of Defence,17/12/2010,Purchase of inventory and services ,Air Command,BOC LIMITED,733989,2021.90
Ministry of Defence,Ministry of Defence,17/12/2010,Purchase of inventory and services ,Defence Equipment & Support,BOC LIMITED,733989,811.46
Ministry of Defence,Ministry of Defence,07/12/2010,Purchase of inventory and services ,Defence Estates,BOC LIMITED,729207,307.55
Ministry of Defence,Ministry of Defence,16/12/2010,Purchase of inventory and services ,Air Command,BOC LIMITED,733366,291.64
Ministry of Defence,Ministry of Defence,07/12/2010,Purchase of inventory and services ,Central TLB,BOC LIMITED,729207,286.74
Ministry of Defence,Ministry of Defence,17/12/2010,Purchase of inventory and services ,Navy Command,BOC LIMITED,733989,198.64
Ministry of Defence,Ministry of Defence,14/12/2010,Estate management,Defence Estates,Borchardt,Cash Office 19,89338.98
Ministry of Defence,Ministry of Defence,15/12/2010,Rent and rates,Defence Estates,BOROUGH COUNCIL OF KINGS LYNN & WEST NORFOLK,732695,64309.83
Ministry of Defence,Defence Science and Technology Laboratory,24/12/2010,Sub Contracted Work,Operations,BORWELL LIMITED,V - 9000128795 - 00097899,24129.85
Ministry of Defence,Ministry of Defence,16/12/2010,Estate management,Defence Estates,BOVIS LEND LEASE LIMITED,733367,126285.68
Ministry of Defence,Ministry of Defence,16/12/2010,Purchase of buildings and military equipment ,Defence Estates,BOVIS LEND LEASE LIMITED,733367,618623.69
Ministry of Defence,Ministry of Defence,09/12/2010,Fuel for military use,Air Command,BP INTERNATIONAL LIMITED,2000010241,45900.39
Ministry of Defence,Ministry of Defence,03/12/2010,Fuel for military use,Air Command,BP INTERNATIONAL LIMITED,2000010205,43332.05
Ministry of Defence,Ministry of Defence,21/12/2010,Fuel for military use,Air Command,BP INTERNATIONAL LIMITED,2000010353,12567.47
Ministry of Defence,Ministry of Defence,03/12/2010,Fuel for military use,Land Forces,BP INTERNATIONAL LIMITED,2000010205,3141.55
Ministry of Defence,Ministry of Defence,08/12/2010,"Purchase of munitions, other inventory or fuel",Defence Equipment & Support,BP MARINE LIMITED,729786,40811.13
Ministry of Defence,Ministry of Defence,06/12/2010,"Purchase of munitions, other inventory or fuel",Defence Equipment & Support,BP OIL INTERNATIONAL LIMITED,2000010213,3807258.28
Ministry of Defence,Ministry of Defence,23/12/2010,"Purchase of munitions, other inventory or fuel",Defence Equipment & Support,BP OIL INTERNATIONAL LIMITED,2000010375,801088.31
Ministry of Defence,Ministry of Defence,24/12/2010,Payment of utilities,Defence Equipment & Support,BP OIL UK LTD,737056,2981.19
Ministry of Defence,Reserve Forces and Cadets Associations,10/12/2010,Building maintenance and accommodation stores,Infrastructure,BPS Facilities Ltd,6101,38603.45
Ministry of Defence,Ministry of Defence,14/12/2010,Rent and rates,Defence Estates,BRACKNELL FOREST BOROUGH COUNCIL,732125,41153.30
Ministry of Defence,Ministry of Defence,14/12/2010,Rent and rates,Defence Estates,BRECKLAND COUNCIL,732128,32845.58
Ministry of Defence,Ministry of Defence,13/12/2010,Medical treatment & stores and welfare services.,Land Forces,BRIDGE STREET MEDICAL CENTRE,731492,29839.74
Ministry of Defence,Ministry of Defence,30/12/2010,Food and clothing,Land Forces,BRISTOL MANAGED SERVICES LTD,737487,60217.34
Ministry of Defence,Ministry of Defence,21/12/2010,Purchase of inventory and services ,Defence Equipment & Support,BRISTOL UNIFORMS LTD,735432,49327.59
Ministry of Defence,Ministry of Defence,08/12/2010,Payment of utilities,Land Forces,BRITISH GAS TRADING LIMITED,729794,138644.03
Ministry of Defence,Ministry of Defence,31/12/2010,Payment of utilities,Land Forces,BRITISH GAS TRADING LIMITED,737696,60384.99
Ministry of Defence,Ministry of Defence,24/12/2010,Payment of utilities,Land Forces,BRITISH GAS TRADING LIMITED,737064,44384.72
Ministry of Defence,Ministry of Defence,01/12/2010,Payment of utilities,Air Command,BRITISH GAS TRADING LIMITED,726928,29831.14
Ministry of Defence,Ministry of Defence,24/12/2010,Payment of utilities,Defence Estates,BRITISH GAS TRADING LIMITED,737064,10770.66
Ministry of Defence,Ministry of Defence,31/12/2010,Payment of utilities,Defence Estates,BRITISH GAS TRADING LIMITED,737696,10224.75
Ministry of Defence,Ministry of Defence,31/12/2010,Payment of utilities,Defence Equipment & Support,BRITISH GAS TRADING LIMITED,737696,1051.90
Ministry of Defence,Ministry of Defence,08/12/2010,Payment of utilities,Air Command,BRITISH GAS TRADING LIMITED,729794,213.64
Ministry of Defence,Ministry of Defence,24/12/2010,Payment of utilities,Defence Equipment & Support,BRITISH GAS TRADING LIMITED,737064,-1059.74
Ministry of Defence,Ministry of Defence,01/12/2010,Payment of utilities,Land Forces,BRITISH GAS TRADING LIMITED,726928,-2093.84
Ministry of Defence,Ministry of Defence,24/12/2010,Payment of utilities,Air Command,BRITISH GAS TRADING LIMITED,737064,-4535.41
Ministry of Defence,Ministry of Defence,01/12/2010,Payment of utilities,Defence Estates,BRITISH GAS TRADING LIMITED,726928,-6036.35
Ministry of Defence,Defence Support Group,16/12/2010,Telephone - Lines & Rental,Corporate,British Telecommunications PLC,10117023,76144.17
Ministry of Defence,Ministry of Defence,01/12/2010,"Transportation of personnel, freight and travel expenses",Land Forces,BROKMAN BUSREISEN GMBH,5000046313,73867.26
Ministry of Defence,Defence Science and Technology Laboratory,10/12/2010,Materials & Equipment,Operations,BRUKER DALTONICS LIMITED,V - 9000128341 - 00093417,34198.40
Ministry of Defence,Ministry of Defence,01/12/2010,Estate management,Defence Estates,BRYCE GARTEN & LANDSCHAFTSBAU,5000046314,42475.84
Ministry of Defence,Ministry of Defence,10/12/2010,Estate management,Defence Estates,BRYCE GARTEN & LANDSCHAFTSBAU,5000046852,41471.35
Ministry of Defence,Defence Science and Technology Laboratory,10/12/2010,Communications,Infrastructure,BT - DFTS,V - 9000128301 - 00096825,188985.87
Ministry of Defence,Defence Science and Technology Laboratory,17/12/2010,Communications,Infrastructure,BT - PP3B,V - 9000128580 - 00097616,251864.10
Ministry of Defence,United Kingdom Hydrographic Office,13/12/2010,Telecommunications - direct,ICT Delivery Business Group,BT PLC - DFTS,2000052058,21997.79
Ministry of Defence,Reserve Forces and Cadets Associations,07/09/2010,Building maintenance and accommodation stores,Infrastructure,BUILTH WELLS TOWN COUNCIL,6089/90,24858.00
Ministry of Defence,Ministry of Defence,15/12/2010,Estate management,Defence Estates,BUNDESFORSTBETRIEB LUNEBURGER HEIDE,5000047127,53389.83
Ministry of Defence,Ministry of Defence,20/12/2010,Estate management,Defence Equipment & Support,BUNDESWEHR DIENSTLEISTUNGSZENTRUM,5000047609,49348.20
Ministry of Defence,Ministry of Defence,20/12/2010,Payment of utilities,Defence Equipment & Support,BUNDESWEHR DIENSTLEISTUNGSZENTRUM,5000047609,3903.92
Ministry of Defence,Ministry of Defence,17/12/2010,Building maintenance and accommodation stores,Land Forces,BUNZL UK LIMITED,734014,4555.53
Ministry of Defence,Ministry of Defence,23/12/2010,Purchase of inventory and services ,Land Forces,BUNZL UK LIMITED,736520,41348.22
Ministry of Defence,Ministry of Defence,01/12/2010,Purchase of inventory and services ,Air Command,BUNZL UK LIMITED,726936,24123.42
Ministry of Defence,Ministry of Defence,23/12/2010,Purchase of inventory and services ,Defence Equipment & Support,BUNZL UK LIMITED,736520,23625.53
Ministry of Defence,Ministry of Defence,10/12/2010,Purchase of inventory and services ,Land Forces,BUNZL UK LIMITED,730917,12128.67
Ministry of Defence,Ministry of Defence,10/12/2010,Purchase of inventory and services ,Defence Equipment & Support,BUNZL UK LIMITED,730917,10376.74
Ministry of Defence,Ministry of Defence,23/12/2010,Purchase of inventory and services ,Command Joint Operations,BUNZL UK LIMITED,736520,10262.93
Ministry of Defence,Ministry of Defence,17/12/2010,Purchase of inventory and services ,Air Command,BUNZL UK LIMITED,734014,9811.93
Ministry of Defence,Ministry of Defence,10/12/2010,Purchase of inventory and services ,Air Command,BUNZL UK LIMITED,730917,9182.58
Ministry of Defence,Ministry of Defence,23/12/2010,Purchase of inventory and services ,Air Command,BUNZL UK LIMITED,736520,7574.55
Ministry of Defence,Ministry of Defence,01/12/2010,Purchase of inventory and services ,Land Forces,BUNZL UK LIMITED,726936,7177.78
Ministry of Defence,Ministry of Defence,17/12/2010,Purchase of inventory and services ,Land Forces,BUNZL UK LIMITED,734014,3885.59
Ministry of Defence,Ministry of Defence,17/12/2010,Purchase of inventory and services ,Defence Equipment & Support,BUNZL UK LIMITED,734014,3319.99
Ministry of Defence,Ministry of Defence,23/12/2010,Purchase of inventory and services ,Defence Estates,BUNZL UK LIMITED,736520,591.61
Ministry of Defence,Ministry of Defence,10/12/2010,Purchase of inventory and services ,Navy Command,BUNZL UK LIMITED,730917,567.14
Ministry of Defence,Ministry of Defence,01/12/2010,Purchase of inventory and services ,Defence Equipment & Support,BUNZL UK LIMITED,726936,402.32
Ministry of Defence,Ministry of Defence,17/12/2010,Purchase of inventory and services ,Navy Command,BUNZL UK LIMITED,734014,391.65
Ministry of Defence,Ministry of Defence,10/12/2010,Purchase of inventory and services ,Defence Estates,BUNZL UK LIMITED,730917,61.92
Ministry of Defence,Ministry of Defence,01/12/2010,Purchase of inventory and services ,Central TLB,BUNZL UK LIMITED,726936,53.64
Ministry of Defence,Ministry of Defence,22/12/2010,Research and development,Central TLB,BUSINESS DEVELOPMENT ASIA LTD,735919,34184.09
Ministry of Defence,Ministry of Defence,14/12/2010,Transport hire charges,Land Forces,BUSVERKEHR OSTWESTFALEN GMBH,5000047044,1079676.11
Ministry of Defence,Ministry of Defence,14/12/2010,Transport hire charges,Central TLB,BUSVERKEHR OSTWESTFALEN GMBH,5000047044,1927.97
Ministry of Defence,Ministry of Defence,14/12/2010,Transport hire charges,Defence Estates,BUSVERKEHR OSTWESTFALEN GMBH,5000047044,131.93
Ministry of Defence,Ministry of Defence,31/12/2010,Purchase of inventory and services ,Defence Equipment & Support,C F ANDERSON & SON LIMITED,737698,39870.34
Ministry of Defence,Ministry of Defence,14/12/2010,Purchase of inventory and services ,Defence Equipment & Support,C F ANDERSON & SON LIMITED,732150,30376.84
Ministry of Defence,Ministry of Defence,31/12/2010,Purchase of inventory and services ,Defence Estates,C F ANDERSON & SON LIMITED,737698,13209.66
Ministry of Defence,Ministry of Defence,31/12/2010,Purchase of inventory and services ,Land Forces,C F ANDERSON & SON LIMITED,737698,4166.28
Ministry of Defence,Ministry of Defence,31/12/2010,Purchase of inventory and services ,Navy Command,C F ANDERSON & SON LIMITED,737698,91.20
Ministry of Defence,Ministry of Defence,14/12/2010,Purchase of inventory and services ,Air Command,C F ANDERSON & SON LIMITED,732150,19.98
Ministry of Defence,Ministry of Defence,20/12/2010,Food and clothing,Land Forces,C V FITNESS LTD,734740,39220.24
Ministry of Defence,Ministry of Defence,20/12/2010,Purchase of inventory and services ,Defence Equipment & Support,C V FITNESS LTD,734740,1280.75
Ministry of Defence,Ministry of Defence,17/12/2010,Design services and minor equipment purchases,Defence Equipment & Support,CAE (UK) PLC,734019,19800.00
Ministry of Defence,Ministry of Defence,14/12/2010,Payment of utilities,Land Forces,CALOR GAS LIMITED,732153,70.50
Ministry of Defence,Ministry of Defence,14/12/2010,Payment of utilities,Defence Equipment & Support,CALOR GAS LIMITED,732153,14.40
Ministry of Defence,Ministry of Defence,16/12/2010,Purchase of inventory and services ,Defence Equipment & Support,CALUMET PHOTOGRAPHIC LTD,733383,508481.25
Ministry of Defence,Ministry of Defence,14/12/2010,"Transportation of personnel, freight and travel expenses",Land Forces,Canadian Pacific,60/61,305197.84
Ministry of Defence,Ministry of Defence,24/12/2010,"Adminstration, claims, compensation and awards",Land Forces,CANON (UK) LIMITED,737073,11547.13
Ministry of Defence,Ministry of Defence,10/12/2010,"Adminstration, claims, compensation and awards",Land Forces,CANON (UK) LIMITED,730923,8903.34
Ministry of Defence,Ministry of Defence,24/12/2010,"Adminstration, claims, compensation and awards",Air Command,CANON (UK) LIMITED,737073,2956.60
Ministry of Defence,Ministry of Defence,23/12/2010,"Adminstration, claims, compensation and awards",Land Forces,CANON (UK) LIMITED,736529,1995.10
Ministry of Defence,Ministry of Defence,10/12/2010,"Adminstration, claims, compensation and awards",Air Command,CANON (UK) LIMITED,730923,567.44
Ministry of Defence,Ministry of Defence,30/12/2010,"Adminstration, claims, compensation and awards",Land Forces,CANON (UK) LIMITED,737491,299.52
Ministry of Defence,Ministry of Defence,10/12/2010,"Adminstration, claims, compensation and awards",Defence Equipment & Support,CANON (UK) LIMITED,730923,182.08
Ministry of Defence,Ministry of Defence,23/12/2010,"Adminstration, claims, compensation and awards",Defence Equipment & Support,CANON (UK) LIMITED,736529,119.16
Ministry of Defence,Ministry of Defence,24/12/2010,Design services and minor equipment purchases,Land Forces,CANON (UK) LIMITED,737073,5911.66
Ministry of Defence,Ministry of Defence,24/12/2010,Design services and minor equipment purchases,Defence Estates,CANON (UK) LIMITED,737073,2334.08
Ministry of Defence,Ministry of Defence,23/12/2010,Design services and minor equipment purchases,Land Forces,CANON (UK) LIMITED,736529,1375.47
Ministry of Defence,Ministry of Defence,10/12/2010,Design services and minor equipment purchases,Defence Equipment & Support,CANON (UK) LIMITED,730923,837.30
Ministry of Defence,Ministry of Defence,14/12/2010,Design services and minor equipment purchases,Defence Equipment & Support,CANON (UK) LIMITED,732157,705.00
Ministry of Defence,Ministry of Defence,10/12/2010,Design services and minor equipment purchases,Command Joint Operations,CANON (UK) LIMITED,730923,277.26
Ministry of Defence,Ministry of Defence,30/12/2010,Design services and minor equipment purchases,Land Forces,CANON (UK) LIMITED,737491,258.34
Ministry of Defence,Ministry of Defence,10/12/2010,Design services and minor equipment purchases,Land Forces,CANON (UK) LIMITED,730923,244.71
Ministry of Defence,Ministry of Defence,24/12/2010,Estate management,Land Forces,CANON (UK) LIMITED,737073,9647.48
Ministry of Defence,Ministry of Defence,24/12/2010,Estate management,Air Command,CANON (UK) LIMITED,737073,5993.74
Ministry of Defence,Ministry of Defence,23/12/2010,Estate management,Air Command,CANON (UK) LIMITED,736529,3715.87
Ministry of Defence,Ministry of Defence,10/12/2010,Estate management,Air Command,CANON (UK) LIMITED,730923,2849.22
Ministry of Defence,Ministry of Defence,30/12/2010,Estate management,Land Forces,CANON (UK) LIMITED,737491,2825.98
Ministry of Defence,Ministry of Defence,10/12/2010,Estate management,Land Forces,CANON (UK) LIMITED,730923,2219.86
Ministry of Defence,Ministry of Defence,23/12/2010,Estate management,Land Forces,CANON (UK) LIMITED,736529,2045.02
Ministry of Defence,Ministry of Defence,10/12/2010,Estate management,Defence Estates,CANON (UK) LIMITED,730923,848.88
Ministry of Defence,Ministry of Defence,23/12/2010,Estate management,Defence Estates,CANON (UK) LIMITED,736529,571.86
Ministry of Defence,Ministry of Defence,30/12/2010,Estate management,Defence Estates,CANON (UK) LIMITED,737491,339.16
Ministry of Defence,Ministry of Defence,24/12/2010,Estate management,Navy Command,CANON (UK) LIMITED,737073,302.99
Ministry of Defence,Ministry of Defence,30/12/2010,Estate management,Defence Equipment & Support,CANON (UK) LIMITED,737491,228.77
Ministry of Defence,Ministry of Defence,10/12/2010,Estate management,Navy Command,CANON (UK) LIMITED,730923,162.78
Ministry of Defence,Ministry of Defence,10/12/2010,Estate management,Central TLB,CANON (UK) LIMITED,730923,155.47
Ministry of Defence,Ministry of Defence,24/12/2010,Estate management,Defence Equipment & Support,CANON (UK) LIMITED,737073,72.81
Ministry of Defence,Ministry of Defence,10/12/2010,Food and clothing,Land Forces,CANON (UK) LIMITED,730923,355.70
Ministry of Defence,Ministry of Defence,10/12/2010,Food and clothing,Air Command,CANON (UK) LIMITED,730923,192.37
Ministry of Defence,Ministry of Defence,10/12/2010,General services and support,Land Forces,CANON (UK) LIMITED,730923,17472.64
Ministry of Defence,Ministry of Defence,30/12/2010,General services and support,Land Forces,CANON (UK) LIMITED,5000047802,12254.80
Ministry of Defence,Ministry of Defence,23/12/2010,General services and support,Air Command,CANON (UK) LIMITED,736529,9042.05
Ministry of Defence,Ministry of Defence,24/12/2010,General services and support,Air Command,CANON (UK) LIMITED,737073,2972.35
Ministry of Defence,Ministry of Defence,10/12/2010,General services and support,Air Command,CANON (UK) LIMITED,730923,610.35
Ministry of Defence,Ministry of Defence,24/12/2010,General services and support,Land Forces,CANON (UK) LIMITED,737073,486.12
Ministry of Defence,Ministry of Defence,23/12/2010,General services and support,Defence Equipment & Support,CANON (UK) LIMITED,736529,425.04
Ministry of Defence,Ministry of Defence,24/12/2010,General services and support,Navy Command,CANON (UK) LIMITED,737073,317.10
Ministry of Defence,Ministry of Defence,10/12/2010,General services and support,Defence Equipment & Support,CANON (UK) LIMITED,730923,62.28
Ministry of Defence,Ministry of Defence,24/12/2010,IT and communication services,Air Command,CANON (UK) LIMITED,737073,4261.41
Ministry of Defence,Ministry of Defence,10/12/2010,IT and communication services,Land Forces,CANON (UK) LIMITED,730923,2924.24
Ministry of Defence,Ministry of Defence,24/12/2010,IT and communication services,Land Forces,CANON (UK) LIMITED,737073,709.06
Ministry of Defence,Ministry of Defence,24/12/2010,IT and communication services,Central TLB,CANON (UK) LIMITED,737073,397.40
Ministry of Defence,Ministry of Defence,10/12/2010,IT and communication services,Central TLB,CANON (UK) LIMITED,730923,267.06
Ministry of Defence,Ministry of Defence,30/12/2010,IT and communication services,Land Forces,CANON (UK) LIMITED,737491,177.11
Ministry of Defence,Ministry of Defence,23/12/2010,IT and communication services,Defence Equipment & Support,CANON (UK) LIMITED,736529,105.69
Ministry of Defence,Ministry of Defence,10/12/2010,IT and communication services,Defence Equipment & Support,CANON (UK) LIMITED,730923,19.64
Ministry of Defence,Ministry of Defence,24/12/2010,Miscellaneous Administration Costs,Central TLB,CANON (UK) LIMITED,737073,4642.26
Ministry of Defence,Ministry of Defence,24/12/2010,Miscellaneous Administration Costs,Defence Equipment & Support,CANON (UK) LIMITED,737073,2336.87
Ministry of Defence,Ministry of Defence,24/12/2010,Miscellaneous Administration Costs,Land Forces,CANON (UK) LIMITED,737073,1851.85
Ministry of Defence,Ministry of Defence,24/12/2010,Miscellaneous Administration Costs,Defence Estates,CANON (UK) LIMITED,737073,1768.82
Ministry of Defence,Ministry of Defence,24/12/2010,Miscellaneous Administration Costs,Air Command,CANON (UK) LIMITED,737073,598.81
Ministry of Defence,Ministry of Defence,10/12/2010,Miscellaneous Administration Costs,Air Command,CANON (UK) LIMITED,730923,391.47
Ministry of Defence,Ministry of Defence,10/12/2010,Miscellaneous Administration Costs,Defence Estates,CANON (UK) LIMITED,730923,201.04
Ministry of Defence,Ministry of Defence,23/12/2010,Miscellaneous Administration Costs,Air Command,CANON (UK) LIMITED,736529,175.69
Ministry of Defence,Ministry of Defence,10/12/2010,Miscellaneous Administration Costs,Central TLB,CANON (UK) LIMITED,730923,150.04
Ministry of Defence,Ministry of Defence,10/12/2010,Miscellaneous Administration Costs,Land Forces,CANON (UK) LIMITED,730923,22.10
Ministry of Defence,Ministry of Defence,24/12/2010,Payments on behalf of Defence Support Group,Central TLB,CANON (UK) LIMITED,737073,1478.66
Ministry of Defence,Ministry of Defence,10/12/2010,Payments on behalf of Defence Support Group,Central TLB,CANON (UK) LIMITED,730923,362.75
Ministry of Defence,Ministry of Defence,30/12/2010,Payments on behalf of Defence Support Group,Central TLB,CANON (UK) LIMITED,737491,186.75
Ministry of Defence,Ministry of Defence,23/12/2010,Payments on behalf of Defence Support Group,Central TLB,CANON (UK) LIMITED,736529,116.57
Ministry of Defence,Ministry of Defence,24/12/2010,Purchase of inventory and services ,Land Forces,CANON (UK) LIMITED,737073,48036.25
Ministry of Defence,Ministry of Defence,30/12/2010,Purchase of inventory and services ,Land Forces,CANON (UK) LIMITED,737491,34559.24
Ministry of Defence,Ministry of Defence,21/12/2010,Purchase of inventory and services ,Defence Equipment & Support,CANON (UK) LIMITED,735449,31530.41
Ministry of Defence,Ministry of Defence,24/12/2010,Purchase of inventory and services ,Air Command,CANON (UK) LIMITED,737073,21328.91
Ministry of Defence,Ministry of Defence,10/12/2010,Purchase of inventory and services ,Land Forces,CANON (UK) LIMITED,730923,16344.45
Ministry of Defence,Ministry of Defence,23/12/2010,Purchase of inventory and services ,Land Forces,CANON (UK) LIMITED,736529,13094.10
Ministry of Defence,Ministry of Defence,24/12/2010,Purchase of inventory and services ,Central TLB,CANON (UK) LIMITED,737073,7543.28
Ministry of Defence,Ministry of Defence,24/12/2010,Purchase of inventory and services ,Defence Equipment & Support,CANON (UK) LIMITED,737073,7308.90
Ministry of Defence,Ministry of Defence,30/12/2010,Purchase of inventory and services ,Air Command,CANON (UK) LIMITED,737491,7163.65
Ministry of Defence,Ministry of Defence,30/12/2010,Purchase of inventory and services ,Defence Equipment & Support,CANON (UK) LIMITED,5000047802,4459.47
Ministry of Defence,Ministry of Defence,10/12/2010,Purchase of inventory and services ,Air Command,CANON (UK) LIMITED,730923,4393.06
Ministry of Defence,Ministry of Defence,10/12/2010,Purchase of inventory and services ,Defence Equipment & Support,CANON (UK) LIMITED,730923,3973.58
Ministry of Defence,Ministry of Defence,24/12/2010,Purchase of inventory and services ,Defence Estates,CANON (UK) LIMITED,737073,3396.47
Ministry of Defence,Ministry of Defence,10/12/2010,Purchase of inventory and services ,Central TLB,CANON (UK) LIMITED,730923,3206.09
Ministry of Defence,Ministry of Defence,30/12/2010,Purchase of inventory and services ,Land Forces,CANON (UK) LIMITED,5000047802,2574.66
Ministry of Defence,Ministry of Defence,30/12/2010,Purchase of inventory and services ,Central TLB,CANON (UK) LIMITED,5000047802,2510.44
Ministry of Defence,Ministry of Defence,10/12/2010,Purchase of inventory and services ,Defence Estates,CANON (UK) LIMITED,730923,2463.64
Ministry of Defence,Ministry of Defence,23/12/2010,Purchase of inventory and services ,Defence Equipment & Support,CANON (UK) LIMITED,736529,2395.67
Ministry of Defence,Ministry of Defence,10/12/2010,Purchase of inventory and services ,Navy Command,CANON (UK) LIMITED,730923,2132.43
Ministry of Defence,Ministry of Defence,23/12/2010,Purchase of inventory and services ,Central TLB,CANON (UK) LIMITED,736529,1748.01
Ministry of Defence,Ministry of Defence,30/12/2010,Purchase of inventory and services ,Defence Estates,CANON (UK) LIMITED,5000047802,1236.76
Ministry of Defence,Ministry of Defence,24/12/2010,Purchase of inventory and services ,Navy Command,CANON (UK) LIMITED,737073,668.44
Ministry of Defence,Ministry of Defence,30/12/2010,Purchase of inventory and services ,Defence Equipment & Support,CANON (UK) LIMITED,737491,553.55
Ministry of Defence,Ministry of Defence,23/12/2010,Purchase of inventory and services ,Defence Estates,CANON (UK) LIMITED,736529,472.09
Ministry of Defence,Ministry of Defence,23/12/2010,Purchase of inventory and services ,Navy Command,CANON (UK) LIMITED,736529,421.91
Ministry of Defence,Ministry of Defence,14/12/2010,Purchase of inventory and services ,Central TLB,CANON (UK) LIMITED,732157,197.40
Ministry of Defence,Ministry of Defence,24/12/2010,"Purchase of major spares armaments, medical & general stores",Land Forces,CANON (UK) LIMITED,737073,287.80
Ministry of Defence,Ministry of Defence,24/12/2010,Rental of plant and machinery,Land Forces,CANON (UK) LIMITED,737073,17031.73
Ministry of Defence,Ministry of Defence,23/12/2010,Rental of plant and machinery,Land Forces,CANON (UK) LIMITED,736529,10706.13
Ministry of Defence,Ministry of Defence,30/12/2010,Rental of plant and machinery,Defence Estates,CANON (UK) LIMITED,5000047802,8275.84
Ministry of Defence,Ministry of Defence,10/12/2010,Rental of plant and machinery,Defence Equipment & Support,CANON (UK) LIMITED,730923,7963.56
Ministry of Defence,Ministry of Defence,24/12/2010,Rental of plant and machinery,Central TLB,CANON (UK) LIMITED,737073,5242.93
Ministry of Defence,Ministry of Defence,24/12/2010,Rental of plant and machinery,Defence Equipment & Support,CANON (UK) LIMITED,737073,5015.07
Ministry of Defence,Ministry of Defence,23/12/2010,Rental of plant and machinery,Defence Equipment & Support,CANON (UK) LIMITED,736529,2002.55
Ministry of Defence,Ministry of Defence,10/12/2010,Rental of plant and machinery,Land Forces,CANON (UK) LIMITED,730923,1883.42
Ministry of Defence,Ministry of Defence,24/12/2010,Rental of plant and machinery,Air Command,CANON (UK) LIMITED,737073,1047.29
Ministry of Defence,Ministry of Defence,10/12/2010,Rental of plant and machinery,Central TLB,CANON (UK) LIMITED,730923,238.14
Ministry of Defence,Ministry of Defence,10/12/2010,Rental of plant and machinery,Defence Estates,CANON (UK) LIMITED,730923,202.28
Ministry of Defence,Ministry of Defence,14/12/2010,Rent and rates,Defence Estates,CANTERBURY CITY COUNCIL,732158,28462.09
Ministry of Defence,Ministry of Defence,23/12/2010,IT and communication services,Defence Equipment & Support,CAPGEMINI UK PLC,736530,736948.50
Ministry of Defence,Ministry of Defence,06/12/2010,IT and communication services,Defence Equipment & Support,CAPGEMINI UK PLC,728661,698423.50
Ministry of Defence,Ministry of Defence,22/12/2010,IT and communication services,Defence Equipment & Support,CAPGEMINI UK PLC,735925,96650.00
Ministry of Defence,Ministry of Defence,10/12/2010,IT and communication services,Defence Equipment & Support,CAPGEMINI UK PLC,730924,44345.00
Ministry of Defence,Ministry of Defence,22/12/2010,Research and development,Defence Equipment & Support,CAPGEMINI UK PLC,735925,102400.00
Ministry of Defence,Ministry of Defence,07/12/2010,Rent and rates,Land Forces,CAPITAL SHOPPING CENTRES PLC,729232,26090.58
Ministry of Defence,Ministry of Defence,20/12/2010,Medical treatment & stores and welfare services.,Central TLB,CARDIFF AND VALE UNIVERSITY LOCAL HEALTH BOARD,734752,50575.00
Ministry of Defence,Ministry of Defence,22/12/2010,Purchase of inventory and services ,Defence Equipment & Support,CAREFUSION U.K. 306 LIMITED,155609,45573.27
Ministry of Defence,Ministry of Defence,17/12/2010,Externally delivered education and training.,Navy Command,CARLISLE STAFFING PLC,734030,44812.85
Ministry of Defence,Ministry of Defence,01/12/2010,Design services and minor equipment purchases,Defence Equipment & Support,CARMICHAEL SUPPORT SERVICES  LIMITED,726951,53869.60
Ministry of Defence,Ministry of Defence,15/12/2010,Payment of utilities,Central TLB,CARNIVAL PLC,732724,173068.10
Ministry of Defence,Defence Science and Technology Laboratory,24/12/2010,Staff Relocation Costs,Corporate,CARTUS LIMITED,V - 9000128841 - 00097138,50000.00
Ministry of Defence,Ministry of Defence,09/12/2010,"Transportation of personnel, freight and travel expenses",Defence Equipment & Support,CARTUS LTD,730369,68463.30
Ministry of Defence,Ministry of Defence,10/12/2010,"Transportation of personnel, freight and travel expenses",Defence Equipment & Support,CARTUS LTD,730932,57591.50
Ministry of Defence,Ministry of Defence,06/12/2010,"Transportation of personnel, freight and travel expenses",Central TLB,CARTUS LTD,728666,54291.10
Ministry of Defence,Ministry of Defence,07/12/2010,"Transportation of personnel, freight and travel expenses",Defence Equipment & Support,CARTUS LTD,729236,51831.02
Ministry of Defence,Ministry of Defence,06/12/2010,"Transportation of personnel, freight and travel expenses",Defence Equipment & Support,CARTUS LTD,728666,30782.81
Ministry of Defence,Ministry of Defence,10/12/2010,"Transportation of personnel, freight and travel expenses",Central TLB,CARTUS LTD,730932,17346.26
Ministry of Defence,Ministry of Defence,20/12/2010,"Transportation of personnel, freight and travel expenses",Central TLB,CARTUS LTD,734754,16405.95
Ministry of Defence,Ministry of Defence,10/12/2010,"Transportation of personnel, freight and travel expenses",Defence Estates,CARTUS LTD,730932,12344.18
Ministry of Defence,Ministry of Defence,20/12/2010,"Transportation of personnel, freight and travel expenses",Defence Equipment & Support,CARTUS LTD,734754,11792.08
Ministry of Defence,Ministry of Defence,24/12/2010,"Transportation of personnel, freight and travel expenses",Defence Equipment & Support,CARTUS LTD,737077,11150.58
Ministry of Defence,Ministry of Defence,10/12/2010,"Transportation of personnel, freight and travel expenses",Command Joint Operations,CARTUS LTD,730932,8592.50
Ministry of Defence,Ministry of Defence,24/12/2010,"Transportation of personnel, freight and travel expenses",Central TLB,CARTUS LTD,737077,8252.68
Ministry of Defence,Ministry of Defence,07/12/2010,"Transportation of personnel, freight and travel expenses",Central TLB,CARTUS LTD,729236,8000.00
Ministry of Defence,Ministry of Defence,06/12/2010,"Transportation of personnel, freight and travel expenses",Air Command,CARTUS LTD,728666,7967.29
Ministry of Defence,Ministry of Defence,06/12/2010,"Transportation of personnel, freight and travel expenses",Defence Estates,CARTUS LTD,728666,6521.95
Ministry of Defence,Ministry of Defence,10/12/2010,"Transportation of personnel, freight and travel expenses",Air Command,CARTUS LTD,730932,4250.00
Ministry of Defence,Ministry of Defence,06/12/2010,"Transportation of personnel, freight and travel expenses",Navy Command,CARTUS LTD,728666,2470.05
Ministry of Defence,Ministry of Defence,10/12/2010,"Transportation of personnel, freight and travel expenses",Land Forces,CARTUS LTD,730932,2362.57
Ministry of Defence,Ministry of Defence,06/12/2010,"Transportation of personnel, freight and travel expenses",Land Forces,CARTUS LTD,728666,2034.21
Ministry of Defence,Ministry of Defence,24/12/2010,"Transportation of personnel, freight and travel expenses",Land Forces,CARTUS LTD,737077,1380.84
Ministry of Defence,Ministry of Defence,24/12/2010,"Transportation of personnel, freight and travel expenses",Defence Estates,CARTUS LTD,737077,1342.88
Ministry of Defence,Ministry of Defence,10/12/2010,"Transportation of personnel, freight and travel expenses",Defence Equipment & Support,CARTUS LTD,730932,1055.00
Ministry of Defence,Ministry of Defence,24/12/2010,"Transportation of personnel, freight and travel expenses",Air Command,CARTUS LTD,737077,873.88
Ministry of Defence,Ministry of Defence,20/12/2010,"Transportation of personnel, freight and travel expenses",Defence Estates,CARTUS LTD,734754,660.25
Ministry of Defence,Ministry of Defence,09/12/2010,"Transportation of personnel, freight and travel expenses",Central TLB,CARTUS LTD,730369,472.00
Ministry of Defence,Ministry of Defence,09/12/2010,"Transportation of personnel, freight and travel expenses",Land Forces,CARTUS LTD,730369,435.29
Ministry of Defence,Ministry of Defence,24/12/2010,"Transportation of personnel, freight and travel expenses",Navy Command,CARTUS LTD,737077,358.66
Ministry of Defence,Ministry of Defence,09/12/2010,"Transportation of personnel, freight and travel expenses",Defence Estates,CARTUS LTD,730369,295.00
Ministry of Defence,Ministry of Defence,01/12/2010,Design services and minor equipment purchases,Defence Equipment & Support,CARWOOD MOTOR UNITS LTD,726952,34656.44
Ministry of Defence,Ministry of Defence,02/12/2010,Design services and minor equipment purchases,Defence Equipment & Support,CARWOOD MOTOR UNITS LTD,727611,13511.15
Ministry of Defence,Ministry of Defence,31/12/2010,Design services and minor equipment purchases,Defence Equipment & Support,CARWOOD MOTOR UNITS LTD,737702,10071.42
Ministry of Defence,Ministry of Defence,02/12/2010,Payments on behalf of Defence Support Group,Central TLB,CARWOOD MOTOR UNITS LTD,727611,8445.62
Ministry of Defence,Ministry of Defence,01/12/2010,Payments on behalf of Defence Support Group,Central TLB,CARWOOD MOTOR UNITS LTD,726952,4627.09
Ministry of Defence,Ministry of Defence,31/12/2010,Payments on behalf of Defence Support Group,Central TLB,CARWOOD MOTOR UNITS LTD,737702,3575.38
Ministry of Defence,Ministry of Defence,31/12/2010,Purchase of inventory and services ,Land Forces,CARWOOD MOTOR UNITS LTD,737702,36560.74
Ministry of Defence,Ministry of Defence,02/12/2010,Purchase of inventory and services ,Land Forces,CARWOOD MOTOR UNITS LTD,727611,28110.84
Ministry of Defence,Ministry of Defence,01/12/2010,Purchase of inventory and services ,Land Forces,CARWOOD MOTOR UNITS LTD,726952,24214.07
Ministry of Defence,Ministry of Defence,07/12/2010,Purchase of inventory and services ,Defence Equipment & Support,CARWOOD MOTOR UNITS LTD,729237,8766.68
Ministry of Defence,Ministry of Defence,02/12/2010,Purchase of inventory and services ,Air Command,CARWOOD MOTOR UNITS LTD,727611,3642.45
Ministry of Defence,Ministry of Defence,31/12/2010,Purchase of inventory and services ,Air Command,CARWOOD MOTOR UNITS LTD,737702,3588.07
Ministry of Defence,Ministry of Defence,31/12/2010,Purchase of inventory and services ,Defence Equipment & Support,CARWOOD MOTOR UNITS LTD,737702,3401.33
Ministry of Defence,Ministry of Defence,01/12/2010,Purchase of inventory and services ,Air Command,CARWOOD MOTOR UNITS LTD,726952,2573.36
Ministry of Defence,Ministry of Defence,01/12/2010,Purchase of inventory and services ,Navy Command,CARWOOD MOTOR UNITS LTD,726952,1592.84
Ministry of Defence,Ministry of Defence,01/12/2010,Purchase of inventory and services ,Defence Equipment & Support,CARWOOD MOTOR UNITS LTD,726952,495.34
Ministry of Defence,Ministry of Defence,31/12/2010,Purchase of inventory and services ,Navy Command,CARWOOD MOTOR UNITS LTD,737702,491.78
Ministry of Defence,Ministry of Defence,02/12/2010,Purchase of inventory and services ,Defence Equipment & Support,CARWOOD MOTOR UNITS LTD,727611,326.12
Ministry of Defence,Ministry of Defence,02/12/2010,Purchase of inventory and services ,Navy Command,CARWOOD MOTOR UNITS LTD,727611,224.91
Ministry of Defence,Ministry of Defence,14/12/2010,Design services and minor equipment purchases,Defence Equipment & Support,CATERPILLAR REMANUFACTURING LIMITED,732166,56843.68
Ministry of Defence,Ministry of Defence,06/12/2010,Design services and minor equipment purchases,Defence Equipment & Support,CATERPILLAR REMANUFACTURING LIMITED,728668,41306.12
Ministry of Defence,Ministry of Defence,07/12/2010,Rent and rates,Land Forces,CB RICHARD ELLIS LIMITED,729239,36571.88
Ministry of Defence,Ministry of Defence,20/12/2010,Purchase of inventory and services ,Land Forces,CENTAUR SERVICES LTD,734757,25044.91
Ministry of Defence,Ministry of Defence,20/12/2010,Purchase of inventory and services ,Defence Equipment & Support,CENTAUR SERVICES LTD,734757,1493.05
Ministry of Defence,Ministry of Defence,20/12/2010,Purchase of inventory and services ,Command Joint Operations,CENTAUR SERVICES LTD,734757,719.30
Ministry of Defence,Ministry of Defence,14/12/2010,Rent and rates,Defence Estates,CENTRAL BEDFORDSHIRE COUNCIL,732171,98400.81
Ministry of Defence,Ministry of Defence,23/12/2010,Fees for professional services,Land Forces,CENTRAL OFFICE OF INFORMATION,736538,392117.68
Ministry of Defence,Ministry of Defence,13/12/2010,Fees for professional services,Land Forces,CENTRAL OFFICE OF INFORMATION,731519,227874.43
Ministry of Defence,Ministry of Defence,07/12/2010,Fees for professional services,Land Forces,CENTRAL OFFICE OF INFORMATION,729244,133064.53
Ministry of Defence,Ministry of Defence,13/12/2010,"Public relations, including marketing and advertising.",Land Forces,CENTRAL OFFICE OF INFORMATION,731519,20656.35
Ministry of Defence,Ministry of Defence,02/12/2010,Service and civilian recruitment,Air Command,CENTRAL OFFICE OF INFORMATION,727616,78140.51
Ministry of Defence,Ministry of Defence,20/12/2010,Service and civilian recruitment,Air Command,CENTRAL OFFICE OF INFORMATION,734760,51331.50
Ministry of Defence,Ministry of Defence,07/12/2010,Payment of utilities,Central TLB,CHARLES HUBBARD & PARTNERST/A EDMUND KIRBY,729248,32564.84
Ministry of Defence,Ministry of Defence,22/12/2010,Rent and rates,Central TLB,CHARLES HUBBARD & PARTNERST/A EDMUND KIRBY,735941,371514.48
Ministry of Defence,Ministry of Defence,14/12/2010,Rent and rates,Defence Estates,CHERWELL DISTRICT COUNCIL,732177,35514.37
Ministry of Defence,Ministry of Defence,14/12/2010,Rent and rates,Defence Estates,CHICHESTER DISTRICT COUNCIL,732178,40393.53
Ministry of Defence,Ministry of Defence,10/12/2010,Rent and rates,Defence Estates,CITY OF EDINBURGH COUNCIL,730949,90064.85
Ministry of Defence,Ministry of Defence,08/12/2010,Rent and rates,Defence Estates,CITY OF WESTMINSTER,729819,32004.92
Ministry of Defence,Ministry of Defence,08/12/2010,Rent and rates,Defence Estates,CITY OF YORK COUNCIL,729820,44359.53
Ministry of Defence,Ministry of Defence,16/12/2010,"Transportation of personnel, freight and travel expenses",Defence Equipment & Support,CITYSPRINT (UK) LIMITED,733405,81340.61
Ministry of Defence,Ministry of Defence,20/12/2010,"Transportation of personnel, freight and travel expenses",Defence Equipment & Support,CITYSPRINT (UK) LIMITED,734766,21098.55
Ministry of Defence,Ministry of Defence,20/12/2010,"Transportation of personnel, freight and travel expenses",Air Command,CITYSPRINT (UK) LIMITED,734766,11647.53
Ministry of Defence,Ministry of Defence,10/12/2010,IT and communication services,Defence Equipment & Support,CIVICA UK LIMITED,730951,50808.00
Ministry of Defence,Defence Support Group,21/12/2010,Capital Expenditure,Land Supply,CLARK CONSTRUCTION LTD,10116738,254513.87
Ministry of Defence,Ministry of Defence,31/12/2010,Purchase of inventory and services ,Defence Equipment & Support,CLEMENT CLARKE COMMUNICATIONS LIMITED,737719,133328.43
Ministry of Defence,Ministry of Defence,24/12/2010,Property leases,Defence Estates,COAST TO COAST WATER LTD,737086,2759186.41
Ministry of Defence,Ministry of Defence,21/12/2010,Design services and minor equipment purchases,Defence Equipment & Support,COBHAM FLIGHT INSPECTION  LIMITED,735466,332965.00
Ministry of Defence,Ministry of Defence,17/12/2010,IT and communication services,Defence Equipment & Support,COKER LOGISTICS SOLUTIONS INC,734058,43850.98
Ministry of Defence,Ministry of Defence,22/12/2010,Purchase of buildings and military equipment ,Defence Estates,COLAS LTD,735946,2404043.07
Ministry of Defence,Ministry of Defence,14/12/2010,Rent and rates,Defence Estates,COLCHESTER BOROUGH COUNCIL,732185,113896.20
Ministry of Defence,Ministry of Defence,07/12/2010,Rent and rates,Defence Equipment & Support,COLLIERS INTERNATIONAL UK PLC,155176,30506.23
Ministry of Defence,Ministry of Defence,09/12/2010,Grants to NDPBs,Central TLB,Commonwealth War Graves Commission,5000046804,8686440.68
Ministry of Defence,Ministry of Defence,14/12/2010,Grants to NDPBs,Central TLB,Commonwealth War Graves Commission,732187,2377167.50
Ministry of Defence,Met Office,14/12/2010,Plant And Equipment,Operations,Communications & Power Ind. Europe Ltd,4865,372742.26
Ministry of Defence,Ministry of Defence,22/12/2010,Estate management,Land Forces,COMPASS CONTRACT SERVICES (U K)LIMITED,735948,409792.35
Ministry of Defence,Ministry of Defence,20/12/2010,Estate management,Land Forces,COMPASS CONTRACT SERVICES (U K)LIMITED,734776,22284.02
Ministry of Defence,Ministry of Defence,31/12/2010,Estate management,Land Forces,COMPASS CONTRACT SERVICES (U K)LIMITED,155731,11279.88
Ministry of Defence,Ministry of Defence,22/12/2010,Estate management,Central TLB,COMPASS CONTRACT SERVICES (U K)LIMITED,735948,5630.46
Ministry of Defence,Ministry of Defence,20/12/2010,Estate management,Navy Command,COMPASS CONTRACT SERVICES (U K)LIMITED,734776,3242.62
Ministry of Defence,Ministry of Defence,22/12/2010,Estate management,Air Command,COMPASS CONTRACT SERVICES (U K)LIMITED,735948,1300.90
Ministry of Defence,Ministry of Defence,22/12/2010,Estate management,Defence Estates,COMPASS CONTRACT SERVICES (U K)LIMITED,735948,207.61
Ministry of Defence,Ministry of Defence,22/12/2010,Estate management,Defence Equipment & Support,COMPASS CONTRACT SERVICES (U K)LIMITED,735948,205.92
Ministry of Defence,Ministry of Defence,22/12/2010,Estate management,Navy Command,COMPASS CONTRACT SERVICES (U K)LIMITED,735948,100.16
Ministry of Defence,Ministry of Defence,17/12/2010,Food and clothing,Land Forces,COMPASS CONTRACT SERVICES (U K)LIMITED,734060,531406.47
Ministry of Defence,Ministry of Defence,20/12/2010,Food and clothing,Defence Equipment & Support,COMPASS CONTRACT SERVICES (U K)LIMITED,734776,10395.78
Ministry of Defence,Ministry of Defence,22/12/2010,Food and clothing,Land Forces,COMPASS CONTRACT SERVICES (U K)LIMITED,735948,9630.00
Ministry of Defence,Ministry of Defence,22/12/2010,Food and clothing,Air Command,COMPASS CONTRACT SERVICES (U K)LIMITED,735948,151.56
Ministry of Defence,Ministry of Defence,14/12/2010,Rent and rates,Air Command,COMPASS CONTRACT SERVICES (U K)LIMITED,732189,136184.00
Ministry of Defence,Ministry of Defence,16/12/2010,Design services and minor equipment purchases,Air Command,COMPASS GROUP UK AND IRELAND LIMITED,733411,451059.64
Ministry of Defence,Ministry of Defence,20/12/2010,Design services and minor equipment purchases,Air Command,COMPASS GROUP UK AND IRELAND LIMITED,734777,197260.96
Ministry of Defence,Ministry of Defence,01/12/2010,Design services and minor equipment purchases,Air Command,COMPASS GROUP UK AND IRELAND LIMITED,726970,126735.98
Ministry of Defence,Ministry of Defence,16/12/2010,Food and clothing,Defence Estates,COMPASS GROUP UK AND IRELAND LIMITED,733411,17.02
Ministry of Defence,Ministry of Defence,17/12/2010,Estate management,Land Forces,COMPASS SERVICES (U.K.) LIMITED,734061,74363.79
Ministry of Defence,Ministry of Defence,09/12/2010,Estate management,Air Command,COMPASS SERVICES (U.K.) LIMITED,730398,66249.78
Ministry of Defence,Ministry of Defence,16/12/2010,Estate management,Land Forces,COMPASS SERVICES (U.K.) LIMITED,733412,40231.15
Ministry of Defence,Ministry of Defence,17/12/2010,Estate management,Defence Equipment & Support,COMPASS SERVICES (U.K.) LIMITED,734061,34628.50
Ministry of Defence,Ministry of Defence,16/12/2010,Estate management,Defence Equipment & Support,COMPASS SERVICES (U.K.) LIMITED,733412,14252.44
Ministry of Defence,Ministry of Defence,16/12/2010,Estate management,Navy Command,COMPASS SERVICES (U.K.) LIMITED,733412,439.10
Ministry of Defence,Ministry of Defence,17/12/2010,Estate management,Defence Estates,COMPASS SERVICES (U.K.) LIMITED,734061,200.23
Ministry of Defence,Ministry of Defence,16/12/2010,Estate management,Air Command,COMPASS SERVICES (U.K.) LIMITED,733412,21.06
Ministry of Defence,Ministry of Defence,16/12/2010,Food and clothing,Land Forces,COMPASS SERVICES (U.K.) LIMITED,733412,216264.77
Ministry of Defence,Ministry of Defence,14/12/2010,Food and clothing,Defence Equipment & Support,COMPASS SERVICES (U.K.) LIMITED,732190,92200.81
Ministry of Defence,Ministry of Defence,17/12/2010,Food and clothing,Land Forces,COMPASS SERVICES (U.K.) LIMITED,734061,49196.80
Ministry of Defence,Ministry of Defence,16/12/2010,Food and clothing,Defence Equipment & Support,COMPASS SERVICES (U.K.) LIMITED,733412,6003.50
Ministry of Defence,Ministry of Defence,17/12/2010,Food and clothing,Defence Equipment & Support,COMPASS SERVICES (U.K.) LIMITED,734061,338.49
Ministry of Defence,Ministry of Defence,13/12/2010,Medical treatment & stores and welfare services.,Air Command,COMPASS SERVICES (U.K.) LIMITED,731535,63883.94
Ministry of Defence,Ministry of Defence,13/12/2010,"Transportation of personnel, freight and travel expenses",Air Command,COMPASS SERVICES (U.K.) LIMITED,731535,223.94
Ministry of Defence,Met Office,23/12/2010,Software Licences,Technology,Computacenter (Uk) Ltd,302056,37467.53
Ministry of Defence,Reserve Forces and Cadets Associations,02/12/2010,Purchase of buildings and military equipment ,Capital Expenditure,CONLON CONSTRUCTION LTD,8054,391880.00
Ministry of Defence,Ministry of Defence,31/12/2010,Design services and minor equipment purchases,Defence Equipment & Support,CONWAY PACKING SERVICES LTD,737721,39753.27
Ministry of Defence,Ministry of Defence,23/12/2010,Design services and minor equipment purchases,Defence Equipment & Support,CONWAY PACKING SERVICES LTD,736562,34160.90
Ministry of Defence,Ministry of Defence,06/12/2010,Design services and minor equipment purchases,Defence Equipment & Support,CONWAY PACKING SERVICES LTD,728689,32084.02
Ministry of Defence,Ministry of Defence,06/12/2010,Payments on behalf of Defence Support Group,Central TLB,CONWAY PACKING SERVICES LTD,728689,2700.97
Ministry of Defence,Ministry of Defence,15/12/2010,Rent and rates,Central TLB,CO-OPERATIVE INSURANCE SOCIETY LIMITED,732745,250963.25
Ministry of Defence,Ministry of Defence,20/12/2010,Estate management,Defence Estates,CORDES & GRAEFE GMBH,5000047612,31024.01
Ministry of Defence,Ministry of Defence,10/12/2010,Rent and rates,Defence Estates,CORNWALL COUNCIL,155290,67143.00
Ministry of Defence,Ministry of Defence,24/12/2010,Purchase of inventory and services ,Defence Equipment & Support,CORPORATE DOCUMENT SERVICES  LIMITED,737091,73675.52
Ministry of Defence,Ministry of Defence,23/12/2010,Purchase of inventory and services ,Land Forces,CORPORATE DOCUMENT SERVICES  LIMITED,736563,54075.49
Ministry of Defence,Ministry of Defence,02/12/2010,Purchase of inventory and services ,Central TLB,CORPORATE DOCUMENT SERVICES  LIMITED,727634,51314.81
Ministry of Defence,Ministry of Defence,20/12/2010,Purchase of inventory and services ,Defence Equipment & Support,CORPORATE DOCUMENT SERVICES  LIMITED,734778,50887.22
Ministry of Defence,Ministry of Defence,01/12/2010,Purchase of inventory and services ,Defence Equipment & Support,CORPORATE DOCUMENT SERVICES  LIMITED,726973,34356.36
Ministry of Defence,Ministry of Defence,24/12/2010,Purchase of inventory and services ,Land Forces,CORPORATE DOCUMENT SERVICES  LIMITED,737091,24745.43
Ministry of Defence,Ministry of Defence,24/12/2010,Purchase of inventory and services ,Central TLB,CORPORATE DOCUMENT SERVICES  LIMITED,737091,23234.74
Ministry of Defence,Ministry of Defence,02/12/2010,Purchase of inventory and services ,Land Forces,CORPORATE DOCUMENT SERVICES  LIMITED,727634,19750.90
Ministry of Defence,Ministry of Defence,23/12/2010,Purchase of inventory and services ,Defence Equipment & Support,CORPORATE DOCUMENT SERVICES  LIMITED,736563,18697.89
Ministry of Defence,Ministry of Defence,23/12/2010,Purchase of inventory and services ,Navy Command,CORPORATE DOCUMENT SERVICES  LIMITED,736563,16294.98
Ministry of Defence,Ministry of Defence,06/12/2010,Purchase of inventory and services ,Defence Equipment & Support,CORPORATE DOCUMENT SERVICES  LIMITED,728691,12012.96
Ministry of Defence,Ministry of Defence,20/12/2010,Purchase of inventory and services ,Central TLB,CORPORATE DOCUMENT SERVICES  LIMITED,734778,11613.43
Ministry of Defence,Ministry of Defence,01/12/2010,Purchase of inventory and services ,Land Forces,CORPORATE DOCUMENT SERVICES  LIMITED,726973,11427.67
Ministry of Defence,Ministry of Defence,20/12/2010,Purchase of inventory and services ,Land Forces,CORPORATE DOCUMENT SERVICES  LIMITED,734778,11190.92
Ministry of Defence,Ministry of Defence,02/12/2010,Purchase of inventory and services ,Defence Equipment & Support,CORPORATE DOCUMENT SERVICES  LIMITED,727634,10981.52
Ministry of Defence,Ministry of Defence,23/12/2010,Purchase of inventory and services ,Central TLB,CORPORATE DOCUMENT SERVICES  LIMITED,736563,10101.37
Ministry of Defence,Ministry of Defence,24/12/2010,Purchase of inventory and services ,Air Command,CORPORATE DOCUMENT SERVICES  LIMITED,737091,9916.55
Ministry of Defence,Ministry of Defence,01/12/2010,Purchase of inventory and services ,Air Command,CORPORATE DOCUMENT SERVICES  LIMITED,726973,9419.00
Ministry of Defence,Ministry of Defence,06/12/2010,Purchase of inventory and services ,Central TLB,CORPORATE DOCUMENT SERVICES  LIMITED,728691,7397.01
Ministry of Defence,Ministry of Defence,02/12/2010,Purchase of inventory and services ,Air Command,CORPORATE DOCUMENT SERVICES  LIMITED,727634,6194.77
Ministry of Defence,Ministry of Defence,23/12/2010,Purchase of inventory and services ,Air Command,CORPORATE DOCUMENT SERVICES  LIMITED,736563,6128.48
Ministry of Defence,Ministry of Defence,20/12/2010,Purchase of inventory and services ,Navy Command,CORPORATE DOCUMENT SERVICES  LIMITED,734778,5788.64
Ministry of Defence,Ministry of Defence,06/12/2010,Purchase of inventory and services ,Land Forces,CORPORATE DOCUMENT SERVICES  LIMITED,728691,2782.19
Ministry of Defence,Ministry of Defence,06/12/2010,Purchase of inventory and services ,Navy Command,CORPORATE DOCUMENT SERVICES  LIMITED,728691,1578.78
Ministry of Defence,Ministry of Defence,01/12/2010,Purchase of inventory and services ,Central TLB,CORPORATE DOCUMENT SERVICES  LIMITED,726973,1416.90
Ministry of Defence,Ministry of Defence,24/12/2010,Purchase of inventory and services ,Navy Command,CORPORATE DOCUMENT SERVICES  LIMITED,737091,877.71
Ministry of Defence,Ministry of Defence,01/12/2010,Purchase of inventory and services ,Navy Command,CORPORATE DOCUMENT SERVICES  LIMITED,726973,671.73
Ministry of Defence,Ministry of Defence,06/12/2010,Purchase of inventory and services ,Air Command,CORPORATE DOCUMENT SERVICES  LIMITED,728691,587.16
Ministry of Defence,Ministry of Defence,20/12/2010,Purchase of inventory and services ,Air Command,CORPORATE DOCUMENT SERVICES  LIMITED,734778,274.38
Ministry of Defence,Ministry of Defence,01/12/2010,Purchase of inventory and services ,Defence Estates,CORPORATE DOCUMENT SERVICES  LIMITED,726973,264.66
Ministry of Defence,Ministry of Defence,02/12/2010,Purchase of inventory and services ,Defence Estates,CORPORATE DOCUMENT SERVICES  LIMITED,727634,144.87
Ministry of Defence,Ministry of Defence,20/12/2010,Purchase of inventory and services ,Defence Estates,CORPORATE DOCUMENT SERVICES  LIMITED,734778,45.48
Ministry of Defence,Ministry of Defence,16/12/2010,Design services and minor equipment purchases,Defence Equipment & Support,CORPORATE PROJECT SOLUTIONS  LIMITED,733417,63931.25
Ministry of Defence,Ministry of Defence,03/12/2010,Estate management,Navy Command,CORPS OF COMMISSIONAIRES  MANAGEMENT LIMITED,728216,41625.79
Ministry of Defence,Ministry of Defence,08/12/2010,Purchase of inventory and services ,Defence Equipment & Support,COSALT:BALLYCLARE LTD,729829,111269.44
Ministry of Defence,Defence Science and Technology Laboratory,24/12/2010,Sub Contracted Research,Programme Office,COSWORTH ELECTRONICS LIMITED,V - 9000128819 - 00096843,64578.40
Ministry of Defence,Defence Science and Technology Laboratory,24/12/2010,Sub Contracted Research,Programme Office,COSWORTH ELECTRONICS LIMITED,V - 9000128819 - 00096851,55260.00
Ministry of Defence,Ministry of Defence,16/12/2010,Food and clothing,Land Forces,COTSWOLD OUTDOOR LTD,733420,51846.86
Ministry of Defence,Ministry of Defence,16/12/2010,Food and clothing,Air Command,COTSWOLD OUTDOOR LTD,733420,39563.15
Ministry of Defence,Ministry of Defence,22/12/2010,Food and clothing,Air Command,COTSWOLD OUTDOOR LTD,735952,25555.86
Ministry of Defence,Ministry of Defence,16/12/2010,Food and clothing,Navy Command,COTSWOLD OUTDOOR LTD,733420,7783.32
Ministry of Defence,Ministry of Defence,22/12/2010,Food and clothing,Land Forces,COTSWOLD OUTDOOR LTD,735952,3182.88
Ministry of Defence,Ministry of Defence,16/12/2010,Food and clothing,Defence Estates,COTSWOLD OUTDOOR LTD,733420,148.35
Ministry of Defence,Ministry of Defence,14/12/2010,Grants to Reserves Forces and Cadets Association.,Land Forces,COUNCIL OF RESERVE FORCES AND CADETS ASSOC PENSION SCHEME,732192,94449.16
Ministry of Defence,Ministry of Defence,03/12/2010,Estate management,Land Forces,COUNCIL OF RESERVE FORCES' AND CADETS' ASSOCIATIONS,728217,80000.00
Ministry of Defence,Ministry of Defence,14/12/2010,Grants to NDPBs,Land Forces,COUNCIL OF RESERVE FORCES' AND CADETS' ASSOCIATIONS,732193,4221927.00
Ministry of Defence,Ministry of Defence,17/12/2010,Grants to Reserves Forces and Cadets Association.,Central TLB,COUNCIL OF RESERVE FORCES' AND CADETS' ASSOCIATIONS,734072,153500.00
Ministry of Defence,Ministry of Defence,14/12/2010,Grants to Reserves Forces and Cadets Association.,Land Forces,COUNCIL OF RESERVE FORCES' AND CADETS' ASSOCIATIONS,732193,9123.00
Ministry of Defence,Ministry of Defence,23/12/2010,Property leases,Defence Estates,COVESEA LIMITED,736564,362862.02
Ministry of Defence,Ministry of Defence,03/12/2010,Medical treatment & stores and welfare services.,Air Command,COYLE PERSONNEL PLC,728218,59277.78
Ministry of Defence,Ministry of Defence,13/12/2010,Medical treatment & stores and welfare services.,Air Command,COYLE PERSONNEL PLC,731540,24456.35
Ministry of Defence,Ministry of Defence,03/12/2010,Medical treatment & stores and welfare services.,Land Forces,COYLE PERSONNEL PLC,728218,1950.00
Ministry of Defence,Ministry of Defence,13/12/2010,Medical treatment & stores and welfare services.,Land Forces,COYLE PERSONNEL PLC,731540,870.00
Ministry of Defence,Defence Science and Technology Laboratory,13/12/2010,Sub Contracted Research,Programme Office,CRANFIELD AEROSPACE LIMITED,V - 9000128461 - 00097066,300000.00
Ministry of Defence,Ministry of Defence,03/12/2010,Externally delivered education and training.,Land Forces,CRANFIELD UNIVERSITY,728219,12470.00
Ministry of Defence,Ministry of Defence,06/12/2010,Externally delivered education and training.,Air Command,CRANFIELD UNIVERSITY,728693,12470.00
Ministry of Defence,Ministry of Defence,06/12/2010,Externally delivered education and training.,Central TLB,CRANFIELD UNIVERSITY,728693,1941.60
Ministry of Defence,Ministry of Defence,03/12/2010,Externally delivered education and training.,Air Command,CRANFIELD UNIVERSITY,728219,1368.00
Ministry of Defence,Ministry of Defence,06/12/2010,International contributions,Central TLB,CRANFIELD UNIVERSITY,728693,71815.50
Ministry of Defence,Ministry of Defence,10/12/2010,Fees for professional services,Navy Command,CRIMINAL RECORDS BUREAU,730962,7524.00
Ministry of Defence,Ministry of Defence,10/12/2010,Fees for professional services,Air Command,CRIMINAL RECORDS BUREAU,730962,5616.00
Ministry of Defence,Ministry of Defence,10/12/2010,Fees for professional services,Central TLB,CRIMINAL RECORDS BUREAU,730962,2520.00
Ministry of Defence,Ministry of Defence,10/12/2010,Fees for professional services,Land Forces,CRIMINAL RECORDS BUREAU,730962,1620.00
Ministry of Defence,Ministry of Defence,10/12/2010,Fees for professional services,Defence Equipment & Support,CRIMINAL RECORDS BUREAU,730962,432.00
Ministry of Defence,Ministry of Defence,10/12/2010,Fees for professional services,Command Joint Operations,CRIMINAL RECORDS BUREAU,730962,216.00
Ministry of Defence,Ministry of Defence,06/12/2010,"Transportation of personnel, freight and travel expenses",Defence Equipment & Support,CRONOS CONTAINERS LTD,728694,25261.19
Ministry of Defence,Met Office,10/12/2010,Plant And Equipment,Operations,Cse Servelec Ltd,299518,46096.00
Ministry of Defence,Ministry of Defence,23/12/2010,"Transportation of personnel, freight and travel expenses",Defence Equipment & Support,CTS (GB) LIMITED,736567,3585.00
Ministry of Defence,Ministry of Defence,09/12/2010,IT and communication services,Command Joint Operations,CYPRUS TELECOMMUNICATIONS AUTHORITY,5000046805,21187.03
Ministry of Defence,Ministry of Defence,09/12/2010,IT and communication services,Land Forces,CYPRUS TELECOMMUNICATIONS AUTHORITY,5000046805,3372.03
Ministry of Defence,Ministry of Defence,09/12/2010,IT and communication services,Defence Equipment & Support,CYPRUS TELECOMMUNICATIONS AUTHORITY,5000046805,1322.86
Ministry of Defence,Ministry of Defence,09/12/2010,IT and communication services,Defence Estates,CYPRUS TELECOMMUNICATIONS AUTHORITY,5000046805,883.74
Ministry of Defence,Ministry of Defence,09/12/2010,IT and communication services,Central TLB,CYPRUS TELECOMMUNICATIONS AUTHORITY,5000046805,253.19
Ministry of Defence,Ministry of Defence,09/12/2010,IT and communication services,Air Command,CYPRUS TELECOMMUNICATIONS AUTHORITY,5000046805,54.14
Ministry of Defence,Ministry of Defence,21/12/2010,Purchase of inventory and services ,Defence Equipment & Support,DANIAMANT LIMITED,735471,69660.00
Ministry of Defence,Ministry of Defence,09/12/2010,Design services and minor equipment purchases,Defence Equipment & Support,DAVID BROWN GEAR SYSTEMS LTD,730412,2688.30
Ministry of Defence,Ministry of Defence,20/12/2010,Purchase of inventory and services ,Defence Equipment & Support,DAVID BROWN GEAR SYSTEMS LTD,734790,734.38
Ministry of Defence,Ministry of Defence,24/12/2010,Design services and minor equipment purchases,Defence Equipment & Support,DAWSONRENTALS TRUCK & TRAILER LTD,737098,7348.28
Ministry of Defence,Ministry of Defence,20/12/2010,Design services and minor equipment purchases,Defence Equipment & Support,DAWSONRENTALS TRUCK & TRAILER LTD,734791,145.00
Ministry of Defence,Ministry of Defence,24/12/2010,Transport hire charges,Defence Equipment & Support,DAWSONRENTALS TRUCK & TRAILER LTD,737098,47670.79
Ministry of Defence,Ministry of Defence,17/12/2010,Transport hire charges,Defence Equipment & Support,DAWSONRENTALS TRUCK & TRAILER LTD,734085,38562.00
Ministry of Defence,Ministry of Defence,20/12/2010,Transport hire charges,Defence Equipment & Support,DAWSONRENTALS TRUCK & TRAILER LTD,734791,29586.00
Ministry of Defence,Ministry of Defence,16/12/2010,"Transportation of personnel, freight and travel expenses",Defence Equipment & Support,DB SCHENKER RAIL (UK) LTD,733429,37310.33
Ministry of Defence,Ministry of Defence,21/12/2010,"Transportation of personnel, freight and travel expenses",Defence Equipment & Support,DB SCHENKER RAIL (UK) LTD,735474,36612.51
Ministry of Defence,Ministry of Defence,16/12/2010,"Transportation of personnel, freight and travel expenses",Land Forces,DB SCHENKER RAIL (UK) LTD,733429,8333.90
Ministry of Defence,Ministry of Defence,15/12/2010,Estate management,Defence Estates,DEBUT SERVICES (SOUTH WEST)LIMITED,732760,9262473.11
Ministry of Defence,Ministry of Defence,08/12/2010,Estate management,Defence Equipment & Support,DEBUT SERVICES (SOUTH WEST)LIMITED,729837,20302.93
Ministry of Defence,Ministry of Defence,20/12/2010,Estate management,Defence Estates,DEBUT SERVICES (SOUTH WEST)LIMITED,734793,-228209.30
Ministry of Defence,Ministry of Defence,06/12/2010,Purchase of buildings and military equipment ,Defence Estates,DEBUT SERVICES (SOUTH WEST)LIMITED,728702,746109.28
Ministry of Defence,Ministry of Defence,16/12/2010,Purchase of buildings and military equipment ,Defence Estates,DEBUT SERVICES (SOUTH WEST)LIMITED,733431,626614.23
Ministry of Defence,Ministry of Defence,15/12/2010,Purchase of buildings and military equipment ,Defence Estates,DEBUT SERVICES (SOUTH WEST)LIMITED,732760,356999.02
Ministry of Defence,Ministry of Defence,08/12/2010,Purchase of buildings and military equipment ,Defence Estates,DEBUT SERVICES (SOUTH WEST)LIMITED,729837,208548.07
Ministry of Defence,Ministry of Defence,30/12/2010,Purchase of buildings and military equipment ,Defence Estates,DEBUT SERVICES (SOUTH WEST)LIMITED,737504,169279.05
Ministry of Defence,Ministry of Defence,24/12/2010,Estate management,Defence Estates,DEBUT SERVICES LIMITED,737100,53326.58
Ministry of Defence,Ministry of Defence,21/12/2010,Purchase of buildings and military equipment ,Defence Estates,DEBUT SERVICES LIMITED,735475,3486517.21
Ministry of Defence,Ministry of Defence,15/12/2010,Purchase of buildings and military equipment ,Defence Estates,DEBUT SERVICES LIMITED,732761,2286151.89
Ministry of Defence,Ministry of Defence,14/12/2010,Purchase of buildings and military equipment ,Defence Estates,DEBUT SERVICES LIMITED,732199,1829758.34
Ministry of Defence,Ministry of Defence,02/12/2010,Purchase of buildings and military equipment ,Defence Estates,DEBUT SERVICES LIMITED,727640,995537.69
Ministry of Defence,Ministry of Defence,24/12/2010,Purchase of buildings and military equipment ,Defence Estates,DEBUT SERVICES LIMITED,737100,602525.45
Ministry of Defence,Ministry of Defence,02/12/2010,Design services and minor equipment purchases,Defence Equipment & Support,DEFENCE SCIENCE & TECHNOLOGY LABORATORY,727641,-393.35
Ministry of Defence,Ministry of Defence,02/12/2010,Fees for professional services,Central TLB,DEFENCE SCIENCE & TECHNOLOGY LABORATORY,727641,8358.10
Ministry of Defence,Ministry of Defence,17/12/2010,Fees for professional services,Defence Estates,DEFENCE SCIENCE & TECHNOLOGY LABORATORY,734087,2391.25
Ministry of Defence,Ministry of Defence,07/12/2010,General services and support,Air Command,DEFENCE SCIENCE & TECHNOLOGY LABORATORY,729264,238825.90
Ministry of Defence,Ministry of Defence,20/12/2010,Miscellaneous Administration Costs,Defence Equipment & Support,DEFENCE SCIENCE & TECHNOLOGY LABORATORY,734794,1945.52
Ministry of Defence,Ministry of Defence,17/12/2010,Purchase of buildings and military equipment ,Defence Equipment & Support,DEFENCE SCIENCE & TECHNOLOGY LABORATORY,734087,60000.00
Ministry of Defence,Ministry of Defence,16/12/2010,Purchase of buildings and military equipment ,Defence Equipment & Support,DEFENCE SCIENCE & TECHNOLOGY LABORATORY,733432,34100.00
Ministry of Defence,Ministry of Defence,20/12/2010,Research and development,Defence Equipment & Support,DEFENCE SCIENCE & TECHNOLOGY LABORATORY,734794,243063.90
Ministry of Defence,Ministry of Defence,17/12/2010,Research and development,Defence Equipment & Support,DEFENCE SCIENCE & TECHNOLOGY LABORATORY,734087,52746.22
Ministry of Defence,Ministry of Defence,24/12/2010,Research and development,Air Command,DEFENCE SCIENCE & TECHNOLOGY LABORATORY,737102,16000.00
Ministry of Defence,Ministry of Defence,24/12/2010,Research and development,Defence Equipment & Support,DEFENCE SCIENCE & TECHNOLOGY LABORATORY,737102,4638.94
Ministry of Defence,Ministry of Defence,07/12/2010,Rent and rates,Defence Estates,DEFENCE SUPPORT (ST ATHAN)  LIMITED,729265,3699197.60
Ministry of Defence,Ministry of Defence,23/12/2010,Design services and minor equipment purchases,Defence Equipment & Support,DEFENCE SUPPORT GROUP  (DSG),736577,126270.83
Ministry of Defence,Ministry of Defence,03/12/2010,Design services and minor equipment purchases,Defence Equipment & Support,DEFENCE SUPPORT GROUP  (DSG),728229,4959.68
Ministry of Defence,Ministry of Defence,15/12/2010,Design services and minor equipment purchases,Defence Equipment & Support,DEFENCE SUPPORT GROUP  (DSG),732764,2335.32
Ministry of Defence,Ministry of Defence,03/12/2010,Design services and minor equipment purchases,Defence Equipment & Support,DEFENCE SUPPORT GROUP  (DSG),728228,964.87
Ministry of Defence,Ministry of Defence,20/12/2010,Design services and minor equipment purchases,Defence Equipment & Support,DEFENCE SUPPORT GROUP  (DSG),734796,730.78
Ministry of Defence,Ministry of Defence,16/12/2010,Design services and minor equipment purchases,Defence Equipment & Support,DEFENCE SUPPORT GROUP  (DSG),733433,370.86
Ministry of Defence,Ministry of Defence,08/12/2010,Design services and minor equipment purchases,Defence Equipment & Support,DEFENCE SUPPORT GROUP  (DSG),729840,35.58
Ministry of Defence,Ministry of Defence,15/12/2010,Externally delivered education and training.,Air Command,DEFENCE SUPPORT GROUP  (DSG),732765,2154.40
Ministry of Defence,Ministry of Defence,03/12/2010,Externally delivered education and training.,Defence Equipment & Support,DEFENCE SUPPORT GROUP  (DSG),728229,1264.80
Ministry of Defence,Ministry of Defence,03/12/2010,Fuel for military use,Land Forces,DEFENCE SUPPORT GROUP  (DSG),728229,418.27
Ministry of Defence,Ministry of Defence,22/12/2010,Purchase of inventory and services ,Defence Equipment & Support,DEFENCE SUPPORT INTERNATIONAL LIMITED,735965,32273.72
Ministry of Defence,Ministry of Defence,17/12/2010,Property leases,Land Forces,DEFENCE TRAINING SERVICES LIMITED,734091,1694800.31
Ministry of Defence,Met Office,10/12/2010,Information Technology,Technology,Dell Computer Corp Ltd,301513,32500.00
Ministry of Defence,Met Office,21/12/2010,Information Technology,Technology,Dell Computer Corp Ltd,301975,32500.00
Ministry of Defence,Ministry of Defence,22/12/2010,Estate management,Central TLB,DELOITTE LLP,735966,50532.73
Ministry of Defence,Defence Support Group,09/12/2010,IT Services,Land Supply,DEMAND SOLUTIONS (EUROPE) LTD,10116513,58447.32
Ministry of Defence,Ministry of Defence,30/12/2010,Purchase of buildings and military equipment ,Defence Equipment & Support,DENBRIDGE MARINE LIMITED,737509,131937.22
Ministry of Defence,Ministry of Defence,08/12/2010,Miscellaneous Administration Costs,Central TLB,DENNIS CARTER LIMITED,729842,83570.50
Ministry of Defence,Ministry of Defence,14/12/2010,Payment of utilities,Land Forces,DEPARTMENT FOR REGIONAL DEVELOPMENT,31083,87949.67
Ministry of Defence,Ministry of Defence,03/12/2010,Payment of utilities,Land Forces,DEPARTMENT FOR REGIONAL DEVELOPMENT,31009,19249.77
Ministry of Defence,Ministry of Defence,03/12/2010,Preparation of land & buildings for disposal,Defence Estates,DEPARTMENT FOR REGIONAL DEVELOPMENT,31009,6161.02
Ministry of Defence,Ministry of Defence,14/12/2010,Preparation of land & buildings for disposal,Defence Estates,DEPARTMENT FOR REGIONAL DEVELOPMENT,31083,190.27
Ministry of Defence,Ministry of Defence,01/12/2010,Design services and minor equipment purchases,Defence Equipment & Support,DETICA LIMITED,726986,48180.00
Ministry of Defence,Defence Science and Technology Laboratory,13/12/2010,Sub Contracted Work,Operations,DETICA LIMITED,V - 9000128424 - 00092861,218620.86
Ministry of Defence,Ministry of Defence,20/12/2010,Design services and minor equipment purchases,Defence Equipment & Support,DEVONPORT ROYAL DOCKYARD LIMITED,734800,93243.27
Ministry of Defence,Ministry of Defence,14/12/2010,Design services and minor equipment purchases,Defence Equipment & Support,DEVONPORT ROYAL DOCKYARD LIMITED,732205,35268.55
Ministry of Defence,Ministry of Defence,09/12/2010,Design services and minor equipment purchases,Defence Equipment & Support,DEVONPORT ROYAL DOCKYARD LIMITED,730423,14303.20
Ministry of Defence,Ministry of Defence,23/12/2010,Fees for professional services,Defence Equipment & Support,DEVONPORT ROYAL DOCKYARD LIMITED,736580,26242.55
Ministry of Defence,Ministry of Defence,17/12/2010,Nuclear decommissioning and restoration,Defence Equipment & Support,DEVONPORT ROYAL DOCKYARD LIMITED,734097,289016.14
Ministry of Defence,Ministry of Defence,24/12/2010,Nuclear decommissioning and restoration,Defence Equipment & Support,DEVONPORT ROYAL DOCKYARD LIMITED,737104,66957.24
Ministry of Defence,Ministry of Defence,22/12/2010,Property leases,Defence Equipment & Support,DEVONPORT ROYAL DOCKYARD LIMITED,735971,3000.00
Ministry of Defence,Ministry of Defence,23/12/2010,Purchase of buildings and military equipment ,Defence Equipment & Support,DEVONPORT ROYAL DOCKYARD LIMITED,736580,973847.91
Ministry of Defence,Ministry of Defence,14/12/2010,Purchase of inventory and services ,Defence Equipment & Support,DEVONPORT ROYAL DOCKYARD LIMITED,732205,19105.24
Ministry of Defence,Ministry of Defence,14/12/2010,Research and development,Defence Equipment & Support,DEVONPORT ROYAL DOCKYARD LIMITED,732205,4989.71
Ministry of Defence,Ministry of Defence,21/12/2010,"Transportation of personnel, freight and travel expenses",Defence Equipment & Support,DHL GLOBAL FORWARDING (UK)  LIMITED,735480,125049.26
Ministry of Defence,Ministry of Defence,07/12/2010,"Transportation of personnel, freight and travel expenses",Air Command,DHL GLOBAL FORWARDING (UK)  LIMITED,729275,71498.68
Ministry of Defence,Ministry of Defence,30/12/2010,"Transportation of personnel, freight and travel expenses",Defence Equipment & Support,DHL GLOBAL FORWARDING (UK)  LIMITED,737512,58291.10
Ministry of Defence,Ministry of Defence,14/12/2010,"Transportation of personnel, freight and travel expenses",Defence Equipment & Support,DHL GLOBAL FORWARDING (UK)  LIMITED,732206,50704.06
Ministry of Defence,Ministry of Defence,07/12/2010,"Transportation of personnel, freight and travel expenses",Defence Equipment & Support,DHL GLOBAL FORWARDING (UK)  LIMITED,729275,39829.15
Ministry of Defence,Ministry of Defence,21/12/2010,"Transportation of personnel, freight and travel expenses",Land Forces,DHL GLOBAL FORWARDING (UK)  LIMITED,735480,39441.02
Ministry of Defence,Ministry of Defence,16/12/2010,"Transportation of personnel, freight and travel expenses",Defence Equipment & Support,DHL GLOBAL FORWARDING (UK)  LIMITED,733438,23594.48
Ministry of Defence,Ministry of Defence,02/12/2010,"Transportation of personnel, freight and travel expenses",Defence Equipment & Support,DHL GLOBAL FORWARDING (UK)  LIMITED,727650,18715.90
Ministry of Defence,Ministry of Defence,21/12/2010,"Transportation of personnel, freight and travel expenses",Air Command,DHL GLOBAL FORWARDING (UK)  LIMITED,735480,13429.55
Ministry of Defence,Ministry of Defence,15/12/2010,"Transportation of personnel, freight and travel expenses",Defence Equipment & Support,DHL GLOBAL FORWARDING (UK)  LIMITED,732770,11319.89
Ministry of Defence,Ministry of Defence,02/12/2010,"Transportation of personnel, freight and travel expenses",Command Joint Operations,DHL GLOBAL FORWARDING (UK)  LIMITED,727650,9956.02
Ministry of Defence,Ministry of Defence,30/12/2010,"Transportation of personnel, freight and travel expenses",Land Forces,DHL GLOBAL FORWARDING (UK)  LIMITED,737512,8264.05
Ministry of Defence,Ministry of Defence,02/12/2010,"Transportation of personnel, freight and travel expenses",Land Forces,DHL GLOBAL FORWARDING (UK)  LIMITED,727650,7611.61
Ministry of Defence,Ministry of Defence,07/12/2010,"Transportation of personnel, freight and travel expenses",Land Forces,DHL GLOBAL FORWARDING (UK)  LIMITED,729275,4280.81
Ministry of Defence,Ministry of Defence,30/12/2010,"Transportation of personnel, freight and travel expenses",Air Command,DHL GLOBAL FORWARDING (UK)  LIMITED,737512,2785.44
Ministry of Defence,Ministry of Defence,30/12/2010,"Transportation of personnel, freight and travel expenses",Command Joint Operations,DHL GLOBAL FORWARDING (UK)  LIMITED,737512,1013.09
Ministry of Defence,Ministry of Defence,15/12/2010,"Transportation of personnel, freight and travel expenses",Land Forces,DHL GLOBAL FORWARDING (UK)  LIMITED,732770,796.95
Ministry of Defence,Ministry of Defence,02/12/2010,"Transportation of personnel, freight and travel expenses",Air Command,DHL GLOBAL FORWARDING (UK)  LIMITED,727650,131.85
Ministry of Defence,Ministry of Defence,15/12/2010,"Transportation of personnel, freight and travel expenses",Air Command,DHL GLOBAL FORWARDING (UK)  LIMITED,732770,9.01
Ministry of Defence,Ministry of Defence,17/12/2010,Estate management,Command Joint Operations,District Officer Ammochostos,SBA1210059,59322.03
Ministry of Defence,Ministry of Defence,07/12/2010,Design services and minor equipment purchases,Defence Equipment & Support,DM SYSTEMS AND TEST LIMITED,729277,6757.26
Ministry of Defence,Ministry of Defence,17/12/2010,Rent and rates,Central TLB,DOBBELAERE GUY,5000047331,28501.53
Ministry of Defence,Ministry of Defence,23/12/2010,Purchase of inventory and services ,Defence Equipment & Support,DOLLINGER IRELAND LTD,5000047781,45440.47
Ministry of Defence,Ministry of Defence,07/12/2010,Purchase of buildings and military equipment ,Defence Equipment & Support,DOWDING & MILLS (U.K.) LIMITED,729281,76080.74
Ministry of Defence,Ministry of Defence,06/12/2010,Medical treatment & stores and welfare services.,Land Forces,DR ALAN GWYNN & PARTNERS T/A THE AVENUE SURGERY,728714,40062.24
Ministry of Defence,Ministry of Defence,14/12/2010,Medical treatment & stores and welfare services.,Defence Equipment & Support,DR K BOYD AND PARTNERS T/A THE CONCORD MEDICAL CENTRE,732214,28340.00
Ministry of Defence,Ministry of Defence,01/12/2010,Design services and minor equipment purchases,Defence Equipment & Support,DRUMGRANGE LTD,727014,3764.69
Ministry of Defence,Ministry of Defence,23/12/2010,Design services and minor equipment purchases,Defence Equipment & Support,DS SMITH PLASTICS LIMITED,736588,36114.72
Ministry of Defence,Ministry of Defence,22/12/2010,"Transportation of personnel, freight and travel expenses",Land Forces,DSV AIR & SEA LIMITED,735986,109289.36
Ministry of Defence,Ministry of Defence,22/12/2010,"Transportation of personnel, freight and travel expenses",Defence Equipment & Support,DSV AIR & SEA LIMITED,735986,74710.34
Ministry of Defence,Ministry of Defence,21/12/2010,"Transportation of personnel, freight and travel expenses",Land Forces,DSV AIR & SEA LIMITED,735495,22807.96
Ministry of Defence,Ministry of Defence,21/12/2010,"Transportation of personnel, freight and travel expenses",Defence Equipment & Support,DSV AIR & SEA LIMITED,735495,21806.05
Ministry of Defence,Ministry of Defence,22/12/2010,"Transportation of personnel, freight and travel expenses",Command Joint Operations,DSV AIR & SEA LIMITED,735986,3050.25
Ministry of Defence,Ministry of Defence,31/12/2010,Design services and minor equipment purchases,Defence Equipment & Support,DUNLOP AIRCRAFT TYRES LTD,737733,39243.83
Ministry of Defence,Ministry of Defence,03/12/2010,Design services and minor equipment purchases,Defence Equipment & Support,DUNLOP AIRCRAFT TYRES LTD,728245,10325.90
Ministry of Defence,Ministry of Defence,03/12/2010,Purchase of inventory and services ,Defence Equipment & Support,DUNLOP AIRCRAFT TYRES LTD,728245,16682.65
Ministry of Defence,Ministry of Defence,06/12/2010,Purchase of inventory and services ,Defence Equipment & Support,DUNLOP G R G HOLDINGS LTD,728734,79383.00
Ministry of Defence,Ministry of Defence,10/12/2010,Purchase of inventory and services ,Defence Equipment & Support,DUNLOP G R G HOLDINGS LTD,731004,30249.20
Ministry of Defence,Ministry of Defence,10/12/2010,Purchase of plant and machinery,Defence Equipment & Support,DUNLOP G R G HOLDINGS LTD,731004,194110.00
Ministry of Defence,Ministry of Defence,02/12/2010,Payment of utilities,Land Forces,E.ON,5000046378,637723.72
Ministry of Defence,Ministry of Defence,09/12/2010,Payment of utilities,Land Forces,E.ON,5000046806,229085.52
Ministry of Defence,Ministry of Defence,16/12/2010,Payment of utilities,Land Forces,E.ON,5000047208,28184.86
Ministry of Defence,Ministry of Defence,10/12/2010,Rent and rates,Defence Estates,EAST HAMPSHIRE DISTRICT COUNCIL,731013,53978.20
Ministry of Defence,Ministry of Defence,10/12/2010,Rent and rates,Defence Estates,EAST LINDSEY BOROUGH COUNCIL,731014,33869.25
Ministry of Defence,Ministry of Defence,09/12/2010,Purchase of inventory and services ,Central TLB,EBSCO INTERNATIONAL INC,730442,34017.16
Ministry of Defence,Ministry of Defence,09/12/2010,Purchase of inventory and services ,Land Forces,EBSCO INTERNATIONAL INC,730442,31287.68
Ministry of Defence,Defence Support Group,16/12/2010,Electricity,Business Stream 2,EDF ENERGY LTD,000000453415,21612.14
Ministry of Defence,Ministry of Defence,22/12/2010,Purchase of inventory and services ,Defence Equipment & Support,EDO MBM TECHNOLOGY LIMITED,736002,8340.20
Ministry of Defence,Ministry of Defence,07/12/2010,IT and communication services,Land Forces,EDUCATIONCITY LIMITED,729313,41163.00
Ministry of Defence,Ministry of Defence,17/12/2010,Rent and rates,Central TLB,EIENDOMSUTVIKLING SOR AS,2095327,192222.47
Ministry of Defence,Ministry of Defence,09/12/2010,Design services and minor equipment purchases,Defence Equipment & Support,ELAN COMPUTING LTD,730448,22470.00
Ministry of Defence,Ministry of Defence,09/12/2010,IT and communication services,Defence Equipment & Support,ELAN COMPUTING LTD,730448,15820.00
Ministry of Defence,Ministry of Defence,15/12/2010,Design services and minor equipment purchases,Defence Equipment & Support,ELECSIS LIMITED,732811,43186.07
Ministry of Defence,Ministry of Defence,06/12/2010,Payment of utilities,Command Joint Operations,ELECTRICITY AUTHORITY OF CYPRUS,4000004907,538711.79
Ministry of Defence,Ministry of Defence,02/12/2010,Payment of utilities,Command Joint Operations,ELECTRICITY AUTHORITY OF CYPRUS,4000004906,112710.35
Ministry of Defence,Ministry of Defence,01/12/2010,Payment of utilities,Command Joint Operations,ELECTRICITY AUTHORITY OF CYPRUS,4000004904,34349.37
Ministry of Defence,Ministry of Defence,17/12/2010,Payment of utilities,Command Joint Operations,ELECTRICITY AUTHORITY OF CYPRUS,4000004941,15882.84
Ministry of Defence,Ministry of Defence,15/12/2010,Design services and minor equipment purchases,Defence Equipment & Support,ELECTRO SERVICES (MIDLANDS) LTD,732812,35294.07
Ministry of Defence,Ministry of Defence,31/12/2010,Design services and minor equipment purchases,Defence Equipment & Support,ELECTRO SERVICES (MIDLANDS) LTD,737741,1821.60
Ministry of Defence,Ministry of Defence,08/12/2010,"Purchase of major spares armaments, medical & general stores",Defence Equipment & Support,ELECTRO SERVICES (MIDLANDS) LTD,729883,106309.81
Ministry of Defence,Ministry of Defence,01/12/2010,"Purchase of major spares armaments, medical & general stores",Defence Equipment & Support,ELECTRO SERVICES (MIDLANDS) LTD,727031,48333.06
Ministry of Defence,Ministry of Defence,23/12/2010,"Purchase of major spares armaments, medical & general stores",Defence Equipment & Support,ELECTRO SERVICES (MIDLANDS) LTD,736608,44121.58
Ministry of Defence,Ministry of Defence,31/12/2010,"Purchase of major spares armaments, medical & general stores",Defence Equipment & Support,ELECTRO SERVICES (MIDLANDS) LTD,737741,33350.57
Ministry of Defence,Ministry of Defence,15/12/2010,"Purchase of major spares armaments, medical & general stores",Defence Equipment & Support,ELECTRO SERVICES (MIDLANDS) LTD,732812,29822.38
Ministry of Defence,Ministry of Defence,09/12/2010,Design services and minor equipment purchases,Defence Equipment & Support,ELECTRONIC TERMINATIONS LIMITED,730452,40331.70
Ministry of Defence,Ministry of Defence,23/12/2010,Design services and minor equipment purchases,Defence Equipment & Support,ELECTRONIC TERMINATIONS LIMITED,736610,28427.20
Ministry of Defence,Ministry of Defence,20/12/2010,Design services and minor equipment purchases,Defence Equipment & Support,ELECTRONIC TERMINATIONS LIMITED,734833,10552.17
Ministry of Defence,Ministry of Defence,09/12/2010,Purchase of inventory and services ,Defence Equipment & Support,ELECTRONIC TERMINATIONS LIMITED,730452,33882.51
Ministry of Defence,Ministry of Defence,20/12/2010,Purchase of inventory and services ,Defence Equipment & Support,ELECTRONIC TERMINATIONS LIMITED,734833,21920.80
Ministry of Defence,Ministry of Defence,08/12/2010,Estate management,Defence Estates,Elektro Stock,Cash Office 17,51610.17
Ministry of Defence,Reserve Forces and Cadets Associations,08/12/2010,Purchase of buildings and military equipment ,Capital Expenditure,Elite Systems,5691,96180.80
Ministry of Defence,Reserve Forces and Cadets Associations,13/12/2010,Purchase of buildings and military equipment ,Capital Expenditure,Elite Systems,5789,42479.78
Ministry of Defence,Defence Science and Technology Laboratory,10/12/2010,Publications/Subscriptions,Infrastructure,ELSEVIER BV (SCIENCE DIRECT),V - 0000000587 - 00097083,272461.41
Ministry of Defence,Ministry of Defence,14/12/2010,Design services and minor equipment purchases,Defence Equipment & Support,EM SOFTWARE & SYSTEMS GMBH,5000047053,42070.97
Ministry of Defence,Ministry of Defence,08/12/2010,Estate management,Defence Estates,EMCOR FACILITIES SERVICES LTD,729884,79485.50
Ministry of Defence,Ministry of Defence,21/12/2010,Payment of utilities,Central TLB,ENEL,SPA 222188,31970.91
Ministry of Defence,Ministry of Defence,21/12/2010,Purchase of inventory and services ,Defence Equipment & Support,ENERSYS LTD.,735505,95788.24
Ministry of Defence,Ministry of Defence,01/12/2010,Purchase of inventory and services ,Defence Equipment & Support,ENERSYS LTD.,727033,78507.74
Ministry of Defence,Ministry of Defence,10/12/2010,Payment of utilities,Land Forces,ENERTEC HAMELN GMBH.,5000046866,51357.05
Ministry of Defence,Ministry of Defence,01/12/2010,Fees for professional services,Defence Estates,ENTEC U K LTD,727036,62273.79
Ministry of Defence,Ministry of Defence,08/12/2010,Fees for professional services,Defence Estates,ENTEC U K LTD,729886,45413.93
Ministry of Defence,Ministry of Defence,21/12/2010,Fees for professional services,Land Forces,ENTEC U K LTD,735507,37141.98
Ministry of Defence,Ministry of Defence,31/12/2010,Fees for professional services,Defence Estates,ENTEC U K LTD,737743,35023.69
Ministry of Defence,Ministry of Defence,01/12/2010,Fees for professional services,Defence Equipment & Support,ENTEC U K LTD,727036,29716.70
Ministry of Defence,Ministry of Defence,14/12/2010,Fees for professional services,Defence Estates,ENTEC U K LTD,732237,22259.35
Ministry of Defence,Ministry of Defence,21/12/2010,Fees for professional services,Defence Equipment & Support,ENTEC U K LTD,735507,17156.89
Ministry of Defence,Ministry of Defence,14/12/2010,Fees for professional services,Defence Equipment & Support,ENTEC U K LTD,732237,2669.16
Ministry of Defence,Ministry of Defence,21/12/2010,Property leases,Land Forces,ENTEC U K LTD,735507,1633.57
Ministry of Defence,Ministry of Defence,08/12/2010,Estate management,Land Forces,ENTRE-PRISES (U K) LTD,729887,51653.00
Ministry of Defence,Ministry of Defence,17/12/2010,Externally delivered education and training.,Land Forces,EPIC PERFORMANCE IMPROVEMENT LTD,734127,23640.00
Ministry of Defence,Defence Science and Technology Laboratory,17/12/2010,Sub Contracted Work,Operations,ERA TECHNOLOGY LIMITED,V - 9000128483 - 00094391,46350.00
Ministry of Defence,Ministry of Defence,14/12/2010,Design services and minor equipment purchases,Defence Equipment & Support,ERA TECHNOLOGY LTD,732239,115516.60
Ministry of Defence,Ministry of Defence,20/12/2010,Design services and minor equipment purchases,Defence Equipment & Support,ERA TECHNOLOGY LTD,734836,23972.89
Ministry of Defence,Ministry of Defence,20/12/2010,Purchase of buildings and military equipment ,Defence Equipment & Support,ERA TECHNOLOGY LTD,734836,8364.00
Ministry of Defence,Ministry of Defence,15/12/2010,Fees for professional services,Defence Equipment & Support,ERNST & YOUNG,732819,271102.49
Ministry of Defence,Ministry of Defence,13/12/2010,Fees for professional services,Defence Equipment & Support,ERNST & YOUNG,731604,235974.43
Ministry of Defence,Defence Science and Technology Laboratory,17/12/2010,Materials & Equipment,Operations,ESL DEFENCE LIMITED,V - 9000128472 - 00095395,273509.40
Ministry of Defence,Ministry of Defence,22/12/2010,Payment of utilities,Defence Equipment & Support,ESSO PETROLEUM COMPANY LIMITED,736009,83592.77
Ministry of Defence,Ministry of Defence,15/12/2010,Payment of utilities,Defence Equipment & Support,ESSO PETROLEUM COMPANY LIMITED,732821,79766.85
Ministry of Defence,Ministry of Defence,14/12/2010,Payment of utilities,Defence Equipment & Support,ESSO PETROLEUM COMPANY LIMITED,732240,56782.72
Ministry of Defence,Ministry of Defence,16/12/2010,Payment of utilities,Defence Equipment & Support,ESSO PETROLEUM COMPANY LIMITED,733490,12036.70
Ministry of Defence,Met Office,15/12/2010,Services,Government Business,Eumetsat,12869,41131.50
Ministry of Defence,Ministry of Defence,21/12/2010,Design services and minor equipment purchases,Defence Equipment & Support,EUROCOPTER,5000047712,1152212.71
Ministry of Defence,Ministry of Defence,30/12/2010,Externally delivered education and training.,Air Command,EUROCOPTER,5000047807,30563.56
Ministry of Defence,Ministry of Defence,16/12/2010,Purchase of inventory and services ,Defence Equipment & Support,EUROCOPTER,5000047210,247587.26
Ministry of Defence,Ministry of Defence,09/12/2010,Purchase of inventory and services ,Defence Equipment & Support,EUROCOPTER,5000046807,167251.06
Ministry of Defence,Ministry of Defence,15/12/2010,Purchase of inventory and services ,Defence Equipment & Support,EUROCOPTER,5000047136,146656.05
Ministry of Defence,Ministry of Defence,23/12/2010,Purchase of inventory and services ,Defence Equipment & Support,EUROCOPTER,5000047783,65364.32
Ministry of Defence,Ministry of Defence,13/12/2010,Transport hire charges,Land Forces,EUROPCAR AUTOVERMIETUNG,5000046984,30802.77
Ministry of Defence,Ministry of Defence,13/12/2010,Transport hire charges,Defence Equipment & Support,EUROPCAR AUTOVERMIETUNG,5000046984,260.71
Ministry of Defence,Ministry of Defence,13/12/2010,Transport hire charges,Central TLB,EUROPCAR AUTOVERMIETUNG,5000046984,95.23
Ministry of Defence,Ministry of Defence,24/12/2010,Medical treatment & stores and welfare services.,Land Forces,EXPACARE LIMITED,737123,33050.16
Ministry of Defence,Ministry of Defence,10/12/2010,Fuel for military use,Air Command,EXXONMOBIL PETROLEUM & CHEMICAL BVBA,2000010261,92297.39
Ministry of Defence,Ministry of Defence,16/12/2010,Purchase of inventory and services ,Defence Equipment & Support,F.P.S. (FIRE PROTECTION) LIMITED,733497,40008.75
Ministry of Defence,Ministry of Defence,02/12/2010,Estate management,Defence Estates,FACILITY CARE AG,5000046387,38280.62
Ministry of Defence,Ministry of Defence,02/12/2010,Estate management,Defence Equipment & Support,FALCON SUPPORT SERVICES LIMITED,727683,88148.28
Ministry of Defence,Ministry of Defence,02/12/2010,Interest paid PFIs and finance leases,Defence Equipment & Support,FALCON SUPPORT SERVICES LIMITED,727683,226430.46
Ministry of Defence,Ministry of Defence,02/12/2010,Payments for PFI projects,Defence Equipment & Support,FALCON SUPPORT SERVICES LIMITED,727683,131274.38
Ministry of Defence,Ministry of Defence,02/12/2010,Property leases,Defence Equipment & Support,FALCON SUPPORT SERVICES LIMITED,727683,1314669.38
Ministry of Defence,Ministry of Defence,02/12/2010,Property leases,Navy Command,FALCON SUPPORT SERVICES LIMITED,727683,11811.99
Ministry of Defence,Ministry of Defence,10/12/2010,Rent and rates,Defence Estates,FAREHAM BOROUGH COUNCIL,731037,46229.50
Ministry of Defence,Ministry of Defence,08/12/2010,Insurance,Navy Command,FAST TRAINING SERVICES LIMITED,729894,32385.51
Ministry of Defence,Ministry of Defence,02/12/2010,Design services and minor equipment purchases,Air Command,FBS LIMITED,727686,594097.92
Ministry of Defence,Ministry of Defence,02/12/2010,Design services and minor equipment purchases,Land Forces,FBS LIMITED,727686,45222.46
Ministry of Defence,Ministry of Defence,02/12/2010,Externally delivered education and training.,Defence Equipment & Support,FBS LIMITED,727686,261.67
Ministry of Defence,Ministry of Defence,02/12/2010,General services and support,Land Forces,FBS LIMITED,727686,895826.85
Ministry of Defence,Ministry of Defence,02/12/2010,Transport hire charges,Air Command,FBS LIMITED,727686,2658420.34
Ministry of Defence,Ministry of Defence,02/12/2010,Transport hire charges,Defence Equipment & Support,FBS LIMITED,727686,43330.50
Ministry of Defence,Ministry of Defence,24/12/2010,Design services and minor equipment purchases,Defence Equipment & Support,FENDER CARE LIMITED,737127,278195.20
Ministry of Defence,Ministry of Defence,24/12/2010,"Purchase of major spares armaments, medical & general stores",Defence Equipment & Support,FENDER CARE LIMITED,737127,105350.50
Ministry of Defence,Ministry of Defence,03/12/2010,Medical treatment & stores and welfare services.,Defence Equipment & Support,FENTON PHARMACEUTICALS LTD,728263,399500.00
Ministry of Defence,Ministry of Defence,03/12/2010,Purchase of inventory and services ,Defence Equipment & Support,FENTON PHARMACEUTICALS LTD,728263,281224.50
Ministry of Defence,Ministry of Defence,01/12/2010,Purchase of inventory and services ,Defence Equipment & Support,FENTON PHARMACEUTICALS LTD,727045,92531.25
Ministry of Defence,Ministry of Defence,20/12/2010,Design services and minor equipment purchases,Defence Equipment & Support,FERRANTI TECHNOLOGIES LIMITED,734843,91180.00
Ministry of Defence,Ministry of Defence,10/12/2010,Rent and rates,Defence Estates,FIFE COUNCIL,731040,71237.11
Ministry of Defence,Ministry of Defence,22/12/2010,Design services and minor equipment purchases,Defence Equipment & Support,FIRE VEHICLE SERVICES LIMITED,736017,29278.54
Ministry of Defence,Ministry of Defence,22/12/2010,Purchase of inventory and services ,Defence Equipment & Support,FIRMIN & SONS LIMITED,736018,42514.33
Ministry of Defence,Reserve Forces and Cadets Associations,23/12/2010,Purchase of buildings and military equipment ,Capital Expenditure,FLEMING BUILDINGS LTD,6393,75663.42
Ministry of Defence,Reserve Forces and Cadets Associations,08/12/2010,Purchase of buildings and military equipment ,Capital Expenditure,FLEMING BUILDINGS LTD,5858,31538.20
Ministry of Defence,Ministry of Defence,17/12/2010,Purchase of inventory and services ,Defence Equipment & Support,FLIGHT REFUELLING,AP09 GPC 16,26654.88
Ministry of Defence,Ministry of Defence,13/12/2010,Design services and minor equipment purchases,Air Command,FLUGHAFEN HANNOVER LANGENHAGEN GMBH,5000046986,7005.83
Ministry of Defence,Ministry of Defence,13/12/2010,"Transportation of personnel, freight and travel expenses",Air Command,FLUGHAFEN HANNOVER LANGENHAGEN GMBH,5000046986,26810.22
Ministry of Defence,Defence Science and Technology Laboratory,24/12/2010,Sub Contracted Work,Operations,FLUID GRAVITY ENGINEERING LIMITED,V - 9000128749 - 00096005,88842.56
Ministry of Defence,Ministry of Defence,20/12/2010,Purchase of inventory and services ,Land Forces,FORBO FLOORING UK LIMITED,734850,131652.56
Ministry of Defence,Ministry of Defence,21/12/2010,Purchase of inventory and services ,Air Command,FORBO FLOORING UK LIMITED,735519,37165.16
Ministry of Defence,Ministry of Defence,09/12/2010,Purchase of inventory and services ,Air Command,FORBO FLOORING UK LIMITED,730462,30342.36
Ministry of Defence,Ministry of Defence,20/12/2010,Purchase of inventory and services ,Air Command,FORBO FLOORING UK LIMITED,734850,28055.99
Ministry of Defence,Ministry of Defence,15/12/2010,Purchase of inventory and services ,Land Forces,FORBO FLOORING UK LIMITED,732827,25707.28
Ministry of Defence,Ministry of Defence,06/12/2010,Purchase of inventory and services ,Land Forces,FORBO FLOORING UK LIMITED,728762,18844.80
Ministry of Defence,Ministry of Defence,09/12/2010,Purchase of inventory and services ,Land Forces,FORBO FLOORING UK LIMITED,730462,10838.47
Ministry of Defence,Ministry of Defence,06/12/2010,Purchase of inventory and services ,Navy Command,FORBO FLOORING UK LIMITED,728762,994.83
Ministry of Defence,Ministry of Defence,21/12/2010,Purchase of inventory and services ,Land Forces,FORBO FLOORING UK LIMITED,735519,669.97
Ministry of Defence,Ministry of Defence,06/12/2010,Purchase of inventory and services ,Air Command,FORBO FLOORING UK LIMITED,728762,216.92
Ministry of Defence,Ministry of Defence,01/12/2010,Bank Charges,Central TLB,FOREIGN & COMMONWEALTH OFFICE,200000010228,37.34
Ministry of Defence,Ministry of Defence,09/12/2010,Design services and minor equipment purchases,Central TLB,FOREIGN & COMMONWEALTH OFFICE,200000010280,257.77
Ministry of Defence,Ministry of Defence,08/12/2010,Design services and minor equipment purchases,Central TLB,FOREIGN & COMMONWEALTH OFFICE,200000010272,136.61
Ministry of Defence,Ministry of Defence,02/12/2010,Design services and minor equipment purchases,Central TLB,FOREIGN & COMMONWEALTH OFFICE,200000010242,29.15
Ministry of Defence,Ministry of Defence,14/12/2010,Design services and minor equipment purchases,Central TLB,FOREIGN & COMMONWEALTH OFFICE,200000010307,17.16
Ministry of Defence,Ministry of Defence,13/12/2010,Estate management,Central TLB,FOREIGN & COMMONWEALTH OFFICE,200000010299,58.06
Ministry of Defence,Ministry of Defence,07/12/2010,Externally delivered education and training.,Central TLB,FOREIGN & COMMONWEALTH OFFICE,200000010261,9073.44
Ministry of Defence,Ministry of Defence,14/12/2010,Externally delivered education and training.,Defence Equipment & Support,FOREIGN & COMMONWEALTH OFFICE,200000010307,156.84
Ministry of Defence,Ministry of Defence,13/12/2010,Externally delivered education and training.,Central TLB,FOREIGN & COMMONWEALTH OFFICE,200000010299,144.53
Ministry of Defence,Ministry of Defence,02/12/2010,Fees for professional services,Central TLB,FOREIGN & COMMONWEALTH OFFICE,200000010243,37.99
Ministry of Defence,Ministry of Defence,01/12/2010,Fees for professional services,Central TLB,FOREIGN & COMMONWEALTH OFFICE,200000010228,35.40
Ministry of Defence,Ministry of Defence,02/12/2010,Fees for professional services,Central TLB,FOREIGN & COMMONWEALTH OFFICE,200000010242,0.84
Ministry of Defence,Ministry of Defence,02/12/2010,Fuel for military use,Central TLB,FOREIGN & COMMONWEALTH OFFICE,200000010242,664.46
Ministry of Defence,Ministry of Defence,08/12/2010,Fuel for military use,Central TLB,FOREIGN & COMMONWEALTH OFFICE,200000010272,625.32
Ministry of Defence,Ministry of Defence,07/12/2010,Fuel for military use,Central TLB,FOREIGN & COMMONWEALTH OFFICE,200000010261,359.38
Ministry of Defence,Ministry of Defence,09/12/2010,Fuel for military use,Central TLB,FOREIGN & COMMONWEALTH OFFICE,200000010280,332.47
Ministry of Defence,Ministry of Defence,14/12/2010,Fuel for military use,Central TLB,FOREIGN & COMMONWEALTH OFFICE,200000010307,138.02
Ministry of Defence,Ministry of Defence,01/12/2010,Fuel for military use,Central TLB,FOREIGN & COMMONWEALTH OFFICE,200000010228,38.19
Ministry of Defence,Ministry of Defence,13/12/2010,Fuel for military use,Central TLB,FOREIGN & COMMONWEALTH OFFICE,200000010299,13.30
Ministry of Defence,Ministry of Defence,07/12/2010,General services and support,Central TLB,FOREIGN & COMMONWEALTH OFFICE,200000010262,19873.11
Ministry of Defence,Ministry of Defence,08/12/2010,Insurance,Central TLB,FOREIGN & COMMONWEALTH OFFICE,200000010272,231.07
Ministry of Defence,Ministry of Defence,09/12/2010,Insurance,Central TLB,FOREIGN & COMMONWEALTH OFFICE,200000010280,98.69
Ministry of Defence,Ministry of Defence,08/12/2010,International contributions,Central TLB,FOREIGN & COMMONWEALTH OFFICE,200000010272,5523.43
Ministry of Defence,Ministry of Defence,02/12/2010,International contributions,Central TLB,FOREIGN & COMMONWEALTH OFFICE,200000010242,4092.15
Ministry of Defence,Ministry of Defence,08/12/2010,International contributions,Central TLB,FOREIGN & COMMONWEALTH OFFICE,200000010270,1448.06
Ministry of Defence,Ministry of Defence,02/12/2010,International contributions,Central TLB,FOREIGN & COMMONWEALTH OFFICE,200000010243,49.18
Ministry of Defence,Ministry of Defence,14/12/2010,International contributions,Central TLB,FOREIGN & COMMONWEALTH OFFICE,200000010307,-1247.93
Ministry of Defence,Ministry of Defence,01/12/2010,IT and communication services,Central TLB,FOREIGN & COMMONWEALTH OFFICE,200000010228,4631.40
Ministry of Defence,Ministry of Defence,08/12/2010,IT and communication services,Central TLB,FOREIGN & COMMONWEALTH OFFICE,200000010272,640.42
Ministry of Defence,Ministry of Defence,09/12/2010,IT and communication services,Central TLB,FOREIGN & COMMONWEALTH OFFICE,200000010280,527.62
Ministry of Defence,Ministry of Defence,13/12/2010,IT and communication services,Central TLB,FOREIGN & COMMONWEALTH OFFICE,200000010299,361.35
Ministry of Defence,Ministry of Defence,07/12/2010,IT and communication services,Central TLB,FOREIGN & COMMONWEALTH OFFICE,200000010262,159.43
Ministry of Defence,Ministry of Defence,02/12/2010,IT and communication services,Central TLB,FOREIGN & COMMONWEALTH OFFICE,200000010242,49.09
Ministry of Defence,Ministry of Defence,07/12/2010,IT and communication services,Air Command,FOREIGN & COMMONWEALTH OFFICE,200000010261,32.28
Ministry of Defence,Ministry of Defence,02/12/2010,IT and communication services,Central TLB,FOREIGN & COMMONWEALTH OFFICE,200000010243,0.95
Ministry of Defence,Ministry of Defence,14/12/2010,IT and communication services,Central TLB,FOREIGN & COMMONWEALTH OFFICE,200000010307,-47.09
Ministry of Defence,Ministry of Defence,08/12/2010,IT and communication services,Central TLB,FOREIGN & COMMONWEALTH OFFICE,200000010270,-54.01
Ministry of Defence,Ministry of Defence,07/12/2010,Medical treatment & stores and welfare services.,Central TLB,FOREIGN & COMMONWEALTH OFFICE,200000010261,3262.27
Ministry of Defence,Ministry of Defence,08/12/2010,Medical treatment & stores and welfare services.,Central TLB,FOREIGN & COMMONWEALTH OFFICE,200000010272,1961.39
Ministry of Defence,Ministry of Defence,07/12/2010,Medical treatment & stores and welfare services.,Air Command,FOREIGN & COMMONWEALTH OFFICE,200000010261,1611.07
Ministry of Defence,Ministry of Defence,08/12/2010,Medical treatment & stores and welfare services.,Land Forces,FOREIGN & COMMONWEALTH OFFICE,200000010272,1261.53
Ministry of Defence,Ministry of Defence,02/12/2010,Medical treatment & stores and welfare services.,Central TLB,FOREIGN & COMMONWEALTH OFFICE,200000010242,729.39
Ministry of Defence,Ministry of Defence,08/12/2010,Medical treatment & stores and welfare services.,Navy Command,FOREIGN & COMMONWEALTH OFFICE,200000010272,531.48
Ministry of Defence,Ministry of Defence,09/12/2010,Medical treatment & stores and welfare services.,Central TLB,FOREIGN & COMMONWEALTH OFFICE,200000010280,372.61
Ministry of Defence,Ministry of Defence,14/12/2010,Medical treatment & stores and welfare services.,Central TLB,FOREIGN & COMMONWEALTH OFFICE,200000010307,264.35
Ministry of Defence,Ministry of Defence,13/12/2010,Medical treatment & stores and welfare services.,Central TLB,FOREIGN & COMMONWEALTH OFFICE,200000010299,102.02
Ministry of Defence,Ministry of Defence,01/12/2010,Medical treatment & stores and welfare services.,Central TLB,FOREIGN & COMMONWEALTH OFFICE,200000010228,76.24
Ministry of Defence,Ministry of Defence,07/12/2010,Medical treatment & stores and welfare services.,Central TLB,FOREIGN & COMMONWEALTH OFFICE,200000010262,67.66
Ministry of Defence,Ministry of Defence,02/12/2010,Medical treatment & stores and welfare services.,Land Forces,FOREIGN & COMMONWEALTH OFFICE,200000010242,25.25
Ministry of Defence,Ministry of Defence,08/12/2010,Medical treatment & stores and welfare services.,Central TLB,FOREIGN & COMMONWEALTH OFFICE,200000010270,-830.00
Ministry of Defence,Ministry of Defence,13/12/2010,Miscellaneous Administration Costs,Central TLB,FOREIGN & COMMONWEALTH OFFICE,200000010299,749001.53
Ministry of Defence,Ministry of Defence,01/12/2010,Miscellaneous Administration Costs,Central TLB,FOREIGN & COMMONWEALTH OFFICE,200000010228,216931.38
Ministry of Defence,Ministry of Defence,02/12/2010,Miscellaneous Administration Costs,Central TLB,FOREIGN & COMMONWEALTH OFFICE,200000010243,34364.00
Ministry of Defence,Ministry of Defence,09/12/2010,Miscellaneous Administration Costs,Central TLB,FOREIGN & COMMONWEALTH OFFICE,200000010280,149.82
Ministry of Defence,Ministry of Defence,14/12/2010,Miscellaneous Administration Costs,Defence Equipment & Support,FOREIGN & COMMONWEALTH OFFICE,200000010307,56.46
Ministry of Defence,Ministry of Defence,07/12/2010,Miscellaneous Administration Costs,Central TLB,FOREIGN & COMMONWEALTH OFFICE,200000010261,42.47
Ministry of Defence,Ministry of Defence,14/12/2010,Miscellaneous Administration Costs,Central TLB,FOREIGN & COMMONWEALTH OFFICE,200000010307,10.66
Ministry of Defence,Ministry of Defence,02/12/2010,Official entertainment and hospitality.,Central TLB,FOREIGN & COMMONWEALTH OFFICE,200000010242,1122.61
Ministry of Defence,Ministry of Defence,08/12/2010,Official entertainment and hospitality.,Central TLB,FOREIGN & COMMONWEALTH OFFICE,200000010270,435.48
Ministry of Defence,Ministry of Defence,08/12/2010,Official entertainment and hospitality.,Central TLB,FOREIGN & COMMONWEALTH OFFICE,200000010272,386.87
Ministry of Defence,Ministry of Defence,14/12/2010,Official entertainment and hospitality.,Central TLB,FOREIGN & COMMONWEALTH OFFICE,200000010307,262.23
Ministry of Defence,Ministry of Defence,01/12/2010,Official entertainment and hospitality.,Central TLB,FOREIGN & COMMONWEALTH OFFICE,200000010228,137.00
Ministry of Defence,Ministry of Defence,07/12/2010,Official entertainment and hospitality.,Central TLB,FOREIGN & COMMONWEALTH OFFICE,200000010262,26.70
Ministry of Defence,Ministry of Defence,07/12/2010,Payment of utilities,Central TLB,FOREIGN & COMMONWEALTH OFFICE,200000010261,1238.97
Ministry of Defence,Ministry of Defence,13/12/2010,Payment of utilities,Defence Equipment & Support,FOREIGN & COMMONWEALTH OFFICE,200000010299,761.64
Ministry of Defence,Ministry of Defence,01/12/2010,Payment of utilities,Central TLB,FOREIGN & COMMONWEALTH OFFICE,200000010228,758.74
Ministry of Defence,Ministry of Defence,13/12/2010,Payment of utilities,Central TLB,FOREIGN & COMMONWEALTH OFFICE,200000010299,505.69
Ministry of Defence,Ministry of Defence,08/12/2010,Payment of utilities,Navy Command,FOREIGN & COMMONWEALTH OFFICE,200000010272,135.63
Ministry of Defence,Ministry of Defence,14/12/2010,Payment of utilities,Central TLB,FOREIGN & COMMONWEALTH OFFICE,200000010307,105.64
Ministry of Defence,Ministry of Defence,08/12/2010,Payment of utilities,Land Forces,FOREIGN & COMMONWEALTH OFFICE,200000010272,86.06
Ministry of Defence,Ministry of Defence,14/12/2010,Payment of utilities,Defence Equipment & Support,FOREIGN & COMMONWEALTH OFFICE,200000010307,69.42
Ministry of Defence,Ministry of Defence,02/12/2010,Payment of utilities,Central TLB,FOREIGN & COMMONWEALTH OFFICE,200000010242,15.04
Ministry of Defence,Ministry of Defence,07/12/2010,Payment of utilities,Air Command,FOREIGN & COMMONWEALTH OFFICE,200000010261,10.59
Ministry of Defence,Ministry of Defence,08/12/2010,Payment of utilities,Central TLB,FOREIGN & COMMONWEALTH OFFICE,200000010270,2.04
Ministry of Defence,Ministry of Defence,09/12/2010,Payments on behalf of Defence Support Group,Defence Equipment & Support,FOREIGN & COMMONWEALTH OFFICE,200000010280,2183.79
Ministry of Defence,Ministry of Defence,13/12/2010,Property leases,Central TLB,FOREIGN & COMMONWEALTH OFFICE,200000010298,2500000.00
Ministry of Defence,Ministry of Defence,02/12/2010,Purchase of inventory and services ,Central TLB,FOREIGN & COMMONWEALTH OFFICE,200000010243,2107.91
Ministry of Defence,Ministry of Defence,13/12/2010,Purchase of inventory and services ,Central TLB,FOREIGN & COMMONWEALTH OFFICE,200000010299,145.48
Ministry of Defence,Ministry of Defence,09/12/2010,Purchase of inventory and services ,Central TLB,FOREIGN & COMMONWEALTH OFFICE,200000010280,92.00
Ministry of Defence,Ministry of Defence,14/12/2010,Purchase of inventory and services ,Central TLB,FOREIGN & COMMONWEALTH OFFICE,200000010307,34.50
Ministry of Defence,Ministry of Defence,08/12/2010,Rent and rates,Navy Command,FOREIGN & COMMONWEALTH OFFICE,200000010272,1649.57
Ministry of Defence,Ministry of Defence,08/12/2010,Rent and rates,Land Forces,FOREIGN & COMMONWEALTH OFFICE,200000010272,911.10
Ministry of Defence,Ministry of Defence,08/12/2010,Rent and rates,Air Command,FOREIGN & COMMONWEALTH OFFICE,200000010272,272.22
Ministry of Defence,Ministry of Defence,02/12/2010,Transport hire charges,Central TLB,FOREIGN & COMMONWEALTH OFFICE,200000010242,426.94
Ministry of Defence,Ministry of Defence,01/12/2010,Transport hire charges,Central TLB,FOREIGN & COMMONWEALTH OFFICE,200000010228,381.63
Ministry of Defence,Ministry of Defence,09/12/2010,Transport hire charges,Central TLB,FOREIGN & COMMONWEALTH OFFICE,200000010280,223.21
Ministry of Defence,Ministry of Defence,01/12/2010,"Transportation of personnel, freight and travel expenses",Central TLB,FOREIGN & COMMONWEALTH OFFICE,200000010228,25046.92
Ministry of Defence,Ministry of Defence,13/12/2010,"Transportation of personnel, freight and travel expenses",Central TLB,FOREIGN & COMMONWEALTH OFFICE,200000010299,16021.21
Ministry of Defence,Ministry of Defence,14/12/2010,"Transportation of personnel, freight and travel expenses",Central TLB,FOREIGN & COMMONWEALTH OFFICE,200000010307,10924.08
Ministry of Defence,Ministry of Defence,08/12/2010,"Transportation of personnel, freight and travel expenses",Central TLB,FOREIGN & COMMONWEALTH OFFICE,200000010272,6709.71
Ministry of Defence,Ministry of Defence,07/12/2010,"Transportation of personnel, freight and travel expenses",Central TLB,FOREIGN & COMMONWEALTH OFFICE,200000010261,6067.43
Ministry of Defence,Ministry of Defence,09/12/2010,"Transportation of personnel, freight and travel expenses",Central TLB,FOREIGN & COMMONWEALTH OFFICE,200000010280,5194.80
Ministry of Defence,Ministry of Defence,02/12/2010,"Transportation of personnel, freight and travel expenses",Central TLB,FOREIGN & COMMONWEALTH OFFICE,200000010242,2797.66
Ministry of Defence,Ministry of Defence,07/12/2010,"Transportation of personnel, freight and travel expenses",Land Forces,FOREIGN & COMMONWEALTH OFFICE,200000010261,1760.35
Ministry of Defence,Ministry of Defence,02/12/2010,"Transportation of personnel, freight and travel expenses",Central TLB,FOREIGN & COMMONWEALTH OFFICE,200000010243,1019.06
Ministry of Defence,Ministry of Defence,08/12/2010,"Transportation of personnel, freight and travel expenses",Central TLB,FOREIGN & COMMONWEALTH OFFICE,200000010270,495.89
Ministry of Defence,Ministry of Defence,14/12/2010,"Transportation of personnel, freight and travel expenses",Defence Equipment & Support,FOREIGN & COMMONWEALTH OFFICE,200000010307,311.79
Ministry of Defence,Ministry of Defence,21/12/2010,Rent and rates,Defence Estates,FORESTRY COMMISSION,735521,105400.00
Ministry of Defence,Ministry of Defence,22/12/2010,Food and clothing,Land Forces,FOX FEEDS LIMITED,736024,28447.25
Ministry of Defence,Ministry of Defence,08/12/2010,Food and clothing,Land Forces,FOX FEEDS LIMITED,729900,26421.60
Ministry of Defence,Ministry of Defence,10/12/2010,Design services and minor equipment purchases,Defence Equipment & Support,FR AVIATION LIMITED,731046,105782.00
Ministry of Defence,Ministry of Defence,09/12/2010,Design services and minor equipment purchases,Defence Equipment & Support,FR AVIATION LIMITED,730463,23898.00
Ministry of Defence,Ministry of Defence,24/12/2010,General services and support,Defence Equipment & Support,FR AVIATION LIMITED,737132,25289.00
Ministry of Defence,Ministry of Defence,14/12/2010,Purchase of buildings and military equipment ,Defence Equipment & Support,FR AVIATION LIMITED,732252,977323.88
Ministry of Defence,Ministry of Defence,13/12/2010,"Purchase of munitions, other inventory or fuel",Defence Equipment & Support,FUCHS LUBRICANTS (UK) PLC,731621,231083.37
Ministry of Defence,Ministry of Defence,13/12/2010,"Purchase of munitions, other inventory or fuel",Land Forces,FUCHS LUBRICANTS (UK) PLC,731621,5611.92
Ministry of Defence,Ministry of Defence,23/12/2010,"Purchase of munitions, other inventory or fuel",Land Forces,FUCHS LUBRICANTS (UK) PLC,736633,2021.00
Ministry of Defence,United Kingdom Hydrographic Office,13/12/2010,Plant and equipment,Production Machines,FUJIFILM UK Ltd,2000052074,172000.00
Ministry of Defence,Ministry of Defence,10/12/2010,Rent and rates,Defence Estates,FYLDE BOROUGH COUNCIL,731050,26848.87
Ministry of Defence,Ministry of Defence,07/12/2010,Rent and rates,Central TLB,G J SUCKLING,729332,21715.50
Ministry of Defence,Ministry of Defence,07/12/2010,Rent and rates,Navy Command,G J SUCKLING,729332,9833.00
Ministry of Defence,Ministry of Defence,08/12/2010,Design services and minor equipment purchases,Defence Equipment & Support,G3 SYSTEMS LIMITED,729905,22477.68
Ministry of Defence,Ministry of Defence,20/12/2010,Design services and minor equipment purchases,Defence Equipment & Support,G3 SYSTEMS LIMITED,734861,6615.34
Ministry of Defence,Ministry of Defence,06/12/2010,Miscellaneous Administration Costs,Central TLB,G4S ASSESSMENT SERVICES (UK) LIMITED,155154,26410.00
Ministry of Defence,Ministry of Defence,15/12/2010,Externally delivered education and training.,Land Forces,GALAHAD SUBSTANCE MISUSE SOLUTIONS LIMITED,732830,23583.99
Ministry of Defence,Ministry of Defence,17/12/2010,IT and communication services,Defence Equipment & Support,GALTEC SOLUTIONS LTD,AP09 GPC 08,34495.65
Ministry of Defence,Ministry of Defence,13/12/2010,Design services and minor equipment purchases,Defence Equipment & Support,GARDNER DENVER LIMITED,731627,51914.85
Ministry of Defence,Ministry of Defence,14/12/2010,Purchase of inventory and services ,Defence Equipment & Support,GARDNER DENVER LIMITED,732258,29046.00
Ministry of Defence,Ministry of Defence,13/12/2010,Purchase of inventory and services ,Defence Equipment & Support,GARDNER DENVER LIMITED,731627,98.47
Ministry of Defence,Ministry of Defence,17/12/2010,Payment of utilities,Defence Equipment & Support,GB OILS LIMITED,734159,154876.66
Ministry of Defence,Ministry of Defence,20/12/2010,Payment of utilities,Defence Equipment & Support,GB OILS LIMITED,734863,131326.19
Ministry of Defence,Ministry of Defence,14/12/2010,Payment of utilities,Defence Equipment & Support,GB OILS LIMITED,732260,9571.35
Ministry of Defence,Ministry of Defence,16/12/2010,Design services and minor equipment purchases,Defence Equipment & Support,GE AVIATION SYSTEMS LIMITED,733505,57326.70
Ministry of Defence,Ministry of Defence,07/12/2010,Purchase of inventory and services ,Defence Equipment & Support,GE AVIATION SYSTEMS LIMITED,729338,141156.29
Ministry of Defence,Ministry of Defence,15/12/2010,Purchase of inventory and services ,Defence Equipment & Support,GE AVIATION SYSTEMS LIMITED,732833,51849.87
Ministry of Defence,Ministry of Defence,14/12/2010,Estate management,Defence Estates,Gebr. Sch�nhoff,Cash Office 18,81610.17
Ministry of Defence,Ministry of Defence,10/12/2010,Estate management,Land Forces,GEM MBH,5000046878,72033.90
Ministry of Defence,Ministry of Defence,14/12/2010,"Transportation of personnel, freight and travel expenses",Defence Equipment & Support,GH NIBLETT T/A SEVERN VALE TRUCK MOVEMENTS,732264,22779.64
Ministry of Defence,Ministry of Defence,14/12/2010,Purchase of inventory and services ,Command Joint Operations,GIB OIL LTD and CEPSA (Gib) LTD,Cash Office 2,192672.17
Ministry of Defence,Ministry of Defence,02/12/2010,Estate management,Command Joint Operations,GIFFORD LLP,727701,177340.00
Ministry of Defence,Ministry of Defence,24/12/2010,Estate management,Command Joint Operations,GIFFORD LLP,737138,38888.00
Ministry of Defence,Ministry of Defence,24/12/2010,Purchase of buildings and military equipment ,Defence Estates,GIFFORD LLP,737138,42785.25
Ministry of Defence,Ministry of Defence,17/12/2010,Fees for professional services,Central TLB,GIFFORD OWEN LTD,734165,74500.00
Ministry of Defence,Ministry of Defence,15/12/2010,Fees for professional services,Central TLB,GIFFORD OWEN LTD,732838,42300.00
Ministry of Defence,Ministry of Defence,09/12/2010,Fees for professional services,Central TLB,GIFFORD OWEN LTD,730472,40743.55
Ministry of Defence,Defence Science and Technology Laboratory,24/12/2010,Sub Contracted Work,Operations,GL INDUSTRIAL SERVICES UK LIMITED,V - 9000128832 - 00096250,95916.00
Ministry of Defence,Ministry of Defence,21/12/2010,"Transportation of personnel, freight and travel expenses",Air Command,GLASGOW PRESTWICK INTERNATIONAL AIRPORT LTD,735534,54.00
Ministry of Defence,Ministry of Defence,01/12/2010,Purchase of inventory and services ,Defence Equipment & Support,GOODRICH ACTUATION SYSTEMS SAS,5000046323,31894.65
Ministry of Defence,Ministry of Defence,10/12/2010,Rent and rates,Defence Estates,GOSPORT BOROUGH COUNCIL,731057,116437.01
Ministry of Defence,Ministry of Defence,22/12/2010,Rent and rates,Central TLB,Government Actuary's Department,200000010357,127213.69
Ministry of Defence,Ministry of Defence,09/12/2010,"Transportation of personnel, freight and travel expenses",Defence Equipment & Support,GRAY DAWES TRAVEL LIMITED,730480,46901.46
Ministry of Defence,Ministry of Defence,24/12/2010,Nuclear decommissioning and restoration,Defence Equipment & Support,GREEN ISSUES COMMUNICATIONS LIMITED,737144,24752.28
Ministry of Defence,Ministry of Defence,10/12/2010,Rent and rates,Defence Estates,GREENWICH COUNCIL,731059,26180.40
Ministry of Defence,Ministry of Defence,10/12/2010,Rent and rates,Defence Estates,GUILDFORD BOROUGH COUNCIL,731062,63656.67
Ministry of Defence,Ministry of Defence,22/12/2010,Medical treatment & stores and welfare services.,Land Forces,GUY'S & ST THOMAS NHS FOUNDATION TRUST,5000047764,275753.29
Ministry of Defence,Ministry of Defence,03/12/2010,Medical treatment & stores and welfare services.,Land Forces,GUY'S & ST THOMAS NHS FOUNDATION TRUST,5000046522,29111.31
Ministry of Defence,Ministry of Defence,24/12/2010,Fees for professional services,Defence Estates,GVA GRIMLEY LIMITED,737145,193484.50
Ministry of Defence,Ministry of Defence,14/12/2010,Fees for professional services,Defence Estates,GVA GRIMLEY LIMITED,732273,27552.00
Ministry of Defence,Ministry of Defence,17/12/2010,Building maintenance and accommodation stores,Land Forces,H MORRIS & CO LTD,AP09 GPC 02,46511.63
Ministry of Defence,Ministry of Defence,23/12/2010,Purchase of inventory and services ,Defence Equipment & Support,H.FINE & SON LTD,736645,253638.91
Ministry of Defence,Ministry of Defence,14/12/2010,Estate management,Defence Estates,Haase,Cash Office 14,31144.07
Ministry of Defence,Ministry of Defence,16/12/2010,Design services and minor equipment purchases,Defence Equipment & Support,HALE HAMILTON (VALVES) LTD,733519,25441.47
Ministry of Defence,Ministry of Defence,23/12/2010,Design services and minor equipment purchases,Defence Equipment & Support,HALE HAMILTON (VALVES) LTD,736648,16960.98
Ministry of Defence,Ministry of Defence,31/12/2010,Purchase of inventory and services ,Defence Equipment & Support,HALE HAMILTON (VALVES) LTD,737755,63024.58
Ministry of Defence,Ministry of Defence,16/12/2010,Purchase of inventory and services ,Defence Equipment & Support,HALE HAMILTON (VALVES) LTD,733519,38588.86
Ministry of Defence,Ministry of Defence,09/12/2010,Purchase of inventory and services ,Defence Equipment & Support,HALE HAMILTON (VALVES) LTD,730485,31254.57
Ministry of Defence,Ministry of Defence,23/12/2010,Purchase of inventory and services ,Defence Equipment & Support,HALE HAMILTON (VALVES) LTD,736648,65.81
Ministry of Defence,Ministry of Defence,10/12/2010,Rent and rates,Defence Estates,HAMBLETON DISTRICT COUNCIL,731066,97204.70
Ministry of Defence,Ministry of Defence,17/12/2010,"Transportation of personnel, freight and travel expenses",Central TLB,HAMPTON INN WASHINGTON,AP09 GPC 03,43954.95
Ministry of Defence,Ministry of Defence,15/12/2010,Purchase of inventory and services ,Defence Equipment & Support,HAMWORTHY WATER SYSTEMS LIMITED,732852,39930.32
Ministry of Defence,Ministry of Defence,10/12/2010,Design services and minor equipment purchases,Defence Equipment & Support,HARRINGTON GENERATORS INTERNATIONAL LTD,731067,636.50
Ministry of Defence,Ministry of Defence,10/12/2010,Rent and rates,Defence Estates,HARROGATE BOROUGH COUNCIL,731068,77777.39
Ministry of Defence,Ministry of Defence,10/12/2010,Rent and rates,Defence Estates,HART DISTRICT COUNCIL,731071,95819.78
Ministry of Defence,Ministry of Defence,16/12/2010,Design services and minor equipment purchases,Defence Equipment & Support,HASKEL EUROPE LTD,733522,24659.01
